Body Name,Body,Service Label,Service Code,CIPFA Detailed Expenditure Type,CIPFA Detailed Expenditure Code,Date,Transaction Number,Net Amount,Supplier Name
Nottinghamshire County Council,1111/1001,Children and Young People,CYP,Premises Related,BAA,01/09/2020,06-10080,"1,686.79",ARC Property Services Partnership L
Nottinghamshire County Council,1111/1001,Children and Young People,CYP,Premises Related,BAA,10/09/2020,06-11528,11217.26,ARC Property Services Partnership L
Nottinghamshire County Council,1111/1001,Children and Young People,CYP,Premises Related,BAA,18/09/2020,06-13170,14052.43,ARC Property Services Partnership L
Nottinghamshire County Council,1111/1001,Children and Young People,CYP,Premises Related,BAA,22/09/2020,06-13370,1308.61,ARC Property Services Partnership L
Nottinghamshire County Council,1111/1001,Children and Young People,CYP,Premises Related,BCA,18/09/2020,06-13166,401.02,Anglian Water Business (National) L
Nottinghamshire County Council,1111/1001,Children and Young People,CYP,Premises Related,BDA,01/09/2020,06-10006,"1,085.00",High Peak Borough Council
Nottinghamshire County Council,1111/1001,Children and Young People,CYP,Premises Related,BDA,01/09/2020,06-10007,"3,500.00",Diocese of Hallam Trustee
Nottinghamshire County Council,1111/1001,Children and Young People,CYP,Premises Related,BDA,01/09/2020,06-10011,8274.24,Ekmw Summit Centre
Nottinghamshire County Council,1111/1001,Children and Young People,CYP,Premises Related,BDA,01/09/2020,06-10013,650.00,Jillings Estates Ltd (Bramley Apple
Nottinghamshire County Council,1111/1001,Children and Young People,CYP,Premises Related,BDA,01/09/2020,06-10015,7500,Capita Property & Infrastructure Lt
Nottinghamshire County Council,1111/1001,Children and Young People,CYP,Premises Related,BDA,01/09/2020,06-10021,920.00,Portland College
Nottinghamshire County Council,1111/1001,Children and Young People,CYP,Premises Related,BDA,01/09/2020,06-10022,1208.33,Portland College
Nottinghamshire County Council,1111/1001,Children and Young People,CYP,Transport Related,CAA,07/09/2020,06-11128,3613.53,Via East Midlands Ltd
Nottinghamshire County Council,1111/1001,Children and Young People,CYP,Transport Related,CAA,14/09/2020,06-12009,231,Via East Midlands Ltd
Nottinghamshire County Council,1111/1001,Children and Young People,CYP,Transport Related,CAA,14/09/2020,06-12012,42.00,Via East Midlands Ltd
Nottinghamshire County Council,1111/1001,Children and Young People,CYP,Transport Related,CAA,16/09/2020,06-13062,138.71,Via East Midlands Ltd
Nottinghamshire County Council,1111/1001,Children and Young People,CYP,Transport Related,CAA,18/09/2020,06-13176,882,Via East Midlands Ltd
Nottinghamshire County Council,1111/1001,Children and Young People,CYP,Transport Related,CAA,29/09/2020,06-15163,652.00,Via East Midlands Ltd
Nottinghamshire County Council,1111/1001,Children and Young People,CYP,Transport Related,CAA,29/09/2020,06-15167,5.58,Via East Midlands Ltd
Nottinghamshire County Council,1111/1001,Children and Young People,CYP,Transport Related,CBA,18/09/2020,06-13176,116,Via East Midlands Ltd
Nottinghamshire County Council,1111/1001,Children and Young People,CYP,Transport Related,CCA,08/09/2020,06-11206,672.48,Southside Cars Ltd
Nottinghamshire County Council,1111/1001,Children and Young People,CYP,Transport Related,CCA,08/09/2020,06-11222,810,Fozcabs Newark Taxis
Nottinghamshire County Council,1111/1001,Children and Young People,CYP,Transport Related,CCA,08/09/2020,06-11231,520.77,Abacus Cars
Nottinghamshire County Council,1111/1001,Children and Young People,CYP,Transport Related,CCA,08/09/2020,06-11240,"1,955.35",Marshalls Of Sutton On Trent Ltd
Nottinghamshire County Council,1111/1001,Children and Young People,CYP,Transport Related,CCA,08/09/2020,06-11243,4555.04,Stagecoach Services Ltd
Nottinghamshire County Council,1111/1001,Children and Young People,CYP,Transport Related,CCA,08/09/2020,06-11245,"2,674.24",Stagecoach Services Ltd
Nottinghamshire County Council,1111/1001,Children and Young People,CYP,Transport Related,CCA,08/09/2020,06-11247,"5,677.65",Stagecoach Services Ltd
Nottinghamshire County Council,1111/1001,Children and Young People,CYP,Transport Related,CCA,08/09/2020,06-11257,"4,104.31",Stagecoach Services Ltd
Nottinghamshire County Council,1111/1001,Children and Young People,CYP,Transport Related,CCA,10/09/2020,06-11538,640,Acorn Contracts
Nottinghamshire County Council,1111/1001,Children and Young People,CYP,Transport Related,CCA,10/09/2020,06-11548,"24,826.28",Hope House School Ltd
Nottinghamshire County Council,1111/1001,Children and Young People,CYP,Transport Related,CCA,17/09/2020,06-13099,1959.2,Arrow Specialised Transport Ltd
Nottinghamshire County Council,1111/1001,Children and Young People,CYP,Transport Related,CCA,18/09/2020,06-13190,"4,377.29",Via East Midlands Ltd
Nottinghamshire County Council,1111/1001,Children and Young People,CYP,Transport Related,CCA,24/09/2020,06-13523,1543.2,F4Control Ltd (t/a First4care)
Nottinghamshire County Council,1111/1001,Children and Young People,CYP,Transport Related,CCA,24/09/2020,06-13524,2208.99,F4Control Ltd (t/a First4care)
Nottinghamshire County Council,1111/1001,Children and Young People,CYP,Transport Related,CCA,24/09/2020,06-13526,3240,Glenn Ryder Coaches
Nottinghamshire County Council,1111/1001,Children and Young People,CYP,Transport Related,CCA,24/09/2020,06-13527,"1,572.50",Glenn Ryder Coaches
Nottinghamshire County Council,1111/1001,Children and Young People,CYP,Transport Related,CCA,24/09/2020,06-13529,"1,265.00",Arrow Specialised Transport Ltd
Nottinghamshire County Council,1111/1001,Children and Young People,CYP,Transport Related,CCA,24/09/2020,06-13530,"1,736.70",F4Control Ltd (t/a First4care)
Nottinghamshire County Council,1111/1001,Children and Young People,CYP,Transport Related,CCA,24/09/2020,06-13531,2203.74,F4Control Ltd (t/a First4care)
Nottinghamshire County Council,1111/1001,Children and Young People,CYP,Transport Related,CCA,24/09/2020,06-13533,501.84,D G Private Hire Ltd
Nottinghamshire County Council,1111/1001,Children and Young People,CYP,Transport Related,CCA,24/09/2020,06-13534,"1,040.00",D G Private Hire Ltd
Nottinghamshire County Council,1111/1001,Children and Young People,CYP,Transport Related,CCA,24/09/2020,06-13535,840,D G Private Hire Ltd
Nottinghamshire County Council,1111/1001,Children and Young People,CYP,Transport Related,CCA,24/09/2020,06-13536,630,D G Private Hire Ltd
Nottinghamshire County Council,1111/1001,Children and Young People,CYP,Transport Related,CCA,24/09/2020,06-13538,4756.3,Freeway Coaches Ltd
Nottinghamshire County Council,1111/1001,Children and Young People,CYP,Transport Related,CCA,25/09/2020,06-13550,"5,270.00",Stagecoach Services Ltd
Nottinghamshire County Council,1111/1001,Children and Young People,CYP,Transport Related,CDA,25/09/2020,06-13549,"56,525.00",Stagecoach Services Ltd
Nottinghamshire County Council,1111/1001,Children and Young People,CYP,Transport Related,CDA,28/09/2020,06-14912,71955,Stagecoach Services Ltd
Nottinghamshire County Council,1111/1001,Children and Young People,CYP,Transport Related,CEA,01/09/2020,06-10063,"1,779.59",Reed Employment Plc
Nottinghamshire County Council,1111/1001,Children and Young People,CYP,Transport Related,CEA,07/09/2020,06-10419,"3,487.60",Reed Employment Plc
Nottinghamshire County Council,1111/1001,Children and Young People,CYP,Transport Related,CEA,14/09/2020,06-11301,1253.59,Reed Employment Plc
Nottinghamshire County Council,1111/1001,Children and Young People,CYP,Transport Related,CEA,28/09/2020,06-14906,"1,548.84",Reed Employment Plc
Nottinghamshire County Council,1111/1001,Children and Young People,CYP,Transport Related,CEA,28/09/2020,06-14909,1958.81,Reed Employment Plc
Nottinghamshire County Council,1111/1001,Children and Young People,CYP,Supplies & Services,DAA,01/09/2020,06-16188,968,Herts FullStop (890000)
Nottinghamshire County Council,1111/1001,Children and Young People,CYP,Supplies & Services,DAA,29/09/2020,06-15171,534.24,Adventure Service Ltd
Nottinghamshire County Council,1111/1001,Children and Young People,CYP,Supplies & Services,DBA,01/09/2020,06-10066,388.26,M Maloney Country Butchers & B Ltd
Nottinghamshire County Council,1111/1001,Children and Young People,CYP,Supplies & Services,DBA,08/09/2020,06-11196,383.46,M Maloney Country Butchers & B Ltd
Nottinghamshire County Council,1111/1001,Children and Young People,CYP,Supplies & Services,DBA,08/09/2020,06-11199,213.89,Millside Barrowcliffe Ltd
Nottinghamshire County Council,1111/1001,Children and Young People,CYP,Supplies & Services,DBA,15/09/2020,06-13039,620.75,Brake Bros Ltd
Nottinghamshire County Council,1111/1001,Children and Young People,CYP,Supplies & Services,DBA,17/09/2020,06-13104,295.8,M Maloney Country Butchers & B Ltd
Nottinghamshire County Council,1111/1001,Children and Young People,CYP,Supplies & Services,DBA,22/09/2020,06-13376,336.67,M Maloney Country Butchers & B Ltd
Nottinghamshire County Council,1111/1001,Children and Young People,CYP,Supplies & Services,DBA,28/09/2020,06-13541,645.42,Brake Bros Ltd
Nottinghamshire County Council,1111/1001,Children and Young People,CYP,Supplies & Services,DEA,01/09/2020,06-16210,"2,500.00",Chrysalis Associates Ltd
Nottinghamshire County Council,1111/1001,Children and Young People,CYP,Supplies & Services,DEA,02/09/2020,06-16179,550,Clive Harrison Consultancy Ltd
Nottinghamshire County Council,1111/1001,Children and Young People,CYP,Supplies & Services,DEA,03/09/2020,06-16182,675.00,VE Psychological Solutions Ltd
Nottinghamshire County Council,1111/1001,Children and Young People,CYP,Supplies & Services,DEA,03/09/2020,06-16212,642.3,[Redacted]
Nottinghamshire County Council,1111/1001,Children and Young People,CYP,Supplies & Services,DEA,04/09/2020,06-16200,900,Unicef UK Baby Friendly Initiative
Nottinghamshire County Council,1111/1001,Children and Young People,CYP,Supplies & Services,DEA,04/09/2020,06-16207,"1,900.00",Diamond Therapies Ltd
Nottinghamshire County Council,1111/1001,Children and Young People,CYP,Supplies & Services,DEA,30/09/2020,06-15179,1010,Freeths LLP
Nottinghamshire County Council,1111/1001,Children and Young People,CYP,Supplies & Services,DFA,01/09/2020,06-16194,8801.19,Specialist Computer Centres
Nottinghamshire County Council,1111/1001,Children and Young People,CYP,Supplies & Services,DGA,16/09/2020,06-13043,753.75,[Redacted]
Nottinghamshire County Council,1111/1001,Children and Young People,CYP,Supplies & Services,DKA,02/09/2020,06-10395,650,[Redacted]
Nottinghamshire County Council,1111/1001,Children and Young People,CYP,Supplies & Services,DKA,09/09/2020,06-11290,587.28,Newark Emmaus Trust
Nottinghamshire County Council,1111/1001,Children and Young People,CYP,Supplies & Services,DKA,09/09/2020,06-11291,1175,Norman Galloway Ltd
Nottinghamshire County Council,1111/1001,Children and Young People,CYP,Supplies & Services,DKA,09/09/2020,06-11293,515,Mansfield Property Services LtdT/A
Nottinghamshire County Council,1111/1001,Children and Young People,CYP,Supplies & Services,DKA,09/09/2020,06-11294,1000,Gedling Homes (Part of Jigsaw Homes
Nottinghamshire County Council,1111/1001,Children and Young People,CYP,Supplies & Services,DKA,16/09/2020,06-13060,850,A & S Properties
Nottinghamshire County Council,1111/1001,Children and Young People,CYP,Supplies & Services,DKA,17/09/2020,06-13112,13013.16,John Clifford Primary School
Nottinghamshire County Council,1111/1001,Children and Young People,CYP,Supplies & Services,DKA,18/09/2020,06-13190,640,Via East Midlands Ltd
Nottinghamshire County Council,1111/1001,Children and Young People,CYP,Supplies & Services,DKA,23/09/2020,06-13502,521.33,Nottinghamshire Womens Aid Ltd
Nottinghamshire County Council,1111/1001,Children and Young People,CYP,Supplies & Services,DKA,23/09/2020,06-13503,697.96,ADG Management
Nottinghamshire County Council,1111/1001,Children and Young People,CYP,Supplies & Services,DKA,23/09/2020,06-13504,2190,Wentworths Letting Agent Ltd T/A Sp
Nottinghamshire County Council,1111/1001,Children and Young People,CYP,Supplies & Services,DKA,23/09/2020,06-13510,700,Norman Galloway Ltd
Nottinghamshire County Council,1111/1001,Children and Young People,CYP,Supplies & Services,DKA,30/09/2020,06-16170,650,[Redacted]
Nottinghamshire County Council,1111/1001,Children and Young People,CYP,Supplies & Services,DKA,30/09/2020,06-16174,1320.9,Bassetlaw District Council
Nottinghamshire County Council,1111/1001,Children and Young People,CYP,Third Party Payments,EDA,01/09/2020,06-10042,11000,Ernehale Junior School Academy
Nottinghamshire County Council,1111/1001,Children and Young People,CYP,Third Party Payments,EDA,01/09/2020,06-10043,11000,Alderman Pounder Academy(Flying Hig
Nottinghamshire County Council,1111/1001,Children and Young People,CYP,Third Party Payments,EDA,01/09/2020,06-10044,6346,Alderman White School
Nottinghamshire County Council,1111/1001,Children and Young People,CYP,Third Party Payments,EDA,01/09/2020,06-10045,7827,Dukeries Academy
Nottinghamshire County Council,1111/1001,Children and Young People,CYP,Third Party Payments,EDA,01/09/2020,06-10046,3173,St Swithuns C of E Primary Academy
Nottinghamshire County Council,1111/1001,Children and Young People,CYP,Third Party Payments,EDA,01/09/2020,06-10047,9519,Rushcliffe School (Spencer Academie
Nottinghamshire County Council,1111/1001,Children and Young People,CYP,Third Party Payments,EDA,01/09/2020,06-10048,6346,Toothill Academy
Nottinghamshire County Council,1111/1001,Children and Young People,CYP,Third Party Payments,EDA,01/09/2020,06-10049,8250,Bramcote College
Nottinghamshire County Council,1111/1001,Children and Young People,CYP,Third Party Payments,EDA,01/09/2020,06-10050,6346,Bramcote College
Nottinghamshire County Council,1111/1001,Children and Young People,CYP,Third Party Payments,EDA,01/09/2020,06-10051,9519,Bramcote College
Nottinghamshire County Council,1111/1001,Children and Young People,CYP,Third Party Payments,EDA,01/09/2020,06-10052,4760,Ranskill Primary Academy
Nottinghamshire County Council,1111/1001,Children and Young People,CYP,Third Party Payments,EDA,01/09/2020,06-10053,11000,Christ The King Catholic Voluntary
Nottinghamshire County Council,1111/1001,Children and Young People,CYP,Third Party Payments,EDA,01/09/2020,06-10054,11000,Heymann Primary School
Nottinghamshire County Council,1111/1001,Children and Young People,CYP,Third Party Payments,EDA,01/09/2020,06-10055,3173,Kimberley Primary & Nursery Acadamy
Nottinghamshire County Council,1111/1001,Children and Young People,CYP,Third Party Payments,EDA,01/09/2020,06-10056,3237,Greythorn Primary Academy
Nottinghamshire County Council,1111/1001,Children and Young People,CYP,Third Party Payments,EDA,01/09/2020,06-10057,6346,Redhill Academy
Nottinghamshire County Council,1111/1001,Children and Young People,CYP,Third Party Payments,EDA,01/09/2020,06-10058,6346,Carlton Academy
Nottinghamshire County Council,1111/1001,Children and Young People,CYP,Third Party Payments,EDA,01/09/2020,06-10059,3173,Robert Mellors Primary & Nursery Ac
Nottinghamshire County Council,1111/1001,Children and Young People,CYP,Third Party Payments,EDA,01/09/2020,06-16197,8250,Friesland School
Nottinghamshire County Council,1111/1001,Children and Young People,CYP,Third Party Payments,EDA,04/09/2020,06-10060,29022,Tuxford Academy
Nottinghamshire County Council,1111/1001,Children and Young People,CYP,Third Party Payments,EDA,15/09/2020,06-13026,5000,Redgate Primary Academy
Nottinghamshire County Council,1111/1001,Children and Young People,CYP,Third Party Payments,EDA,15/09/2020,06-13027,50919.25,Redgate Primary Academy
Nottinghamshire County Council,1111/1001,Children and Young People,CYP,Third Party Payments,EDA,15/09/2020,06-13028,5833.33,Beech Academy
Nottinghamshire County Council,1111/1001,Children and Young People,CYP,Third Party Payments,EDA,15/09/2020,06-13029,83930.25,Beech Academy
Nottinghamshire County Council,1111/1001,Children and Young People,CYP,Third Party Payments,EDA,15/09/2020,06-13030,4166.67,Beech Academy
Nottinghamshire County Council,1111/1001,Children and Young People,CYP,Third Party Payments,EDA,15/09/2020,06-13031,7500,Foxwood Academy
Nottinghamshire County Council,1111/1001,Children and Young People,CYP,Third Party Payments,EDA,15/09/2020,06-13032,98256.92,Foxwood Academy
Nottinghamshire County Council,1111/1001,Children and Young People,CYP,Third Party Payments,EDA,15/09/2020,06-13033,2500,Yeoman Park Academy
Nottinghamshire County Council,1111/1001,Children and Young People,CYP,Third Party Payments,EDA,15/09/2020,06-13034,900,Yeoman Park Academy
Nottinghamshire County Council,1111/1001,Children and Young People,CYP,Third Party Payments,EDA,16/09/2020,06-13061,103280.33,Yeoman Park Academy
Nottinghamshire County Council,1111/1001,Children and Young People,CYP,Third Party Payments,EDA,21/09/2020,06-10085,18426.55,Carlton Le Willows Academy
Nottinghamshire County Council,1111/1001,Children and Young People,CYP,Third Party Payments,EDA,28/09/2020,06-10400,3500,Barnby Road Academy Prim & Nursery
Nottinghamshire County Council,1111/1001,Children and Young People,CYP,Third Party Payments,EDA,28/09/2020,06-10401,36340,Kirkby College
Nottinghamshire County Council,1111/1001,Children and Young People,CYP,Third Party Payments,EDA,28/09/2020,06-10402,"3,268.00",The Suthers School
Nottinghamshire County Council,1111/1001,Children and Young People,CYP,Third Party Payments,EDA,28/09/2020,06-10403,16666,Magnus Church of England Academy
Nottinghamshire County Council,1111/1001,Children and Young People,CYP,Third Party Payments,EDA,28/09/2020,06-10404,11764,Newark Academy
Nottinghamshire County Council,1111/1001,Children and Young People,CYP,Third Party Payments,EDA,28/09/2020,06-10405,"7,190.00",St Peters Cross Keys Academy
Nottinghamshire County Council,1111/1001,Children and Young People,CYP,Third Party Payments,EDA,28/09/2020,06-10406,"8,334.00",William Gladstone C of E Primary Ac
Nottinghamshire County Council,1111/1001,Children and Young People,CYP,Third Party Payments,EDA,28/09/2020,06-10407,10784,Sir Donald Bailey Academy (Forge Tr
Nottinghamshire County Council,1111/1001,Children and Young People,CYP,Third Party Payments,EDA,28/09/2020,06-10408,6208,Barnby Road Academy Prim & Nursery
Nottinghamshire County Council,1111/1001,Children and Young People,CYP,Third Party Payments,EDA,28/09/2020,06-16232,794.21,Community Inclusive Trust T/A Amber
Nottinghamshire County Council,1111/1001,Children and Young People,CYP,Third Party Payments,EFA,23/09/2020,06-11565,700.00,Chase Terrace Academy
Nottinghamshire County Council,1111/1001,Children and Young People,CYP,Third Party Payments,EFA,25/09/2020,06-16214,5235.77,Hollygirt School
Nottinghamshire County Council,1111/1001,Children and Young People,CYP,Third Party Payments,EGA,01/09/2020,06-16206,14144.98,AMG Consultancy Services Ltd
Nottinghamshire County Council,1111/1001,Children and Young People,CYP,Third Party Payments,EGA,02/09/2020,06-10061,1461.6,Little Ducklings Childminding
Nottinghamshire County Council,1111/1001,Children and Young People,CYP,Third Party Payments,EGA,02/09/2020,06-10370,"1,435.50",Hunny Bunny's Childcare
Nottinghamshire County Council,1111/1001,Children and Young People,CYP,Third Party Payments,EGA,03/09/2020,06-16181,"14,144.98",AMG Consultancy Services Ltd
Nottinghamshire County Council,1111/1001,Children and Young People,CYP,Third Party Payments,EGA,04/09/2020,06-16198,"99,078.48",Homes 2 Inspire Ltd
Nottinghamshire County Council,1111/1001,Children and Young People,CYP,Third Party Payments,EGA,04/09/2020,06-16199,224440,Homes 2 Inspire Ltd
Nottinghamshire County Council,1111/1001,Children and Young People,CYP,Third Party Payments,EGA,10/09/2020,06-11551,"1,035.45",Worksop College
Nottinghamshire County Council,1111/1001,Children and Young People,CYP,Third Party Payments,EGA,10/09/2020,06-11552,10907,Poppy & Jacks Ltd
Nottinghamshire County Council,1111/1001,Children and Young People,CYP,Third Party Payments,EGA,10/09/2020,06-11553,892.08,[Redacted]
Nottinghamshire County Council,1111/1001,Children and Young People,CYP,Third Party Payments,EGA,10/09/2020,06-11554,615.00,Railway Children Playgroup
Nottinghamshire County Council,1111/1001,Children and Young People,CYP,Third Party Payments,EGA,10/09/2020,06-11555,615.00,[Redacted]
Nottinghamshire County Council,1111/1001,Children and Young People,CYP,Third Party Payments,EGA,10/09/2020,06-11556,615,Little Beans Playgroup
Nottinghamshire County Council,1111/1001,Children and Young People,CYP,Third Party Payments,EGA,10/09/2020,06-11557,615.00,[Redacted]
Nottinghamshire County Council,1111/1001,Children and Young People,CYP,Third Party Payments,EGA,23/09/2020,06-13510,575,Norman Galloway Ltd
Nottinghamshire County Council,1111/1001,Children and Young People,CYP,Third Party Payments,EHA,01/09/2020,06-16209,87750,Nottm Community Housing Assoc
Nottinghamshire County Council,1111/1001,Children and Young People,CYP,Transfer Payments,GAA,02/09/2020,06-10396,"3,465.00",Doncaster College (DN College Group
Nottinghamshire County Council,1111/1001,Children and Young People,CYP,Transfer Payments,GAA,09/09/2020,06-11292,3465,Staffordshire Universiity
Nottinghamshire County Council,1111/1001,Children and Young People,CYP,Transfer Payments,GAA,16/09/2020,06-13058,"3,465.00",Nottingham Trent University
Nottinghamshire County Council,1111/1001,Children and Young People,CYP,Transfer Payments,GAA,16/09/2020,06-13059,3465,University of Hull
Nottinghamshire County Council,1111/1001,Children and Young People,CYP,Transfer Payments,GAA,30/09/2020,06-16171,"3,465.00",Nottingham Trent University
Nottinghamshire County Council,1111/1001,Children and Young People,CYP,Transfer Payments,GAA,30/09/2020,06-16172,3465,University Of Nottingham
Nottinghamshire County Council,1111/1001,Children and Young People,CYP,Transfer Payments,GAA,30/09/2020,06-16173,3465,University of Manchester
Nottinghamshire County Council,1111/1001,Children and Young People,CYP,Transfer Payments,GAA,30/09/2020,06-16175,3465,Sheffield Hallam University
Nottinghamshire County Council,1111/1001,Children and Young People,CYP,Transfer Payments,GAA,30/09/2020,06-16176,3465,Brasenose College
Nottinghamshire County Council,1111/1001,Adult Social Care and Health,ASCH,Premises Related,BAA,01/09/2020,06-10075,1044,Ball & Sons Ltd
Nottinghamshire County Council,1111/1001,Adult Social Care and Health,ASCH,Premises Related,BAA,01/09/2020,06-10076,846.40,Ball & Sons Ltd
Nottinghamshire County Council,1111/1001,Adult Social Care and Health,ASCH,Premises Related,BAA,01/09/2020,06-10078,208.95,ARC Property Services Partnership L
Nottinghamshire County Council,1111/1001,Adult Social Care and Health,ASCH,Premises Related,BAA,01/09/2020,06-10080,14883.46,ARC Property Services Partnership L
Nottinghamshire County Council,1111/1001,Adult Social Care and Health,ASCH,Premises Related,BAA,02/09/2020,06-10389,783,RC Services
Nottinghamshire County Council,1111/1001,Adult Social Care and Health,ASCH,Premises Related,BAA,02/09/2020,06-10390,1595.75,RC Services
Nottinghamshire County Council,1111/1001,Adult Social Care and Health,ASCH,Premises Related,BAA,07/09/2020,06-10965,1008.27,Heating & Process Eng Serv Ltd
Nottinghamshire County Council,1111/1001,Adult Social Care and Health,ASCH,Premises Related,BAA,07/09/2020,06-10966,574.5,Harveys Home & Garden Maintenance
Nottinghamshire County Council,1111/1001,Adult Social Care and Health,ASCH,Premises Related,BAA,07/09/2020,06-10967,761.12,Helping Hands (Notts) Ltd
Nottinghamshire County Council,1111/1001,Adult Social Care and Health,ASCH,Premises Related,BAA,10/09/2020,06-11528,"12,154.10",ARC Property Services Partnership L
Nottinghamshire County Council,1111/1001,Adult Social Care and Health,ASCH,Premises Related,BAA,18/09/2020,06-13170,"4,565.68",ARC Property Services Partnership L
Nottinghamshire County Council,1111/1001,Adult Social Care and Health,ASCH,Premises Related,BAA,22/09/2020,06-13368,180.60,ARC Property Services Partnership L
Nottinghamshire County Council,1111/1001,Adult Social Care and Health,ASCH,Premises Related,BAA,22/09/2020,06-13370,1013.69,ARC Property Services Partnership L
Nottinghamshire County Council,1111/1001,Adult Social Care and Health,ASCH,Transport Related,CAA,07/09/2020,06-11128,"3,280.62",Via East Midlands Ltd
Nottinghamshire County Council,1111/1001,Adult Social Care and Health,ASCH,Transport Related,CAA,14/09/2020,06-12009,"2,414.66",Via East Midlands Ltd
Nottinghamshire County Council,1111/1001,Adult Social Care and Health,ASCH,Transport Related,CAA,14/09/2020,06-12012,215.2,Via East Midlands Ltd
Nottinghamshire County Council,1111/1001,Adult Social Care and Health,ASCH,Transport Related,CAA,16/09/2020,06-13062,5060.79,Via East Midlands Ltd
Nottinghamshire County Council,1111/1001,Adult Social Care and Health,ASCH,Transport Related,CAA,18/09/2020,06-13176,3059,Via East Midlands Ltd
Nottinghamshire County Council,1111/1001,Adult Social Care and Health,ASCH,Transport Related,CAA,29/09/2020,06-15163,6.16,Via East Midlands Ltd
Nottinghamshire County Council,1111/1001,Adult Social Care and Health,ASCH,Transport Related,CAA,29/09/2020,06-15167,"3,765.94",Via East Midlands Ltd
Nottinghamshire County Council,1111/1001,Adult Social Care and Health,ASCH,Transport Related,CBA,18/09/2020,06-13176,"1,524.50",Via East Midlands Ltd
Nottinghamshire County Council,1111/1001,Adult Social Care and Health,ASCH,Transport Related,CCA,08/09/2020,06-11215,"1,816.00",Arrow Specialised Transport Ltd
Nottinghamshire County Council,1111/1001,Adult Social Care and Health,ASCH,Transport Related,CCA,08/09/2020,06-11229,"1,499.48",Abacus Cars
Nottinghamshire County Council,1111/1001,Adult Social Care and Health,ASCH,Transport Related,CCA,18/09/2020,06-13190,479.92,Via East Midlands Ltd
Nottinghamshire County Council,1111/1001,Adult Social Care and Health,ASCH,Transport Related,CDA,04/09/2020,06-16195,"15,676.67",Thera East Midlands
Nottinghamshire County Council,1111/1001,Adult Social Care and Health,ASCH,Transport Related,CDA,08/09/2020,06-11207,960.00,200 Cars Ltd
Nottinghamshire County Council,1111/1001,Adult Social Care and Health,ASCH,Transport Related,CDA,08/09/2020,06-11208,595.00,Acorn Contracts
Nottinghamshire County Council,1111/1001,Adult Social Care and Health,ASCH,Transport Related,CDA,08/09/2020,06-11209,"1,166.88",Acorn Contracts
Nottinghamshire County Council,1111/1001,Adult Social Care and Health,ASCH,Transport Related,CDA,08/09/2020,06-11210,"1,109.92",Alpha Cars
Nottinghamshire County Council,1111/1001,Adult Social Care and Health,ASCH,Transport Related,CDA,08/09/2020,06-11211,"1,266.40",Alpha Cars
Nottinghamshire County Council,1111/1001,Adult Social Care and Health,ASCH,Transport Related,CDA,08/09/2020,06-11212,697.68,Alpha Cars
Nottinghamshire County Council,1111/1001,Adult Social Care and Health,ASCH,Transport Related,CDA,08/09/2020,06-11213,601.60,Alpha Cars
Nottinghamshire County Council,1111/1001,Adult Social Care and Health,ASCH,Transport Related,CDA,08/09/2020,06-11214,"1,356.60",Alpha Cars
Nottinghamshire County Council,1111/1001,Adult Social Care and Health,ASCH,Transport Related,CDA,08/09/2020,06-11216,"3,691.60",Bridges Transport Ltd
Nottinghamshire County Council,1111/1001,Adult Social Care and Health,ASCH,Transport Related,CDA,08/09/2020,06-11217,"1,452.56",Bridges Transport Ltd
Nottinghamshire County Council,1111/1001,Adult Social Care and Health,ASCH,Transport Related,CDA,08/09/2020,06-11218,717.16,Bridges Transport Ltd
Nottinghamshire County Council,1111/1001,Adult Social Care and Health,ASCH,Transport Related,CDA,08/09/2020,06-11219,"1,104.80",Bridges Transport Ltd
Nottinghamshire County Council,1111/1001,Adult Social Care and Health,ASCH,Transport Related,CDA,08/09/2020,06-11220,"2,616.40",Bridges Transport Ltd
Nottinghamshire County Council,1111/1001,Adult Social Care and Health,ASCH,Transport Related,CDA,08/09/2020,06-11221,"1,792.40",Bridges Transport Ltd
Nottinghamshire County Council,1111/1001,Adult Social Care and Health,ASCH,Transport Related,CDA,08/09/2020,06-11223,"1,586.00",Fozcabs Newark Taxis
Nottinghamshire County Council,1111/1001,Adult Social Care and Health,ASCH,Transport Related,CDA,08/09/2020,06-11224,"1,764.00",Galaxy Cabs Ltd
Nottinghamshire County Council,1111/1001,Adult Social Care and Health,ASCH,Transport Related,CDA,08/09/2020,06-11225,809.20,Galaxy Cabs Ltd
Nottinghamshire County Council,1111/1001,Adult Social Care and Health,ASCH,Transport Related,CDA,08/09/2020,06-11226,"2,156.00",Hawkins Taxis & Transport
Nottinghamshire County Council,1111/1001,Adult Social Care and Health,ASCH,Transport Related,CDA,08/09/2020,06-11227,953.80,Abacus Cars
Nottinghamshire County Council,1111/1001,Adult Social Care and Health,ASCH,Transport Related,CDA,08/09/2020,06-11228,"2,532.40",Abacus Cars
Nottinghamshire County Council,1111/1001,Adult Social Care and Health,ASCH,Transport Related,CDA,08/09/2020,06-11229,"3,044.40",Abacus Cars
Nottinghamshire County Council,1111/1001,Adult Social Care and Health,ASCH,Transport Related,CDA,08/09/2020,06-11231,"2,311.23",Abacus Cars
Nottinghamshire County Council,1111/1001,Adult Social Care and Health,ASCH,Transport Related,CDA,08/09/2020,06-11233,"2,100.00",Abacus Cars
Nottinghamshire County Council,1111/1001,Adult Social Care and Health,ASCH,Transport Related,CDA,08/09/2020,06-11277,"2,843.60",P & P Taxis Ltd
Nottinghamshire County Council,1111/1001,Adult Social Care and Health,ASCH,Transport Related,CDA,08/09/2020,06-11278,"1,399.95",Rio Cabs
Nottinghamshire County Council,1111/1001,Adult Social Care and Health,ASCH,Transport Related,CDA,08/09/2020,06-11279,"1,358.40",Rio Cabs
Nottinghamshire County Council,1111/1001,Adult Social Care and Health,ASCH,Transport Related,CDA,08/09/2020,06-11280,"1,751.34",AAA Cabs
Nottinghamshire County Council,1111/1001,Adult Social Care and Health,ASCH,Transport Related,CDA,08/09/2020,06-11282,510.44,Nunns Taxis Ltd
Nottinghamshire County Council,1111/1001,Adult Social Care and Health,ASCH,Transport Related,CDA,08/09/2020,06-11283,612.00,Gxpress Cars
Nottinghamshire County Council,1111/1001,Adult Social Care and Health,ASCH,Transport Related,CDA,10/09/2020,06-11539,969.00,Acorn Contracts
Nottinghamshire County Council,1111/1001,Adult Social Care and Health,ASCH,Transport Related,CDA,10/09/2020,06-11540,"1,020.00",Galaxy Cabs Ltd
Nottinghamshire County Council,1111/1001,Adult Social Care and Health,ASCH,Transport Related,CDA,10/09/2020,06-11541,720.00,Ng11 Cars
Nottinghamshire County Council,1111/1001,Adult Social Care and Health,ASCH,Transport Related,CDA,10/09/2020,06-11542,"3,474.40",BN Gibson Ltd
Nottinghamshire County Council,1111/1001,Adult Social Care and Health,ASCH,Transport Related,CDA,10/09/2020,06-11543,"3,916.80",BN Gibson Ltd
Nottinghamshire County Council,1111/1001,Adult Social Care and Health,ASCH,Transport Related,CDA,10/09/2020,06-11547,"2,122.80",[Redacted]
Nottinghamshire County Council,1111/1001,Adult Social Care and Health,ASCH,Transport Related,CDA,14/09/2020,06-12270,590.72,Southside Cars Ltd
Nottinghamshire County Council,1111/1001,Adult Social Care and Health,ASCH,Transport Related,CDA,14/09/2020,06-12271,"1,237.50",In Taxis
Nottinghamshire County Council,1111/1001,Adult Social Care and Health,ASCH,Transport Related,CDA,17/09/2020,06-13095,643.72,Southside Cars Ltd
Nottinghamshire County Council,1111/1001,Adult Social Care and Health,ASCH,Transport Related,CDA,17/09/2020,06-13096,"2,390.95",Southside Cars Ltd
Nottinghamshire County Council,1111/1001,Adult Social Care and Health,ASCH,Transport Related,CDA,17/09/2020,06-13098,740.00,Alpha Cars
Nottinghamshire County Council,1111/1001,Adult Social Care and Health,ASCH,Transport Related,CDA,17/09/2020,06-13100,"1,000.00",Ng11 Cars
Nottinghamshire County Council,1111/1001,Adult Social Care and Health,ASCH,Transport Related,CDA,24/09/2020,06-13520,"1,870.00",Southside Cars Ltd
Nottinghamshire County Council,1111/1001,Adult Social Care and Health,ASCH,Transport Related,CDA,24/09/2020,06-13525,"1,451.80",F4Control Ltd (t/a First4care)
Nottinghamshire County Council,1111/1001,Adult Social Care and Health,ASCH,Transport Related,CDA,24/09/2020,06-13528,816.00,Ace Of Mansfield Ltd
Nottinghamshire County Council,1111/1001,Adult Social Care and Health,ASCH,Transport Related,CDA,24/09/2020,06-13532,"1,572.50",D G Private Hire Ltd
Nottinghamshire County Council,1111/1001,Adult Social Care and Health,ASCH,Transport Related,CEA,01/09/2020,06-10063,130.94,Reed Employment Plc
Nottinghamshire County Council,1111/1001,Adult Social Care and Health,ASCH,Transport Related,CEA,07/09/2020,06-10419,96.15,Reed Employment Plc
Nottinghamshire County Council,1111/1001,Adult Social Care and Health,ASCH,Transport Related,CEA,14/09/2020,06-11301,51.75,Reed Employment Plc
Nottinghamshire County Council,1111/1001,Adult Social Care and Health,ASCH,Transport Related,CEA,28/09/2020,06-14906,105.06,Reed Employment Plc
Nottinghamshire County Council,1111/1001,Adult Social Care and Health,ASCH,Transport Related,CEA,28/09/2020,06-14909,398.32,Reed Employment Plc
Nottinghamshire County Council,1111/1001,Adult Social Care and Health,ASCH,Supplies & Services,DAA,04/09/2020,06-16203,"9,283.83",British Red Cross Society
Nottinghamshire County Council,1111/1001,Adult Social Care and Health,ASCH,Supplies & Services,DAA,09/09/2020,06-11305,739.68,Millbank (Heritage Care)
Nottinghamshire County Council,1111/1001,Adult Social Care and Health,ASCH,Supplies & Services,DAA,09/09/2020,06-11314,"1,600.00",Choice Support
Nottinghamshire County Council,1111/1001,Adult Social Care and Health,ASCH,Supplies & Services,DBA,01/09/2020,06-10066,"2,766.18",M Maloney Country Butchers & B Ltd
Nottinghamshire County Council,1111/1001,Adult Social Care and Health,ASCH,Supplies & Services,DBA,01/09/2020,06-16202,634.20,F Smales & Son Fish Merchants Ltd
Nottinghamshire County Council,1111/1001,Adult Social Care and Health,ASCH,Supplies & Services,DBA,08/09/2020,06-11196,"2,415.28",M Maloney Country Butchers & B Ltd
Nottinghamshire County Council,1111/1001,Adult Social Care and Health,ASCH,Supplies & Services,DBA,08/09/2020,06-11199,178.24,Millside Barrowcliffe Ltd
Nottinghamshire County Council,1111/1001,Adult Social Care and Health,ASCH,Supplies & Services,DBA,08/09/2020,06-11203,156.05,On A Roll Sandwich Company
Nottinghamshire County Council,1111/1001,Adult Social Care and Health,ASCH,Supplies & Services,DBA,15/09/2020,06-13035,183.70,On A Roll Sandwich Company
Nottinghamshire County Council,1111/1001,Adult Social Care and Health,ASCH,Supplies & Services,DBA,15/09/2020,06-13039,"1,205.35",Brake Bros Ltd
Nottinghamshire County Council,1111/1001,Adult Social Care and Health,ASCH,Supplies & Services,DBA,17/09/2020,06-13104,"2,534.69",M Maloney Country Butchers & B Ltd
Nottinghamshire County Council,1111/1001,Adult Social Care and Health,ASCH,Supplies & Services,DBA,22/09/2020,06-13376,"2,427.69",M Maloney Country Butchers & B Ltd
Nottinghamshire County Council,1111/1001,Adult Social Care and Health,ASCH,Supplies & Services,DBA,23/09/2020,06-13513,181.73,On A Roll Sandwich Company
Nottinghamshire County Council,1111/1001,Adult Social Care and Health,ASCH,Supplies & Services,DBA,28/09/2020,06-13541,"2,365.59",Brake Bros Ltd
Nottinghamshire County Council,1111/1001,Adult Social Care and Health,ASCH,Supplies & Services,DFA,01/09/2020,06-16196,753.75,Specialist Computer Centres
Nottinghamshire County Council,1111/1001,Adult Social Care and Health,ASCH,Third Party Payments,ECA,04/09/2020,06-10432,367.84,Ashfield Nursing Home
Nottinghamshire County Council,1111/1001,Adult Social Care and Health,ASCH,Third Party Payments,ECA,04/09/2020,06-10436,656.86,Ashley House Nursing Home
Nottinghamshire County Council,1111/1001,Adult Social Care and Health,ASCH,Third Party Payments,ECA,04/09/2020,06-10450,843.35,Ashley House Nursing Home
Nottinghamshire County Council,1111/1001,Adult Social Care and Health,ASCH,Third Party Payments,ECA,04/09/2020,06-10480,367.84,Byars Nursing Home
Nottinghamshire County Council,1111/1001,Adult Social Care and Health,ASCH,Third Party Payments,ECA,04/09/2020,06-10515,867.05,Cedars N H (Four Seasons)
Nottinghamshire County Council,1111/1001,Adult Social Care and Health,ASCH,Third Party Payments,ECA,04/09/2020,06-10554,"1,103.52",Clifton Manor Care (Monarch)
Nottinghamshire County Council,1111/1001,Adult Social Care and Health,ASCH,Third Party Payments,ECA,04/09/2020,06-10585,367.84,Drovers Call Care Home (Knights Car
Nottinghamshire County Council,1111/1001,Adult Social Care and Health,ASCH,Third Party Payments,ECA,04/09/2020,06-10742,"1,103.52",Landermeads Nursing Home
Nottinghamshire County Council,1111/1001,Adult Social Care and Health,ASCH,Third Party Payments,ECA,04/09/2020,06-10768,972.15,Jubilee Court (Runwood)
Nottinghamshire County Council,1111/1001,Adult Social Care and Health,ASCH,Third Party Payments,ECA,04/09/2020,06-10830,735.68,Red Rose N H (Red Homes)
Nottinghamshire County Council,1111/1001,Adult Social Care and Health,ASCH,Third Party Payments,ECA,09/09/2020,06-10717,735.68,Jubilee Court Nursing Home
Nottinghamshire County Council,1111/1001,Adult Social Care and Health,ASCH,Third Party Payments,ECA,11/09/2020,06-11587,709.41,Bramcote Hills Care Home
Nottinghamshire County Council,1111/1001,Adult Social Care and Health,ASCH,Third Party Payments,ECA,11/09/2020,06-11603,"1,103.52",Beeches N H (HC One)
Nottinghamshire County Council,1111/1001,Adult Social Care and Health,ASCH,Third Party Payments,ECA,11/09/2020,06-11621,788.23,Bramcote Hills Care Home
Nottinghamshire County Council,1111/1001,Adult Social Care and Health,ASCH,Third Party Payments,ECA,11/09/2020,06-11636,"1,839.20",Bramcote Hills Care Home
Nottinghamshire County Council,1111/1001,Adult Social Care and Health,ASCH,Third Party Payments,ECA,11/09/2020,06-11657,735.68,Clumber Court (Countrywide Care)
Nottinghamshire County Council,1111/1001,Adult Social Care and Health,ASCH,Third Party Payments,ECA,11/09/2020,06-11679,"1,602.73",Clumber Court (Countrywide Care)
Nottinghamshire County Council,1111/1001,Adult Social Care and Health,ASCH,Third Party Payments,ECA,11/09/2020,06-11683,"1,103.52",Clumber Court (Countrywide Care)
Nottinghamshire County Council,1111/1001,Adult Social Care and Health,ASCH,Third Party Payments,ECA,11/09/2020,06-11717,420.39,Forest Manor Care Home (ASHA)
Nottinghamshire County Council,1111/1001,Adult Social Care and Health,ASCH,Third Party Payments,ECA,11/09/2020,06-11723,"1,077.25",Forest Hill Nursing Home
Nottinghamshire County Council,1111/1001,Adult Social Care and Health,ASCH,Third Party Payments,ECA,11/09/2020,06-11782,737.75,Nightingale Nursing & Care Home
Nottinghamshire County Council,1111/1001,Adult Social Care and Health,ASCH,Third Party Payments,ECA,11/09/2020,06-11958,735.68,Wren Hall Nursing Home
Nottinghamshire County Council,1111/1001,Adult Social Care and Health,ASCH,Third Party Payments,ECA,11/09/2020,06-11964,"3,100.37",Westvilla Nursing Home
Nottinghamshire County Council,1111/1001,Adult Social Care and Health,ASCH,Third Party Payments,ECA,11/09/2020,06-11973,472.93,Westvilla Nursing Home
Nottinghamshire County Council,1111/1001,Adult Social Care and Health,ASCH,Third Party Payments,ECA,11/09/2020,06-11983,998.42,Wren Hall Nursing Home
Nottinghamshire County Council,1111/1001,Adult Social Care and Health,ASCH,Third Party Payments,ECA,11/09/2020,06-11990,998.42,Westvilla Nursing Home
Nottinghamshire County Council,1111/1001,Adult Social Care and Health,ASCH,Third Party Payments,ECA,11/09/2020,06-12003,814.50,Westvilla Nursing Home
Nottinghamshire County Council,1111/1001,Adult Social Care and Health,ASCH,Third Party Payments,ECA,25/09/2020,06-10813,788.23,Oaks Care Centre (Four Seasons)
Nottinghamshire County Council,1111/1001,Adult Social Care and Health,ASCH,Third Party Payments,ECA,25/09/2020,06-11729,709.41,Gateford Hill(Countrywide Care)
Nottinghamshire County Council,1111/1001,Adult Social Care and Health,ASCH,Third Party Payments,ECA,25/09/2020,06-11758,367.84,Jubilee Court Nursing Home
Nottinghamshire County Council,1111/1001,Adult Social Care and Health,ASCH,Third Party Payments,ECA,25/09/2020,06-13576,919.60,Alexandra House (Eastgate)
Nottinghamshire County Council,1111/1001,Adult Social Care and Health,ASCH,Third Party Payments,ECA,25/09/2020,06-13618,"1,103.52",Ashfield Nursing Home
Nottinghamshire County Council,1111/1001,Adult Social Care and Health,ASCH,Third Party Payments,ECA,25/09/2020,06-13685,788.23,Ashley House Nursing Home
Nottinghamshire County Council,1111/1001,Adult Social Care and Health,ASCH,Third Party Payments,ECA,25/09/2020,06-13878,735.68,Cedars N H (Four Seasons)
Nottinghamshire County Council,1111/1001,Adult Social Care and Health,ASCH,Third Party Payments,ECA,25/09/2020,06-14012,262.74,Greenacres Grange (Horizon Care)
Nottinghamshire County Council,1111/1001,Adult Social Care and Health,ASCH,Third Party Payments,ECA,25/09/2020,06-14028,551.76,Forest Manor Care Home (ASHA)
Nottinghamshire County Council,1111/1001,Adult Social Care and Health,ASCH,Third Party Payments,ECA,25/09/2020,06-14053,367.84,Greenacres Grange (Horizon Care)
Nottinghamshire County Council,1111/1001,Adult Social Care and Health,ASCH,Third Party Payments,ECA,25/09/2020,06-14081,367.84,Greenacres Grange (Horizon Care)
Nottinghamshire County Council,1111/1001,Adult Social Care and Health,ASCH,Third Party Payments,ECA,25/09/2020,06-14127,735.68,Greenacres Grange (Horizon Care)
Nottinghamshire County Council,1111/1001,Adult Social Care and Health,ASCH,Third Party Payments,ECA,25/09/2020,06-14236,735.68,Kingsthorpe View Nursing Home (Beec
Nottinghamshire County Council,1111/1001,Adult Social Care and Health,ASCH,Third Party Payments,ECA,25/09/2020,06-14307,-367.84,Jubilee Court Nursing Home
Nottinghamshire County Council,1111/1001,Adult Social Care and Health,ASCH,Third Party Payments,ECA,25/09/2020,06-14311,131.37,Jubilee Court (Runwood)
Nottinghamshire County Council,1111/1001,Adult Social Care and Health,ASCH,Third Party Payments,ECA,25/09/2020,06-14555,"1,103.52",Sherwood Grange Care Centre
Nottinghamshire County Council,1111/1001,Adult Social Care and Health,ASCH,Third Party Payments,ECA,25/09/2020,06-14754,367.84,Victoria Care Home (Dukeries)
Nottinghamshire County Council,1111/1001,Adult Social Care and Health,ASCH,Third Party Payments,ECA,25/09/2020,06-14765,367.84,Westvilla Nursing Home
Nottinghamshire County Council,1111/1001,Adult Social Care and Health,ASCH,Third Party Payments,ECA,25/09/2020,06-14793,735.68,The Woodlands Care Home
Nottinghamshire County Council,1111/1001,Adult Social Care and Health,ASCH,Third Party Payments,ECA,25/09/2020,06-14796,761.95,Westvilla Nursing Home
Nottinghamshire County Council,1111/1001,Adult Social Care and Health,ASCH,Third Party Payments,ECA,30/09/2020,06-15251,"1,103.52",Ashfield Nursing Home
Nottinghamshire County Council,1111/1001,Adult Social Care and Health,ASCH,Third Party Payments,ECA,30/09/2020,06-15320,788.23,Clumber Court (Countrywide Care)
Nottinghamshire County Council,1111/1001,Adult Social Care and Health,ASCH,Third Party Payments,ECA,30/09/2020,06-15386,998.42,Church Farm at Skylarks
Nottinghamshire County Council,1111/1001,Adult Social Care and Health,ASCH,Third Party Payments,ECA,30/09/2020,06-15397,26.27,Clumber Court (Countrywide Care)
Nottinghamshire County Council,1111/1001,Adult Social Care and Health,ASCH,Third Party Payments,ECA,30/09/2020,06-15399,420.38,Cherry Holt Care Home
Nottinghamshire County Council,1111/1001,Adult Social Care and Health,ASCH,Third Party Payments,ECA,30/09/2020,06-15473,735.68,Forest Hill Nursing Home
Nottinghamshire County Council,1111/1001,Adult Social Care and Health,ASCH,Third Party Payments,ECA,30/09/2020,06-15483,"1,103.52",The Firs
Nottinghamshire County Council,1111/1001,Adult Social Care and Health,ASCH,Third Party Payments,ECA,30/09/2020,06-15508,131.37,Greenacres Grange (Horizon Care)
Nottinghamshire County Council,1111/1001,Adult Social Care and Health,ASCH,Third Party Payments,ECA,30/09/2020,06-15532,735.68,Forest Manor Care Home (ASHA)
Nottinghamshire County Council,1111/1001,Adult Social Care and Health,ASCH,Third Party Payments,ECA,30/09/2020,06-15539,472.94,Greenacres Grange (Horizon Care)
Nottinghamshire County Council,1111/1001,Adult Social Care and Health,ASCH,Third Party Payments,ECA,30/09/2020,06-15541,472.94,Forest Hill Nursing Home
Nottinghamshire County Council,1111/1001,Adult Social Care and Health,ASCH,Third Party Payments,ECA,30/09/2020,06-15626,341.56,Jubilee Court Nursing Home
Nottinghamshire County Council,1111/1001,Adult Social Care and Health,ASCH,Third Party Payments,ECA,30/09/2020,06-15646,367.84,Jubilee Court (Runwood)
Nottinghamshire County Council,1111/1001,Adult Social Care and Health,ASCH,Third Party Payments,ECA,30/09/2020,06-15648,"1,103.52",Lawn Park (Four Seasons)
Nottinghamshire County Council,1111/1001,Adult Social Care and Health,ASCH,Third Party Payments,ECA,30/09/2020,06-15686,472.93,Jubilee Court Nursing Home
Nottinghamshire County Council,1111/1001,Adult Social Care and Health,ASCH,Third Party Payments,ECA,30/09/2020,06-15777,"2,522.33",Nightingale Nursing & Care Home
Nottinghamshire County Council,1111/1001,Adult Social Care and Health,ASCH,Third Party Payments,ECA,30/09/2020,06-15790,"1,103.52",Nightingale Nursing & Care Home
Nottinghamshire County Council,1111/1001,Adult Social Care and Health,ASCH,Third Party Payments,ECA,30/09/2020,06-15868,788.23,Oaks Care Centre (Four Seasons)
Nottinghamshire County Council,1111/1001,Adult Social Care and Health,ASCH,Third Party Payments,ECA,30/09/2020,06-15903,367.84,Oaks Care Centre (Four Seasons)
Nottinghamshire County Council,1111/1001,Adult Social Care and Health,ASCH,Third Party Payments,ECA,30/09/2020,06-15968,735.68,Red Rose N H (Red Homes)
Nottinghamshire County Council,1111/1001,Adult Social Care and Health,ASCH,Third Party Payments,ECA,30/09/2020,06-16036,"1,050.97",Chengun Care Homes Ltd
Nottinghamshire County Council,1111/1001,Adult Social Care and Health,ASCH,Third Party Payments,ECA,30/09/2020,06-16116,735.68,Victoria Care Home (Dukeries)
Nottinghamshire County Council,1111/1001,Adult Social Care and Health,ASCH,Third Party Payments,ECA,30/09/2020,06-16129,367.84,Victoria Care Home (Dukeries)
Nottinghamshire County Council,1111/1001,Adult Social Care and Health,ASCH,Third Party Payments,ECA,30/09/2020,06-16160,"1,103.52",Woodthorpe Manor Nursing Home
Nottinghamshire County Council,1111/1001,Adult Social Care and Health,ASCH,Third Party Payments,EGA,01/09/2020,06-10086,581.81,Agincare UK Ltd
Nottinghamshire County Council,1111/1001,Adult Social Care and Health,ASCH,Third Party Payments,EGA,01/09/2020,06-10087,578.97,Caremark (Broxtowe & Erewash)
Nottinghamshire County Council,1111/1001,Adult Social Care and Health,ASCH,Third Party Payments,EGA,01/09/2020,06-10088,514.64,Caremark (Broxtowe & Erewash)
Nottinghamshire County Council,1111/1001,Adult Social Care and Health,ASCH,Third Party Payments,EGA,01/09/2020,06-10089,533.02,Caremark (Broxtowe & Erewash)
Nottinghamshire County Council,1111/1001,Adult Social Care and Health,ASCH,Third Party Payments,EGA,01/09/2020,06-10090,516.88,Mercie Grace Care Ltd
Nottinghamshire County Council,1111/1001,Adult Social Care and Health,ASCH,Third Party Payments,EGA,01/09/2020,06-10091,535.63,Comfort Call Ltd
Nottinghamshire County Council,1111/1001,Adult Social Care and Health,ASCH,Third Party Payments,EGA,01/09/2020,06-10092,682.99,Paradise Hope Ltd
Nottinghamshire County Council,1111/1001,Adult Social Care and Health,ASCH,Third Party Payments,EGA,01/09/2020,06-10093,599.63,Comfort Call Ltd
Nottinghamshire County Council,1111/1001,Adult Social Care and Health,ASCH,Third Party Payments,EGA,01/09/2020,06-10094,678.77,Agincare UK Ltd
Nottinghamshire County Council,1111/1001,Adult Social Care and Health,ASCH,Third Party Payments,EGA,01/09/2020,06-10095,513.52,SPM Quality Care Ltd T/A Caremark(
Nottinghamshire County Council,1111/1001,Adult Social Care and Health,ASCH,Third Party Payments,EGA,01/09/2020,06-10096,646.45,Westminster Homecare Ltd
Nottinghamshire County Council,1111/1001,Adult Social Care and Health,ASCH,Third Party Payments,EGA,01/09/2020,06-10097,770.28,SPM Quality Care Ltd T/A Caremark(
Nottinghamshire County Council,1111/1001,Adult Social Care and Health,ASCH,Third Party Payments,EGA,01/09/2020,06-10098,581.81,Gemini Exclusive Care
Nottinghamshire County Council,1111/1001,Adult Social Care and Health,ASCH,Third Party Payments,EGA,01/09/2020,06-10099,574.84,Agincare UK Ltd
Nottinghamshire County Council,1111/1001,Adult Social Care and Health,ASCH,Third Party Payments,EGA,01/09/2020,06-10100,"1,149.68",Agincare UK Ltd
Nottinghamshire County Council,1111/1001,Adult Social Care and Health,ASCH,Third Party Payments,EGA,01/09/2020,06-10101,"1,149.68",Agincare UK Ltd
Nottinghamshire County Council,1111/1001,Adult Social Care and Health,ASCH,Third Party Payments,EGA,01/09/2020,06-10102,"1,004.04",Victoria Homecare Solutions
Nottinghamshire County Council,1111/1001,Adult Social Care and Health,ASCH,Third Party Payments,EGA,01/09/2020,06-10103,904.04,Age Gracefully Ltd
Nottinghamshire County Council,1111/1001,Adult Social Care and Health,ASCH,Third Party Payments,EGA,01/09/2020,06-10104,"1,568.62",Age Gracefully Ltd
Nottinghamshire County Council,1111/1001,Adult Social Care and Health,ASCH,Third Party Payments,EGA,01/09/2020,06-10105,"1,174.56",Paradise Hope Ltd
Nottinghamshire County Council,1111/1001,Adult Social Care and Health,ASCH,Third Party Payments,EGA,01/09/2020,06-10106,"1,853.52",Paradise Hope Ltd
Nottinghamshire County Council,1111/1001,Adult Social Care and Health,ASCH,Third Party Payments,EGA,01/09/2020,06-10107,969.43,Paradise Hope Ltd
Nottinghamshire County Council,1111/1001,Adult Social Care and Health,ASCH,Third Party Payments,EGA,01/09/2020,06-10108,943.60,Paradise Hope Ltd
Nottinghamshire County Council,1111/1001,Adult Social Care and Health,ASCH,Third Party Payments,EGA,01/09/2020,06-10109,523.52,Bhandal Care Group (BSB Care) Ltd
Nottinghamshire County Council,1111/1001,Adult Social Care and Health,ASCH,Third Party Payments,EGA,01/09/2020,06-10110,741.40,Paradise Hope Ltd
Nottinghamshire County Council,1111/1001,Adult Social Care and Health,ASCH,Third Party Payments,EGA,01/09/2020,06-10111,574.84,Bhandal Care Group (BSB Care) Ltd
Nottinghamshire County Council,1111/1001,Adult Social Care and Health,ASCH,Third Party Payments,EGA,01/09/2020,06-10112,"1,330.62",Holyspirit Care Group Ltd
Nottinghamshire County Council,1111/1001,Adult Social Care and Health,ASCH,Third Party Payments,EGA,01/09/2020,06-10113,502.99,Bhandal Care Group (BSB Care) Ltd
Nottinghamshire County Council,1111/1001,Adult Social Care and Health,ASCH,Third Party Payments,EGA,01/09/2020,06-10114,"1,727.04",Karmad Ltd T/A Respectful Care
Nottinghamshire County Council,1111/1001,Adult Social Care and Health,ASCH,Third Party Payments,EGA,01/09/2020,06-10115,"1,002.52",Karmad Ltd T/A Respectful Care
Nottinghamshire County Council,1111/1001,Adult Social Care and Health,ASCH,Third Party Payments,EGA,01/09/2020,06-10116,"2,446.91",Caremark (Broxtowe & Erewash)
Nottinghamshire County Council,1111/1001,Adult Social Care and Health,ASCH,Third Party Payments,EGA,01/09/2020,06-10117,"2,049.72",Caremark (Broxtowe & Erewash)
Nottinghamshire County Council,1111/1001,Adult Social Care and Health,ASCH,Third Party Payments,EGA,01/09/2020,06-10118,708.02,Leda Homecare Ltd
Nottinghamshire County Council,1111/1001,Adult Social Care and Health,ASCH,Third Party Payments,EGA,01/09/2020,06-10119,"2,401.33",Caremark (Broxtowe & Erewash)
Nottinghamshire County Council,1111/1001,Adult Social Care and Health,ASCH,Third Party Payments,EGA,01/09/2020,06-10120,"2,754.91",Caremark (Broxtowe & Erewash)
Nottinghamshire County Council,1111/1001,Adult Social Care and Health,ASCH,Third Party Payments,EGA,01/09/2020,06-10121,510.95,Caremark (Broxtowe & Erewash)
Nottinghamshire County Council,1111/1001,Adult Social Care and Health,ASCH,Third Party Payments,EGA,01/09/2020,06-10122,609.92,Caremark (Broxtowe & Erewash)
Nottinghamshire County Council,1111/1001,Adult Social Care and Health,ASCH,Third Party Payments,EGA,01/09/2020,06-10123,531.86,SPM Quality Care Ltd T/A Caremark(
Nottinghamshire County Council,1111/1001,Adult Social Care and Health,ASCH,Third Party Payments,EGA,01/09/2020,06-10124,577.76,Caremark (Broxtowe & Erewash)
Nottinghamshire County Council,1111/1001,Adult Social Care and Health,ASCH,Third Party Payments,EGA,01/09/2020,06-10125,731.16,Caremark (Broxtowe & Erewash)
Nottinghamshire County Council,1111/1001,Adult Social Care and Health,ASCH,Third Party Payments,EGA,01/09/2020,06-10126,548.89,Comfort Call Ltd
Nottinghamshire County Council,1111/1001,Adult Social Care and Health,ASCH,Third Party Payments,EGA,01/09/2020,06-10127,"4,287.36",AMG Consultancy Services Ltd
Nottinghamshire County Council,1111/1001,Adult Social Care and Health,ASCH,Third Party Payments,EGA,01/09/2020,06-10128,"3,445.20",AMG Consultancy Services Ltd
Nottinghamshire County Council,1111/1001,Adult Social Care and Health,ASCH,Third Party Payments,EGA,01/09/2020,06-10129,516.60,Comfort Call Ltd
Nottinghamshire County Council,1111/1001,Adult Social Care and Health,ASCH,Third Party Payments,EGA,01/09/2020,06-10130,"4,287.36",AMG Consultancy Services Ltd
Nottinghamshire County Council,1111/1001,Adult Social Care and Health,ASCH,Third Party Payments,EGA,01/09/2020,06-10131,"3,215.52",AMG Consultancy Services Ltd
Nottinghamshire County Council,1111/1001,Adult Social Care and Health,ASCH,Third Party Payments,EGA,01/09/2020,06-10132,"2,143.68",AMG Consultancy Services Ltd
Nottinghamshire County Council,1111/1001,Adult Social Care and Health,ASCH,Third Party Payments,EGA,01/09/2020,06-10133,"1,186.68",AMG Consultancy Services Ltd
Nottinghamshire County Council,1111/1001,Adult Social Care and Health,ASCH,Third Party Payments,EGA,01/09/2020,06-10134,"1,454.64",AMG Consultancy Services Ltd
Nottinghamshire County Council,1111/1001,Adult Social Care and Health,ASCH,Third Party Payments,EGA,01/09/2020,06-10135,774.22,Paradise Hope Ltd
Nottinghamshire County Council,1111/1001,Adult Social Care and Health,ASCH,Third Party Payments,EGA,01/09/2020,06-10136,861.30,AMG Consultancy Services Ltd
Nottinghamshire County Council,1111/1001,Adult Social Care and Health,ASCH,Third Party Payments,EGA,01/09/2020,06-10137,612.48,AMG Consultancy Services Ltd
Nottinghamshire County Council,1111/1001,Adult Social Care and Health,ASCH,Third Party Payments,EGA,01/09/2020,06-10138,517.16,Westminster Homecare Ltd
Nottinghamshire County Council,1111/1001,Adult Social Care and Health,ASCH,Third Party Payments,EGA,01/09/2020,06-10139,"8,929.20",Honeydew Healthcare Ltd
Nottinghamshire County Council,1111/1001,Adult Social Care and Health,ASCH,Third Party Payments,EGA,01/09/2020,06-10140,972.00,DCK Care Ltd
Nottinghamshire County Council,1111/1001,Adult Social Care and Health,ASCH,Third Party Payments,EGA,01/09/2020,06-10141,999.02,Agincare UK Ltd
Nottinghamshire County Council,1111/1001,Adult Social Care and Health,ASCH,Third Party Payments,EGA,01/09/2020,06-10142,519.60,Agincare UK Ltd
Nottinghamshire County Council,1111/1001,Adult Social Care and Health,ASCH,Third Party Payments,EGA,01/09/2020,06-10143,"1,088.09",Agincare UK Ltd
Nottinghamshire County Council,1111/1001,Adult Social Care and Health,ASCH,Third Party Payments,EGA,01/09/2020,06-10144,"2,303.56",Agincare UK Ltd
Nottinghamshire County Council,1111/1001,Adult Social Care and Health,ASCH,Third Party Payments,EGA,01/09/2020,06-10145,"1,780.00",Truly Care Services Ltd
Nottinghamshire County Council,1111/1001,Adult Social Care and Health,ASCH,Third Party Payments,EGA,01/09/2020,06-10146,672.00,Truly Care Services Ltd
Nottinghamshire County Council,1111/1001,Adult Social Care and Health,ASCH,Third Party Payments,EGA,01/09/2020,06-10147,558.32,Premier Nursing Agency Ltd
Nottinghamshire County Council,1111/1001,Adult Social Care and Health,ASCH,Third Party Payments,EGA,01/09/2020,06-10148,631.62,AMG Consultancy Services Ltd
Nottinghamshire County Council,1111/1001,Adult Social Care and Health,ASCH,Third Party Payments,EGA,01/09/2020,06-10149,535.92,AMG Consultancy Services Ltd
Nottinghamshire County Council,1111/1001,Adult Social Care and Health,ASCH,Third Party Payments,EGA,01/09/2020,06-10150,599.56,Compassionate Care Team Ltd
Nottinghamshire County Council,1111/1001,Adult Social Care and Health,ASCH,Third Party Payments,EGA,01/09/2020,06-10151,"1,918.56",Compassionate Care Team Ltd
Nottinghamshire County Council,1111/1001,Adult Social Care and Health,ASCH,Third Party Payments,EGA,01/09/2020,06-10152,517.16,Comfort Call Ltd
Nottinghamshire County Council,1111/1001,Adult Social Care and Health,ASCH,Third Party Payments,EGA,01/09/2020,06-10153,"2,584.08",Compassionate Care Team Ltd
Nottinghamshire County Council,1111/1001,Adult Social Care and Health,ASCH,Third Party Payments,EGA,01/09/2020,06-10154,646.70,Bhandal Care Group (BSB Care) Ltd
Nottinghamshire County Council,1111/1001,Adult Social Care and Health,ASCH,Third Party Payments,EGA,01/09/2020,06-10155,"2,294.00",Compassionate Care Team Ltd
Nottinghamshire County Council,1111/1001,Adult Social Care and Health,ASCH,Third Party Payments,EGA,01/09/2020,06-10156,544.05,Bhandal Care Group (BSB Care) Ltd
Nottinghamshire County Council,1111/1001,Adult Social Care and Health,ASCH,Third Party Payments,EGA,01/09/2020,06-10157,680.94,Compassionate Care Team Ltd
Nottinghamshire County Council,1111/1001,Adult Social Care and Health,ASCH,Third Party Payments,EGA,01/09/2020,06-10158,609.51,Gemini Exclusive Care
Nottinghamshire County Council,1111/1001,Adult Social Care and Health,ASCH,Third Party Payments,EGA,01/09/2020,06-10159,609.51,Compassionate Care Team Ltd
Nottinghamshire County Council,1111/1001,Adult Social Care and Health,ASCH,Third Party Payments,EGA,01/09/2020,06-10160,717.50,Compassionate Care Team Ltd
Nottinghamshire County Council,1111/1001,Adult Social Care and Health,ASCH,Third Party Payments,EGA,01/09/2020,06-10161,513.52,SPM Quality Care Ltd T/A Caremark(
Nottinghamshire County Council,1111/1001,Adult Social Care and Health,ASCH,Third Party Payments,EGA,01/09/2020,06-10162,627.99,Compassionate Care Team Ltd
Nottinghamshire County Council,1111/1001,Adult Social Care and Health,ASCH,Third Party Payments,EGA,01/09/2020,06-10163,"2,514.24",Compassionate Care Team Ltd
Nottinghamshire County Council,1111/1001,Adult Social Care and Health,ASCH,Third Party Payments,EGA,01/09/2020,06-10164,549.99,Compassionate Care Team Ltd
Nottinghamshire County Council,1111/1001,Adult Social Care and Health,ASCH,Third Party Payments,EGA,01/09/2020,06-10165,"2,590.00",Compassionate Care Team Ltd
Nottinghamshire County Council,1111/1001,Adult Social Care and Health,ASCH,Third Party Payments,EGA,01/09/2020,06-10166,719.48,Compassionate Care Team Ltd
Nottinghamshire County Council,1111/1001,Adult Social Care and Health,ASCH,Third Party Payments,EGA,01/09/2020,06-10167,"1,100.00",Compassionate Care Team Ltd
Nottinghamshire County Council,1111/1001,Adult Social Care and Health,ASCH,Third Party Payments,EGA,01/09/2020,06-10168,"2,072.00",Compassionate Care Team Ltd
Nottinghamshire County Council,1111/1001,Adult Social Care and Health,ASCH,Third Party Payments,EGA,01/09/2020,06-10169,851.00,Compassionate Care Team Ltd
Nottinghamshire County Council,1111/1001,Adult Social Care and Health,ASCH,Third Party Payments,EGA,01/09/2020,06-10170,"2,072.00",Compassionate Care Team Ltd
Nottinghamshire County Council,1111/1001,Adult Social Care and Health,ASCH,Third Party Payments,EGA,01/09/2020,06-10171,"1,955.52",Compassionate Care Team Ltd
Nottinghamshire County Council,1111/1001,Adult Social Care and Health,ASCH,Third Party Payments,EGA,01/09/2020,06-10172,"1,100.00",Compassionate Care Team Ltd
Nottinghamshire County Council,1111/1001,Adult Social Care and Health,ASCH,Third Party Payments,EGA,01/09/2020,06-10173,"1,361.88",Compassionate Care Team Ltd
Nottinghamshire County Council,1111/1001,Adult Social Care and Health,ASCH,Third Party Payments,EGA,01/09/2020,06-10174,614.39,SPM Quality Care Ltd T/A Caremark(
Nottinghamshire County Council,1111/1001,Adult Social Care and Health,ASCH,Third Party Payments,EGA,01/09/2020,06-10175,"1,484.10",Compassionate Care Team Ltd
Nottinghamshire County Council,1111/1001,Adult Social Care and Health,ASCH,Third Party Payments,EGA,01/09/2020,06-10176,"2,514.24",Compassionate Care Team Ltd
Nottinghamshire County Council,1111/1001,Adult Social Care and Health,ASCH,Third Party Payments,EGA,01/09/2020,06-10177,"2,514.24",Compassionate Care Team Ltd
Nottinghamshire County Council,1111/1001,Adult Social Care and Health,ASCH,Third Party Payments,EGA,01/09/2020,06-10178,"2,514.24",Compassionate Care Team Ltd
Nottinghamshire County Council,1111/1001,Adult Social Care and Health,ASCH,Third Party Payments,EGA,01/09/2020,06-10179,697.00,Art Support Limited T/A Kare Plus N
Nottinghamshire County Council,1111/1001,Adult Social Care and Health,ASCH,Third Party Payments,EGA,01/09/2020,06-10180,586.30,Art Support Limited T/A Kare Plus N
Nottinghamshire County Council,1111/1001,Adult Social Care and Health,ASCH,Third Party Payments,EGA,01/09/2020,06-10181,775.74,Gemini Exclusive Care
Nottinghamshire County Council,1111/1001,Adult Social Care and Health,ASCH,Third Party Payments,EGA,01/09/2020,06-10182,714.84,Gemini Exclusive Care
Nottinghamshire County Council,1111/1001,Adult Social Care and Health,ASCH,Third Party Payments,EGA,01/09/2020,06-10183,942.12,Jigsaw Homecare Ltd
Nottinghamshire County Council,1111/1001,Adult Social Care and Health,ASCH,Third Party Payments,EGA,01/09/2020,06-10184,"1,235.25",Comfort Call Ltd
Nottinghamshire County Council,1111/1001,Adult Social Care and Health,ASCH,Third Party Payments,EGA,01/09/2020,06-10185,"1,569.24",Comfort Call Ltd
Nottinghamshire County Council,1111/1001,Adult Social Care and Health,ASCH,Third Party Payments,EGA,01/09/2020,06-10186,"1,824.19",Comfort Call Ltd
Nottinghamshire County Council,1111/1001,Adult Social Care and Health,ASCH,Third Party Payments,EGA,01/09/2020,06-10187,"1,642.48",Comfort Call Ltd
Nottinghamshire County Council,1111/1001,Adult Social Care and Health,ASCH,Third Party Payments,EGA,01/09/2020,06-10188,"1,403.64",Comfort Call Ltd
Nottinghamshire County Council,1111/1001,Adult Social Care and Health,ASCH,Third Party Payments,EGA,01/09/2020,06-10189,558.32,Premier Nursing Agency Ltd
Nottinghamshire County Council,1111/1001,Adult Social Care and Health,ASCH,Third Party Payments,EGA,01/09/2020,06-10190,"1,474.20",Comfort Call Ltd
Nottinghamshire County Council,1111/1001,Adult Social Care and Health,ASCH,Third Party Payments,EGA,01/09/2020,06-10191,517.16,Comfort Call Ltd
Nottinghamshire County Council,1111/1001,Adult Social Care and Health,ASCH,Third Party Payments,EGA,01/09/2020,06-10192,535.50,Compassionate Care Team Ltd
Nottinghamshire County Council,1111/1001,Adult Social Care and Health,ASCH,Third Party Payments,EGA,01/09/2020,06-10193,859.50,Compassionate Care Team Ltd
Nottinghamshire County Council,1111/1001,Adult Social Care and Health,ASCH,Third Party Payments,EGA,01/09/2020,06-10194,981.00,Compassionate Care Team Ltd
Nottinghamshire County Council,1111/1001,Adult Social Care and Health,ASCH,Third Party Payments,EGA,01/09/2020,06-10195,"1,098.00",Compassionate Care Team Ltd
Nottinghamshire County Council,1111/1001,Adult Social Care and Health,ASCH,Third Party Payments,EGA,01/09/2020,06-10196,"1,089.00",Compassionate Care Team Ltd
Nottinghamshire County Council,1111/1001,Adult Social Care and Health,ASCH,Third Party Payments,EGA,01/09/2020,06-10197,827.77,Workwise Healthcare Ltd
Nottinghamshire County Council,1111/1001,Adult Social Care and Health,ASCH,Third Party Payments,EGA,01/09/2020,06-10198,"1,090.52",Workwise Healthcare Ltd
Nottinghamshire County Council,1111/1001,Adult Social Care and Health,ASCH,Third Party Payments,EGA,01/09/2020,06-10199,"1,090.52",Workwise Healthcare Ltd
Nottinghamshire County Council,1111/1001,Adult Social Care and Health,ASCH,Third Party Payments,EGA,01/09/2020,06-10200,917.44,Workwise Healthcare Ltd
Nottinghamshire County Council,1111/1001,Adult Social Care and Health,ASCH,Third Party Payments,EGA,01/09/2020,06-10201,727.04,Workwise Healthcare Ltd
Nottinghamshire County Council,1111/1001,Adult Social Care and Health,ASCH,Third Party Payments,EGA,01/09/2020,06-10202,725.65,Workwise Healthcare Ltd
Nottinghamshire County Council,1111/1001,Adult Social Care and Health,ASCH,Third Party Payments,EGA,01/09/2020,06-10203,727.04,Workwise Healthcare Ltd
Nottinghamshire County Council,1111/1001,Adult Social Care and Health,ASCH,Third Party Payments,EGA,01/09/2020,06-10204,878.48,Workwise Healthcare Ltd
Nottinghamshire County Council,1111/1001,Adult Social Care and Health,ASCH,Third Party Payments,EGA,01/09/2020,06-10205,"2,181.08",Workwise Healthcare Ltd
Nottinghamshire County Council,1111/1001,Adult Social Care and Health,ASCH,Third Party Payments,EGA,01/09/2020,06-10206,513.52,SPM Quality Care Ltd T/A Caremark(
Nottinghamshire County Council,1111/1001,Adult Social Care and Health,ASCH,Third Party Payments,EGA,01/09/2020,06-10207,895.79,Workwise Healthcare Ltd
Nottinghamshire County Council,1111/1001,Adult Social Care and Health,ASCH,Third Party Payments,EGA,01/09/2020,06-10208,724.27,Workwise Healthcare Ltd
Nottinghamshire County Council,1111/1001,Adult Social Care and Health,ASCH,Third Party Payments,EGA,01/09/2020,06-10209,609.81,SPM Quality Care Ltd T/A Caremark(
Nottinghamshire County Council,1111/1001,Adult Social Care and Health,ASCH,Third Party Payments,EGA,01/09/2020,06-10210,796.28,Workwise Healthcare Ltd
Nottinghamshire County Council,1111/1001,Adult Social Care and Health,ASCH,Third Party Payments,EGA,01/09/2020,06-10211,"2,051.23",Workwise Healthcare Ltd
Nottinghamshire County Council,1111/1001,Adult Social Care and Health,ASCH,Third Party Payments,EGA,01/09/2020,06-10212,525.83,Comfort Call Ltd
Nottinghamshire County Council,1111/1001,Adult Social Care and Health,ASCH,Third Party Payments,EGA,01/09/2020,06-10213,"1,312.71",S J W - The Wright Care Ltd
Nottinghamshire County Council,1111/1001,Adult Social Care and Health,ASCH,Third Party Payments,EGA,01/09/2020,06-10214,517.16,Agincare UK Ltd
Nottinghamshire County Council,1111/1001,Adult Social Care and Health,ASCH,Third Party Payments,EGA,01/09/2020,06-10215,643.30,Caremark (Broxtowe & Erewash)
Nottinghamshire County Council,1111/1001,Adult Social Care and Health,ASCH,Third Party Payments,EGA,01/09/2020,06-10216,514.64,Caremark (Broxtowe & Erewash)
Nottinghamshire County Council,1111/1001,Adult Social Care and Health,ASCH,Third Party Payments,EGA,01/09/2020,06-10217,558.32,Premier Nursing Agency Ltd
Nottinghamshire County Council,1111/1001,Adult Social Care and Health,ASCH,Third Party Payments,EGA,01/09/2020,06-10218,514.64,Caremark (Broxtowe & Erewash)
Nottinghamshire County Council,1111/1001,Adult Social Care and Health,ASCH,Third Party Payments,EGA,01/09/2020,06-10219,586.42,Agincare UK Ltd
Nottinghamshire County Council,1111/1001,Adult Social Care and Health,ASCH,Third Party Payments,EGA,01/09/2020,06-10220,759.61,Bhandal Care Group (BSB Care) Ltd
Nottinghamshire County Council,1111/1001,Adult Social Care and Health,ASCH,Third Party Payments,EGA,01/09/2020,06-10221,697.90,Premier Nursing Agency Ltd
Nottinghamshire County Council,1111/1001,Adult Social Care and Health,ASCH,Third Party Payments,EGA,01/09/2020,06-10222,560.90,Leda Homecare Ltd
Nottinghamshire County Council,1111/1001,Adult Social Care and Health,ASCH,Third Party Payments,EGA,01/09/2020,06-10223,641.90,SPM Quality Care Ltd T/A Caremark(
Nottinghamshire County Council,1111/1001,Adult Social Care and Health,ASCH,Third Party Payments,EGA,01/09/2020,06-10224,545.62,SPM Quality Care Ltd T/A Caremark(
Nottinghamshire County Council,1111/1001,Adult Social Care and Health,ASCH,Third Party Payments,EGA,01/09/2020,06-10225,535.05,Comfort Call Ltd
Nottinghamshire County Council,1111/1001,Adult Social Care and Health,ASCH,Third Party Payments,EGA,01/09/2020,06-10226,687.76,Bhandal Care Group (BSB Care) Ltd
Nottinghamshire County Council,1111/1001,Adult Social Care and Health,ASCH,Third Party Payments,EGA,01/09/2020,06-10227,840.39,Agincare UK Ltd
Nottinghamshire County Council,1111/1001,Adult Social Care and Health,ASCH,Third Party Payments,EGA,01/09/2020,06-10228,581.81,Agincare UK Ltd
Nottinghamshire County Council,1111/1001,Adult Social Care and Health,ASCH,Third Party Payments,EGA,01/09/2020,06-10229,577.71,SPM Quality Care Ltd T/A Caremark(
Nottinghamshire County Council,1111/1001,Adult Social Care and Health,ASCH,Third Party Payments,EGA,01/09/2020,06-10230,775.74,Gemini Exclusive Care
Nottinghamshire County Council,1111/1001,Adult Social Care and Health,ASCH,Third Party Payments,EGA,01/09/2020,06-10231,581.81,Comfort Call Ltd
Nottinghamshire County Council,1111/1001,Adult Social Care and Health,ASCH,Third Party Payments,EGA,01/09/2020,06-10232,502.99,Bhandal Care Group (BSB Care) Ltd
Nottinghamshire County Council,1111/1001,Adult Social Care and Health,ASCH,Third Party Payments,EGA,01/09/2020,06-10233,532.20,Paradise Hope Ltd
Nottinghamshire County Council,1111/1001,Adult Social Care and Health,ASCH,Third Party Payments,EGA,01/09/2020,06-10234,581.18,Comfort Call Ltd
Nottinghamshire County Council,1111/1001,Adult Social Care and Health,ASCH,Third Party Payments,EGA,01/09/2020,06-10235,513.52,SPM Quality Care Ltd T/A Caremark(
Nottinghamshire County Council,1111/1001,Adult Social Care and Health,ASCH,Third Party Payments,EGA,01/09/2020,06-10236,669.41,SPM Quality Care Ltd T/A Caremark(
Nottinghamshire County Council,1111/1001,Adult Social Care and Health,ASCH,Third Party Payments,EGA,01/09/2020,06-10237,641.90,SPM Quality Care Ltd T/A Caremark(
Nottinghamshire County Council,1111/1001,Adult Social Care and Health,ASCH,Third Party Payments,EGA,01/09/2020,06-10238,517.16,Comfort Call Ltd
Nottinghamshire County Council,1111/1001,Adult Social Care and Health,ASCH,Third Party Payments,EGA,01/09/2020,06-10239,840.39,Agincare UK Ltd
Nottinghamshire County Council,1111/1001,Adult Social Care and Health,ASCH,Third Party Payments,EGA,01/09/2020,06-10240,646.49,SPM Quality Care Ltd T/A Caremark(
Nottinghamshire County Council,1111/1001,Adult Social Care and Health,ASCH,Third Party Payments,EGA,01/09/2020,06-10241,581.81,Comfort Call Ltd
Nottinghamshire County Council,1111/1001,Adult Social Care and Health,ASCH,Third Party Payments,EGA,01/09/2020,06-10242,553.77,Fosse Healthcare Ltd
Nottinghamshire County Council,1111/1001,Adult Social Care and Health,ASCH,Third Party Payments,EGA,01/09/2020,06-10243,606.51,Fosse Healthcare Ltd
Nottinghamshire County Council,1111/1001,Adult Social Care and Health,ASCH,Third Party Payments,EGA,01/09/2020,06-10244,580.14,Fosse Healthcare Ltd
Nottinghamshire County Council,1111/1001,Adult Social Care and Health,ASCH,Third Party Payments,EGA,01/09/2020,06-10245,580.14,Fosse Healthcare Ltd
Nottinghamshire County Council,1111/1001,Adult Social Care and Health,ASCH,Third Party Payments,EGA,01/09/2020,06-10246,553.77,Fosse Healthcare Ltd
Nottinghamshire County Council,1111/1001,Adult Social Care and Health,ASCH,Third Party Payments,EGA,01/09/2020,06-10247,553.77,Fosse Healthcare Ltd
Nottinghamshire County Council,1111/1001,Adult Social Care and Health,ASCH,Third Party Payments,EGA,01/09/2020,06-10248,553.77,Fosse Healthcare Ltd
Nottinghamshire County Council,1111/1001,Adult Social Care and Health,ASCH,Third Party Payments,EGA,01/09/2020,06-10249,738.36,Fosse Healthcare Ltd
Nottinghamshire County Council,1111/1001,Adult Social Care and Health,ASCH,Third Party Payments,EGA,01/09/2020,06-10250,"1,336.08",Fosse Healthcare Ltd
Nottinghamshire County Council,1111/1001,Adult Social Care and Health,ASCH,Third Party Payments,EGA,01/09/2020,06-10251,"1,423.98",Fosse Healthcare Ltd
Nottinghamshire County Council,1111/1001,Adult Social Care and Health,ASCH,Third Party Payments,EGA,01/09/2020,06-10252,553.77,Fosse Healthcare Ltd
Nottinghamshire County Council,1111/1001,Adult Social Care and Health,ASCH,Third Party Payments,EGA,01/09/2020,06-10253,584.54,Fosse Healthcare Ltd
Nottinghamshire County Council,1111/1001,Adult Social Care and Health,ASCH,Third Party Payments,EGA,01/09/2020,06-10254,509.82,Fosse Healthcare Ltd
Nottinghamshire County Council,1111/1001,Adult Social Care and Health,ASCH,Third Party Payments,EGA,01/09/2020,06-10255,632.88,Fosse Healthcare Ltd
Nottinghamshire County Council,1111/1001,Adult Social Care and Health,ASCH,Third Party Payments,EGA,01/09/2020,06-10256,544.98,Fosse Healthcare Ltd
Nottinghamshire County Council,1111/1001,Adult Social Care and Health,ASCH,Third Party Payments,EGA,01/09/2020,06-10257,571.35,Fosse Healthcare Ltd
Nottinghamshire County Council,1111/1001,Adult Social Care and Health,ASCH,Third Party Payments,EGA,01/09/2020,06-10258,571.35,Fosse Healthcare Ltd
Nottinghamshire County Council,1111/1001,Adult Social Care and Health,ASCH,Third Party Payments,EGA,01/09/2020,06-10259,553.77,Fosse Healthcare Ltd
Nottinghamshire County Council,1111/1001,Adult Social Care and Health,ASCH,Third Party Payments,EGA,01/09/2020,06-10260,517.16,Comfort Call Ltd
Nottinghamshire County Council,1111/1001,Adult Social Care and Health,ASCH,Third Party Payments,EGA,01/09/2020,06-10261,553.77,Fosse Healthcare Ltd
Nottinghamshire County Council,1111/1001,Adult Social Care and Health,ASCH,Third Party Payments,EGA,01/09/2020,06-10262,632.88,Fosse Healthcare Ltd
Nottinghamshire County Council,1111/1001,Adult Social Care and Health,ASCH,Third Party Payments,EGA,01/09/2020,06-10263,597.72,Fosse Healthcare Ltd
Nottinghamshire County Council,1111/1001,Adult Social Care and Health,ASCH,Third Party Payments,EGA,01/09/2020,06-10264,553.77,Fosse Healthcare Ltd
Nottinghamshire County Council,1111/1001,Adult Social Care and Health,ASCH,Third Party Payments,EGA,01/09/2020,06-10265,782.31,Fosse Healthcare Ltd
Nottinghamshire County Council,1111/1001,Adult Social Care and Health,ASCH,Third Party Payments,EGA,01/09/2020,06-10266,799.28,Fosse Healthcare Ltd
Nottinghamshire County Council,1111/1001,Adult Social Care and Health,ASCH,Third Party Payments,EGA,01/09/2020,06-10267,588.93,Fosse Healthcare Ltd
Nottinghamshire County Council,1111/1001,Adult Social Care and Health,ASCH,Third Party Payments,EGA,01/09/2020,06-10268,553.77,Fosse Healthcare Ltd
Nottinghamshire County Council,1111/1001,Adult Social Care and Health,ASCH,Third Party Payments,EGA,01/09/2020,06-10269,624.09,Fosse Healthcare Ltd
Nottinghamshire County Council,1111/1001,Adult Social Care and Health,ASCH,Third Party Payments,EGA,01/09/2020,06-10270,535.63,Comfort Call Ltd
Nottinghamshire County Council,1111/1001,Adult Social Care and Health,ASCH,Third Party Payments,EGA,01/09/2020,06-10271,527.40,Fosse Healthcare Ltd
Nottinghamshire County Council,1111/1001,Adult Social Care and Health,ASCH,Third Party Payments,EGA,01/09/2020,06-10272,725.18,Fosse Healthcare Ltd
Nottinghamshire County Council,1111/1001,Adult Social Care and Health,ASCH,Third Party Payments,EGA,01/09/2020,06-10273,544.98,Fosse Healthcare Ltd
Nottinghamshire County Council,1111/1001,Adult Social Care and Health,ASCH,Third Party Payments,EGA,01/09/2020,06-10274,918.88,Comfort Call Ltd
Nottinghamshire County Council,1111/1001,Adult Social Care and Health,ASCH,Third Party Payments,EGA,01/09/2020,06-10275,527.40,Fosse Healthcare Ltd
Nottinghamshire County Council,1111/1001,Adult Social Care and Health,ASCH,Third Party Payments,EGA,01/09/2020,06-10276,553.77,Fosse Healthcare Ltd
Nottinghamshire County Council,1111/1001,Adult Social Care and Health,ASCH,Third Party Payments,EGA,01/09/2020,06-10277,777.92,Fosse Healthcare Ltd
Nottinghamshire County Council,1111/1001,Adult Social Care and Health,ASCH,Third Party Payments,EGA,01/09/2020,06-10278,624.09,Fosse Healthcare Ltd
Nottinghamshire County Council,1111/1001,Adult Social Care and Health,ASCH,Third Party Payments,EGA,01/09/2020,06-10279,581.81,Comfort Call Ltd
Nottinghamshire County Council,1111/1001,Adult Social Care and Health,ASCH,Third Party Payments,EGA,01/09/2020,06-10280,515.76,Direct Health (uk) Ltd
Nottinghamshire County Council,1111/1001,Adult Social Care and Health,ASCH,Third Party Payments,EGA,01/09/2020,06-10281,515.76,Direct Health (uk) Ltd
Nottinghamshire County Council,1111/1001,Adult Social Care and Health,ASCH,Third Party Payments,EGA,01/09/2020,06-10282,580.23,Direct Health (uk) Ltd
Nottinghamshire County Council,1111/1001,Adult Social Care and Health,ASCH,Third Party Payments,EGA,01/09/2020,06-10283,515.76,Direct Health (uk) Ltd
Nottinghamshire County Council,1111/1001,Adult Social Care and Health,ASCH,Third Party Payments,EGA,01/09/2020,06-10284,516.60,Fosse Healthcare Ltd
Nottinghamshire County Council,1111/1001,Adult Social Care and Health,ASCH,Third Party Payments,EGA,01/09/2020,06-10285,663.12,Direct Health (uk) Ltd
Nottinghamshire County Council,1111/1001,Adult Social Care and Health,ASCH,Third Party Payments,EGA,01/09/2020,06-10286,581.18,Fosse Healthcare Ltd
Nottinghamshire County Council,1111/1001,Adult Social Care and Health,ASCH,Third Party Payments,EGA,01/09/2020,06-10287,580.23,Direct Health (uk) Ltd
Nottinghamshire County Council,1111/1001,Adult Social Care and Health,ASCH,Third Party Payments,EGA,01/09/2020,06-10288,515.76,Direct Health (uk) Ltd
Nottinghamshire County Council,1111/1001,Adult Social Care and Health,ASCH,Third Party Payments,EGA,01/09/2020,06-10289,580.23,Direct Health (uk) Ltd
Nottinghamshire County Council,1111/1001,Adult Social Care and Health,ASCH,Third Party Payments,EGA,01/09/2020,06-10290,580.23,Direct Health (uk) Ltd
Nottinghamshire County Council,1111/1001,Adult Social Care and Health,ASCH,Third Party Payments,EGA,01/09/2020,06-10291,682.65,Fosse Healthcare Ltd
Nottinghamshire County Council,1111/1001,Adult Social Care and Health,ASCH,Third Party Payments,EGA,01/09/2020,06-10292,590.40,Fosse Healthcare Ltd
Nottinghamshire County Council,1111/1001,Adult Social Care and Health,ASCH,Third Party Payments,EGA,01/09/2020,06-10293,581.18,Fosse Healthcare Ltd
Nottinghamshire County Council,1111/1001,Adult Social Care and Health,ASCH,Third Party Payments,EGA,01/09/2020,06-10294,709.17,Direct Health (uk) Ltd
Nottinghamshire County Council,1111/1001,Adult Social Care and Health,ASCH,Third Party Payments,EGA,01/09/2020,06-10295,580.23,Direct Health (uk) Ltd
Nottinghamshire County Council,1111/1001,Adult Social Care and Health,ASCH,Third Party Payments,EGA,01/09/2020,06-10296,515.76,Direct Health (uk) Ltd
Nottinghamshire County Council,1111/1001,Adult Social Care and Health,ASCH,Third Party Payments,EGA,01/09/2020,06-10297,515.76,Direct Health (uk) Ltd
Nottinghamshire County Council,1111/1001,Adult Social Care and Health,ASCH,Third Party Payments,EGA,01/09/2020,06-10298,515.76,Direct Health (uk) Ltd
Nottinghamshire County Council,1111/1001,Adult Social Care and Health,ASCH,Third Party Payments,EGA,01/09/2020,06-10299,581.18,Fosse Healthcare Ltd
Nottinghamshire County Council,1111/1001,Adult Social Care and Health,ASCH,Third Party Payments,EGA,01/09/2020,06-10300,542.08,Bhandal Care Group (BSB Care) Ltd
Nottinghamshire County Council,1111/1001,Adult Social Care and Health,ASCH,Third Party Payments,EGA,01/09/2020,06-10301,580.23,Direct Health (uk) Ltd
Nottinghamshire County Council,1111/1001,Adult Social Care and Health,ASCH,Third Party Payments,EGA,01/09/2020,06-10302,580.23,Direct Health (uk) Ltd
Nottinghamshire County Council,1111/1001,Adult Social Care and Health,ASCH,Third Party Payments,EGA,01/09/2020,06-10303,580.23,Direct Health (uk) Ltd
Nottinghamshire County Council,1111/1001,Adult Social Care and Health,ASCH,Third Party Payments,EGA,01/09/2020,06-10304,580.23,Direct Health (uk) Ltd
Nottinghamshire County Council,1111/1001,Adult Social Care and Health,ASCH,Third Party Payments,EGA,01/09/2020,06-10305,515.76,Direct Health (uk) Ltd
Nottinghamshire County Council,1111/1001,Adult Social Care and Health,ASCH,Third Party Payments,EGA,01/09/2020,06-10306,718.38,Direct Health (uk) Ltd
Nottinghamshire County Council,1111/1001,Adult Social Care and Health,ASCH,Third Party Payments,EGA,01/09/2020,06-10307,581.18,Fosse Healthcare Ltd
Nottinghamshire County Council,1111/1001,Adult Social Care and Health,ASCH,Third Party Payments,EGA,01/09/2020,06-10308,580.23,Direct Health (uk) Ltd
Nottinghamshire County Council,1111/1001,Adult Social Care and Health,ASCH,Third Party Payments,EGA,01/09/2020,06-10309,828.90,Direct Health (uk) Ltd
Nottinghamshire County Council,1111/1001,Adult Social Care and Health,ASCH,Third Party Payments,EGA,01/09/2020,06-10310,575.63,Direct Health (uk) Ltd
Nottinghamshire County Council,1111/1001,Adult Social Care and Health,ASCH,Third Party Payments,EGA,01/09/2020,06-10311,515.76,Direct Health (uk) Ltd
Nottinghamshire County Council,1111/1001,Adult Social Care and Health,ASCH,Third Party Payments,EGA,01/09/2020,06-10312,580.23,Direct Health (uk) Ltd
Nottinghamshire County Council,1111/1001,Adult Social Care and Health,ASCH,Third Party Payments,EGA,01/09/2020,06-10313,580.23,Direct Health (uk) Ltd
Nottinghamshire County Council,1111/1001,Adult Social Care and Health,ASCH,Third Party Payments,EGA,01/09/2020,06-10314,802.58,Fosse Healthcare Ltd
Nottinghamshire County Council,1111/1001,Adult Social Care and Health,ASCH,Third Party Payments,EGA,01/09/2020,06-10315,580.23,Direct Health (uk) Ltd
Nottinghamshire County Council,1111/1001,Adult Social Care and Health,ASCH,Third Party Payments,EGA,01/09/2020,06-10316,515.76,Direct Health (uk) Ltd
Nottinghamshire County Council,1111/1001,Adult Social Care and Health,ASCH,Third Party Payments,EGA,01/09/2020,06-10317,644.70,Direct Health (uk) Ltd
Nottinghamshire County Council,1111/1001,Adult Social Care and Health,ASCH,Third Party Payments,EGA,01/09/2020,06-10318,828.90,Direct Health (uk) Ltd
Nottinghamshire County Council,1111/1001,Adult Social Care and Health,ASCH,Third Party Payments,EGA,01/09/2020,06-10319,607.86,Direct Health (uk) Ltd
Nottinghamshire County Council,1111/1001,Adult Social Care and Health,ASCH,Third Party Payments,EGA,01/09/2020,06-10320,552.60,Direct Health (uk) Ltd
Nottinghamshire County Council,1111/1001,Adult Social Care and Health,ASCH,Third Party Payments,EGA,01/09/2020,06-10321,515.76,Direct Health (uk) Ltd
Nottinghamshire County Council,1111/1001,Adult Social Care and Health,ASCH,Third Party Payments,EGA,01/09/2020,06-10322,586.45,Fosse Healthcare Ltd
Nottinghamshire County Council,1111/1001,Adult Social Care and Health,ASCH,Third Party Payments,EGA,01/09/2020,06-10323,542.08,Bhandal Care Group (BSB Care) Ltd
Nottinghamshire County Council,1111/1001,Adult Social Care and Health,ASCH,Third Party Payments,EGA,01/09/2020,06-10324,602.91,Direct Health (uk) Ltd
Nottinghamshire County Council,1111/1001,Adult Social Care and Health,ASCH,Third Party Payments,EGA,01/09/2020,06-10325,534.18,Direct Health (uk) Ltd
Nottinghamshire County Council,1111/1001,Adult Social Care and Health,ASCH,Third Party Payments,EGA,01/09/2020,06-10326,867.15,Fosse Healthcare Ltd
Nottinghamshire County Council,1111/1001,Adult Social Care and Health,ASCH,Third Party Payments,EGA,01/09/2020,06-10327,784.13,Fosse Healthcare Ltd
Nottinghamshire County Council,1111/1001,Adult Social Care and Health,ASCH,Third Party Payments,EGA,01/09/2020,06-10328,542.08,Bhandal Care Group (BSB Care) Ltd
Nottinghamshire County Council,1111/1001,Adult Social Care and Health,ASCH,Third Party Payments,EGA,01/09/2020,06-10329,580.23,Direct Health (uk) Ltd
Nottinghamshire County Council,1111/1001,Adult Social Care and Health,ASCH,Third Party Payments,EGA,01/09/2020,06-10330,515.76,Direct Health (uk) Ltd
Nottinghamshire County Council,1111/1001,Adult Social Care and Health,ASCH,Third Party Payments,EGA,01/09/2020,06-10331,580.23,Direct Health (uk) Ltd
Nottinghamshire County Council,1111/1001,Adult Social Care and Health,ASCH,Third Party Payments,EGA,01/09/2020,06-10332,839.48,Fosse Healthcare Ltd
Nottinghamshire County Council,1111/1001,Adult Social Care and Health,ASCH,Third Party Payments,EGA,01/09/2020,06-10333,645.75,Fosse Healthcare Ltd
Nottinghamshire County Council,1111/1001,Adult Social Care and Health,ASCH,Third Party Payments,EGA,01/09/2020,06-10334,581.18,Fosse Healthcare Ltd
Nottinghamshire County Council,1111/1001,Adult Social Care and Health,ASCH,Third Party Payments,EGA,03/09/2020,06-10339,"6,194.88",Bracken Villa (Voyage)
Nottinghamshire County Council,1111/1001,Adult Social Care and Health,ASCH,Third Party Payments,EGA,03/09/2020,06-10340,"6,855.72",The Red House (Voyage)
Nottinghamshire County Council,1111/1001,Adult Social Care and Health,ASCH,Third Party Payments,EGA,03/09/2020,06-10341,"6,336.84",Hamilton Lodge (Voyage)
Nottinghamshire County Council,1111/1001,Adult Social Care and Health,ASCH,Third Party Payments,EGA,03/09/2020,06-10342,"7,676.16",Hamilton Lodge (Voyage)
Nottinghamshire County Council,1111/1001,Adult Social Care and Health,ASCH,Third Party Payments,EGA,03/09/2020,06-10343,"6,125.84",Chestnut Grange (Voyage)
Nottinghamshire County Council,1111/1001,Adult Social Care and Health,ASCH,Third Party Payments,EGA,03/09/2020,06-10344,"5,574.12",Chestnut Grange (Voyage)
Nottinghamshire County Council,1111/1001,Adult Social Care and Health,ASCH,Third Party Payments,EGA,03/09/2020,06-10345,"6,484.32",Chestnut Grange (Voyage)
Nottinghamshire County Council,1111/1001,Adult Social Care and Health,ASCH,Third Party Payments,EGA,03/09/2020,06-10346,"7,399.72",Chestnut Grange (Voyage)
Nottinghamshire County Council,1111/1001,Adult Social Care and Health,ASCH,Third Party Payments,EGA,03/09/2020,06-10347,"7,812.64",The Rivers (Voyage)
Nottinghamshire County Council,1111/1001,Adult Social Care and Health,ASCH,Third Party Payments,EGA,03/09/2020,06-10348,"6,592.60",The Rivers (Voyage)
Nottinghamshire County Council,1111/1001,Adult Social Care and Health,ASCH,Third Party Payments,EGA,03/09/2020,06-10349,"6,400.60",Markham House (Voyage)
Nottinghamshire County Council,1111/1001,Adult Social Care and Health,ASCH,Third Party Payments,EGA,03/09/2020,06-10350,"1,133.91",Markham House (Voyage)
Nottinghamshire County Council,1111/1001,Adult Social Care and Health,ASCH,Third Party Payments,EGA,03/09/2020,06-10351,"10,519.40",Markham House (Voyage)
Nottinghamshire County Council,1111/1001,Adult Social Care and Health,ASCH,Third Party Payments,EGA,03/09/2020,06-10352,"7,421.00",Redcliffe House (Voyage)
Nottinghamshire County Council,1111/1001,Adult Social Care and Health,ASCH,Third Party Payments,EGA,03/09/2020,06-10353,"7,123.16",Redcliffe House (Voyage)
Nottinghamshire County Council,1111/1001,Adult Social Care and Health,ASCH,Third Party Payments,EGA,03/09/2020,06-10354,"6,431.48",Redcliffe House (Voyage)
Nottinghamshire County Council,1111/1001,Adult Social Care and Health,ASCH,Third Party Payments,EGA,03/09/2020,06-10355,"6,825.64",The Cedars (Blidworth) (Voyage)
Nottinghamshire County Council,1111/1001,Adult Social Care and Health,ASCH,Third Party Payments,EGA,03/09/2020,06-10356,"5,787.84",Redcliffe House (Voyage)
Nottinghamshire County Council,1111/1001,Adult Social Care and Health,ASCH,Third Party Payments,EGA,03/09/2020,06-10357,"7,272.28",The Cedars (Blidworth) (Voyage)
Nottinghamshire County Council,1111/1001,Adult Social Care and Health,ASCH,Third Party Payments,EGA,03/09/2020,06-10358,"7,176.00",The Cedars (Blidworth) (Voyage)
Nottinghamshire County Council,1111/1001,Adult Social Care and Health,ASCH,Third Party Payments,EGA,03/09/2020,06-10359,"6,136.24",The Cedars (Blidworth) (Voyage)
Nottinghamshire County Council,1111/1001,Adult Social Care and Health,ASCH,Third Party Payments,EGA,03/09/2020,06-10360,"8,680.76",The Cedars (Blidworth) (Voyage)
Nottinghamshire County Council,1111/1001,Adult Social Care and Health,ASCH,Third Party Payments,EGA,03/09/2020,06-10361,"7,526.48",The Cedars (Blidworth) (Voyage)
Nottinghamshire County Council,1111/1001,Adult Social Care and Health,ASCH,Third Party Payments,EGA,03/09/2020,06-10366,"5,576.96",Heather House Care Home (Voyage)
Nottinghamshire County Council,1111/1001,Adult Social Care and Health,ASCH,Third Party Payments,EGA,03/09/2020,06-10367,"11,900.96",Ruddington View (Voyage Ltd)
Nottinghamshire County Council,1111/1001,Adult Social Care and Health,ASCH,Third Party Payments,EGA,03/09/2020,06-10368,"10,600.96",Ruddington View (Voyage Ltd)
Nottinghamshire County Council,1111/1001,Adult Social Care and Health,ASCH,Third Party Payments,EGA,03/09/2020,06-10369,"19,844.00",Ruddington View (Voyage Ltd)
Nottinghamshire County Council,1111/1001,Adult Social Care and Health,ASCH,Third Party Payments,EGA,03/09/2020,06-10371,"9,495.76",Voyage Ltd
Nottinghamshire County Council,1111/1001,Adult Social Care and Health,ASCH,Third Party Payments,EGA,03/09/2020,06-10372,"6,319.60",Voyage Ltd
Nottinghamshire County Council,1111/1001,Adult Social Care and Health,ASCH,Third Party Payments,EGA,03/09/2020,06-10373,"7,458.44",Voyage Ltd
Nottinghamshire County Council,1111/1001,Adult Social Care and Health,ASCH,Third Party Payments,EGA,03/09/2020,06-10374,"6,978.68",Voyage Ltd
Nottinghamshire County Council,1111/1001,Adult Social Care and Health,ASCH,Third Party Payments,EGA,03/09/2020,06-10375,"7,643.44",Voyage Ltd
Nottinghamshire County Council,1111/1001,Adult Social Care and Health,ASCH,Third Party Payments,EGA,03/09/2020,06-10376,"5,925.60",Voyage Ltd
Nottinghamshire County Council,1111/1001,Adult Social Care and Health,ASCH,Third Party Payments,EGA,03/09/2020,06-10377,"6,903.04",Voyage Ltd
Nottinghamshire County Council,1111/1001,Adult Social Care and Health,ASCH,Third Party Payments,EGA,03/09/2020,06-10378,"7,484.64",Voyage Ltd
Nottinghamshire County Council,1111/1001,Adult Social Care and Health,ASCH,Third Party Payments,EGA,03/09/2020,06-10379,"6,727.56",Voyage Ltd
Nottinghamshire County Council,1111/1001,Adult Social Care and Health,ASCH,Third Party Payments,EGA,03/09/2020,06-10380,"6,135.68",Voyage Ltd
Nottinghamshire County Council,1111/1001,Adult Social Care and Health,ASCH,Third Party Payments,EGA,03/09/2020,06-10381,"5,950.88",Voyage Ltd
Nottinghamshire County Council,1111/1001,Adult Social Care and Health,ASCH,Third Party Payments,EGA,03/09/2020,06-10382,"5,787.40",Voyage Ltd
Nottinghamshire County Council,1111/1001,Adult Social Care and Health,ASCH,Third Party Payments,EGA,03/09/2020,06-10383,"5,265.04",Voyage Ltd
Nottinghamshire County Council,1111/1001,Adult Social Care and Health,ASCH,Third Party Payments,EGA,03/09/2020,06-10384,"7,128.24",Voyage Ltd
Nottinghamshire County Council,1111/1001,Adult Social Care and Health,ASCH,Third Party Payments,EGA,03/09/2020,06-10385,"8,545.44",Voyage Ltd
Nottinghamshire County Council,1111/1001,Adult Social Care and Health,ASCH,Third Party Payments,EGA,03/09/2020,06-10386,"7,543.56",Robinia Care - Chaddesden (Voyage L
Nottinghamshire County Council,1111/1001,Adult Social Care and Health,ASCH,Third Party Payments,EGA,03/09/2020,06-10387,"8,393.96",Robinia Care - Chaddesden (Voyage L
Nottinghamshire County Council,1111/1001,Adult Social Care and Health,ASCH,Third Party Payments,EGA,03/09/2020,06-10388,"7,028.04",Voyage Ltd
Nottinghamshire County Council,1111/1001,Adult Social Care and Health,ASCH,Third Party Payments,EGA,04/09/2020,06-10039,"3,485.00",St Peters Residential Home
Nottinghamshire County Council,1111/1001,Adult Social Care and Health,ASCH,Third Party Payments,EGA,04/09/2020,06-10040,897.29,Willow Tree House (My Care)
Nottinghamshire County Council,1111/1001,Adult Social Care and Health,ASCH,Third Party Payments,EGA,04/09/2020,06-10041,"10,476.00",Willow Tree House (My Care)
Nottinghamshire County Council,1111/1001,Adult Social Care and Health,ASCH,Third Party Payments,EGA,04/09/2020,06-10065,"1,325.71",Church Farm Residential (Rusticus L
Nottinghamshire County Council,1111/1001,Adult Social Care and Health,ASCH,Third Party Payments,EGA,04/09/2020,06-10430,"4,532.96",Ashleigh House Residential Home
Nottinghamshire County Council,1111/1001,Adult Social Care and Health,ASCH,Third Party Payments,EGA,04/09/2020,06-10431,"2,266.48",Ascot House Residential Home
Nottinghamshire County Council,1111/1001,Adult Social Care and Health,ASCH,Third Party Payments,EGA,04/09/2020,06-10432,"1,320.00",Ashfield Nursing Home
Nottinghamshire County Council,1111/1001,Adult Social Care and Health,ASCH,Third Party Payments,EGA,04/09/2020,06-10434,"1,526.76",Ashfield Court (Mencap)
Nottinghamshire County Council,1111/1001,Adult Social Care and Health,ASCH,Third Party Payments,EGA,04/09/2020,06-10435,"1,980.00",Ashfield Nursing Home
Nottinghamshire County Council,1111/1001,Adult Social Care and Health,ASCH,Third Party Payments,EGA,04/09/2020,06-10436,"2,592.86",Ashley House Nursing Home
Nottinghamshire County Council,1111/1001,Adult Social Care and Health,ASCH,Third Party Payments,EGA,04/09/2020,06-10438,"10,130.68",Ashfields Residential Home
Nottinghamshire County Council,1111/1001,Adult Social Care and Health,ASCH,Third Party Payments,EGA,04/09/2020,06-10439,"1,050.00",Ravenshead Respite Care Home (Norsa
Nottinghamshire County Council,1111/1001,Adult Social Care and Health,ASCH,Third Party Payments,EGA,04/09/2020,06-10440,"5,442.32",Ashleigh House Residential Home
Nottinghamshire County Council,1111/1001,Adult Social Care and Health,ASCH,Third Party Payments,EGA,04/09/2020,06-10441,564.00,Acer Court Care Home
Nottinghamshire County Council,1111/1001,Adult Social Care and Health,ASCH,Third Party Payments,EGA,04/09/2020,06-10442,"1,967.60",Ashview House Care Home (Mauricare
Nottinghamshire County Council,1111/1001,Adult Social Care and Health,ASCH,Third Party Payments,EGA,04/09/2020,06-10443,"5,473.86",Ashley House Nursing Home
Nottinghamshire County Council,1111/1001,Adult Social Care and Health,ASCH,Third Party Payments,EGA,04/09/2020,06-10444,"8,646.86",Ashlands Residential Care Home
Nottinghamshire County Council,1111/1001,Adult Social Care and Health,ASCH,Third Party Payments,EGA,04/09/2020,06-10445,"2,266.48",Ascot House Residential Home
Nottinghamshire County Council,1111/1001,Adult Social Care and Health,ASCH,Third Party Payments,EGA,04/09/2020,06-10446,923.46,Autism East Midlands
Nottinghamshire County Council,1111/1001,Adult Social Care and Health,ASCH,Third Party Payments,EGA,04/09/2020,06-10447,"1,488.00",Ashfield Nursing Home
Nottinghamshire County Council,1111/1001,Adult Social Care and Health,ASCH,Third Party Payments,EGA,04/09/2020,06-10448,"3,485.00",Albemarle Hall Ltd
Nottinghamshire County Council,1111/1001,Adult Social Care and Health,ASCH,Third Party Payments,EGA,04/09/2020,06-10449,"9,085.71",Ashfield Nursing Home
Nottinghamshire County Council,1111/1001,Adult Social Care and Health,ASCH,Third Party Payments,EGA,04/09/2020,06-10450,"3,181.72",Ashley House Nursing Home
Nottinghamshire County Council,1111/1001,Adult Social Care and Health,ASCH,Third Party Payments,EGA,04/09/2020,06-10452,"2,266.48",Ascot House Residential Home
Nottinghamshire County Council,1111/1001,Adult Social Care and Health,ASCH,Third Party Payments,EGA,04/09/2020,06-10453,"2,266.48",Ascot House Residential Home
Nottinghamshire County Council,1111/1001,Adult Social Care and Health,ASCH,Third Party Payments,EGA,04/09/2020,06-10454,744.00,Ashfield Nursing Home
Nottinghamshire County Council,1111/1001,Adult Social Care and Health,ASCH,Third Party Payments,EGA,04/09/2020,06-10455,"4,500.00",Ashfield Nursing Home
Nottinghamshire County Council,1111/1001,Adult Social Care and Health,ASCH,Third Party Payments,EGA,04/09/2020,06-10456,"5,015.00",Albemarle Hall Ltd
Nottinghamshire County Council,1111/1001,Adult Social Care and Health,ASCH,Third Party Payments,EGA,04/09/2020,06-10457,"1,698.00",Acer Court Care Home
Nottinghamshire County Council,1111/1001,Adult Social Care and Health,ASCH,Third Party Payments,EGA,04/09/2020,06-10458,"5,321.14",Albemarle Court
Nottinghamshire County Council,1111/1001,Adult Social Care and Health,ASCH,Third Party Payments,EGA,04/09/2020,06-10459,"1,599.60",Autism East Midlands
Nottinghamshire County Council,1111/1001,Adult Social Care and Health,ASCH,Third Party Payments,EGA,04/09/2020,06-10460,"1,224.50",Autism East Midlands
Nottinghamshire County Council,1111/1001,Adult Social Care and Health,ASCH,Third Party Payments,EGA,04/09/2020,06-10461,"1,478.60",Autism East Midlands
Nottinghamshire County Council,1111/1001,Adult Social Care and Health,ASCH,Third Party Payments,EGA,04/09/2020,06-10462,"1,032.36",Autism East Midlands
Nottinghamshire County Council,1111/1001,Adult Social Care and Health,ASCH,Third Party Payments,EGA,04/09/2020,06-10463,602.08,Thera East Midlands
Nottinghamshire County Council,1111/1001,Adult Social Care and Health,ASCH,Third Party Payments,EGA,04/09/2020,06-10464,"2,328.00",Broadlands Care Home
Nottinghamshire County Council,1111/1001,Adult Social Care and Health,ASCH,Third Party Payments,EGA,04/09/2020,06-10465,752.60,Portland Residential College
Nottinghamshire County Council,1111/1001,Adult Social Care and Health,ASCH,Third Party Payments,EGA,04/09/2020,06-10466,"2,668.00",Beech House Residential Home
Nottinghamshire County Council,1111/1001,Adult Social Care and Health,ASCH,Third Party Payments,EGA,04/09/2020,06-10467,"2,668.00",Beech House Residential Home
Nottinghamshire County Council,1111/1001,Adult Social Care and Health,ASCH,Third Party Payments,EGA,04/09/2020,06-10468,"2,668.00",Beech House Residential Home
Nottinghamshire County Council,1111/1001,Adult Social Care and Health,ASCH,Third Party Payments,EGA,04/09/2020,06-10469,"2,668.00",Beech House Residential Home
Nottinghamshire County Council,1111/1001,Adult Social Care and Health,ASCH,Third Party Payments,EGA,04/09/2020,06-10470,"4,532.29",The Beeches (Just Care Homes Ltd)
Nottinghamshire County Council,1111/1001,Adult Social Care and Health,ASCH,Third Party Payments,EGA,04/09/2020,06-10471,"2,328.00",Broadlands Care Home
Nottinghamshire County Council,1111/1001,Adult Social Care and Health,ASCH,Third Party Payments,EGA,04/09/2020,06-10472,"2,668.00",Beech House Residential Home
Nottinghamshire County Council,1111/1001,Adult Social Care and Health,ASCH,Third Party Payments,EGA,04/09/2020,06-10473,602.08,Recycling Ollerton & Boughton
Nottinghamshire County Council,1111/1001,Adult Social Care and Health,ASCH,Third Party Payments,EGA,04/09/2020,06-10474,752.60,Recycling Ollerton & Boughton
Nottinghamshire County Council,1111/1001,Adult Social Care and Health,ASCH,Third Party Payments,EGA,04/09/2020,06-10475,"2,408.00",Broadlands Care Home
Nottinghamshire County Council,1111/1001,Adult Social Care and Health,ASCH,Third Party Payments,EGA,04/09/2020,06-10476,"2,668.00",Beech House Residential Home
Nottinghamshire County Council,1111/1001,Adult Social Care and Health,ASCH,Third Party Payments,EGA,04/09/2020,06-10477,"2,668.00",Beech House Residential Home
Nottinghamshire County Council,1111/1001,Adult Social Care and Health,ASCH,Third Party Payments,EGA,04/09/2020,06-10478,752.60,Autism East Midlands
Nottinghamshire County Council,1111/1001,Adult Social Care and Health,ASCH,Third Party Payments,EGA,04/09/2020,06-10479,"2,512.00",Beech House Residential Home
Nottinghamshire County Council,1111/1001,Adult Social Care and Health,ASCH,Third Party Payments,EGA,04/09/2020,06-10480,"1,452.00",Byars Nursing Home
Nottinghamshire County Council,1111/1001,Adult Social Care and Health,ASCH,Third Party Payments,EGA,04/09/2020,06-10482,752.60,Autism East Midlands
Nottinghamshire County Council,1111/1001,Adult Social Care and Health,ASCH,Third Party Payments,EGA,04/09/2020,06-10483,"2,668.00",Beech House Residential Home
Nottinghamshire County Council,1111/1001,Adult Social Care and Health,ASCH,Third Party Payments,EGA,04/09/2020,06-10484,"2,340.00",Broadgate Nursing Home (Minster Car
Nottinghamshire County Council,1111/1001,Adult Social Care and Health,ASCH,Third Party Payments,EGA,04/09/2020,06-10485,"9,585.43",Buddleia House Care Home
Nottinghamshire County Council,1111/1001,Adult Social Care and Health,ASCH,Third Party Payments,EGA,04/09/2020,06-10486,"2,492.00",Buddleia House Care Home
Nottinghamshire County Council,1111/1001,Adult Social Care and Health,ASCH,Third Party Payments,EGA,04/09/2020,06-10487,"1,080.86",Bramwell
Nottinghamshire County Council,1111/1001,Adult Social Care and Health,ASCH,Third Party Payments,EGA,04/09/2020,06-10488,"2,668.00",Beech House Residential Home
Nottinghamshire County Council,1111/1001,Adult Social Care and Health,ASCH,Third Party Payments,EGA,04/09/2020,06-10489,591.44,Autism East Midlands
Nottinghamshire County Council,1111/1001,Adult Social Care and Health,ASCH,Third Party Payments,EGA,04/09/2020,06-10490,"2,452.00",Beech House Residential Home
Nottinghamshire County Council,1111/1001,Adult Social Care and Health,ASCH,Third Party Payments,EGA,04/09/2020,06-10491,"1,067.24",Autism East Midlands
Nottinghamshire County Council,1111/1001,Adult Social Care and Health,ASCH,Third Party Payments,EGA,04/09/2020,06-10492,"2,452.00",Beech House Residential Home
Nottinghamshire County Council,1111/1001,Adult Social Care and Health,ASCH,Third Party Payments,EGA,04/09/2020,06-10493,"1,539.20",Autism East Midlands
Nottinghamshire County Council,1111/1001,Adult Social Care and Health,ASCH,Third Party Payments,EGA,04/09/2020,06-10494,"2,668.00",Beech House Residential Home
Nottinghamshire County Council,1111/1001,Adult Social Care and Health,ASCH,Third Party Payments,EGA,04/09/2020,06-10497,"2,328.00",Broadlands Care Home
Nottinghamshire County Council,1111/1001,Adult Social Care and Health,ASCH,Third Party Payments,EGA,04/09/2020,06-10498,"2,448.00",Broadlands Care Home
Nottinghamshire County Council,1111/1001,Adult Social Care and Health,ASCH,Third Party Payments,EGA,04/09/2020,06-10499,"2,668.00",Beech House Residential Home
Nottinghamshire County Council,1111/1001,Adult Social Care and Health,ASCH,Third Party Payments,EGA,04/09/2020,06-10500,752.60,Autism East Midlands
Nottinghamshire County Council,1111/1001,Adult Social Care and Health,ASCH,Third Party Payments,EGA,04/09/2020,06-10501,"2,668.00",Beech House Residential Home
Nottinghamshire County Council,1111/1001,Adult Social Care and Health,ASCH,Third Party Payments,EGA,04/09/2020,06-10502,922.00,Autism East Midlands
Nottinghamshire County Council,1111/1001,Adult Social Care and Health,ASCH,Third Party Payments,EGA,04/09/2020,06-10503,"2,668.00",Beech House Residential Home
Nottinghamshire County Council,1111/1001,Adult Social Care and Health,ASCH,Third Party Payments,EGA,04/09/2020,06-10504,602.08,Portland Residential College
Nottinghamshire County Council,1111/1001,Adult Social Care and Health,ASCH,Third Party Payments,EGA,04/09/2020,06-10505,"2,668.00",Beech House Residential Home
Nottinghamshire County Council,1111/1001,Adult Social Care and Health,ASCH,Third Party Payments,EGA,04/09/2020,06-10507,"4,904.00",Clipstone Hall & Lodge Care Home (B
Nottinghamshire County Council,1111/1001,Adult Social Care and Health,ASCH,Third Party Payments,EGA,04/09/2020,06-10508,"4,904.00",Clipstone Hall & Lodge Care Home (B
Nottinghamshire County Council,1111/1001,Adult Social Care and Health,ASCH,Third Party Payments,EGA,04/09/2020,06-10509,"4,904.00",Clipstone Hall & Lodge Care Home (B
Nottinghamshire County Council,1111/1001,Adult Social Care and Health,ASCH,Third Party Payments,EGA,04/09/2020,06-10510,752.60,Portland Residential College
Nottinghamshire County Council,1111/1001,Adult Social Care and Health,ASCH,Third Party Payments,EGA,04/09/2020,06-10511,"4,904.00",Clipstone Hall & Lodge Care Home (B
Nottinghamshire County Council,1111/1001,Adult Social Care and Health,ASCH,Third Party Payments,EGA,04/09/2020,06-10512,"4,904.00",Clipstone Hall & Lodge Care Home (B
Nottinghamshire County Council,1111/1001,Adult Social Care and Health,ASCH,Third Party Payments,EGA,04/09/2020,06-10513,"4,904.00",Clipstone Hall & Lodge Care Home (B
Nottinghamshire County Council,1111/1001,Adult Social Care and Health,ASCH,Third Party Payments,EGA,04/09/2020,06-10514,"8,791.44",Chilwell House (Aspire)
Nottinghamshire County Council,1111/1001,Adult Social Care and Health,ASCH,Third Party Payments,EGA,04/09/2020,06-10515,"3,123.12",Cedars N H (Four Seasons)
Nottinghamshire County Council,1111/1001,Adult Social Care and Health,ASCH,Third Party Payments,EGA,04/09/2020,06-10517,963.29,Clipstone Hall & Lodge Care Home (B
Nottinghamshire County Council,1111/1001,Adult Social Care and Health,ASCH,Third Party Payments,EGA,04/09/2020,06-10518,"1,839.00",Clipstone Hall & Lodge Care Home (B
Nottinghamshire County Council,1111/1001,Adult Social Care and Health,ASCH,Third Party Payments,EGA,04/09/2020,06-10519,"22,906.28",Clipstone Hall & Lodge Care Home (B
Nottinghamshire County Council,1111/1001,Adult Social Care and Health,ASCH,Third Party Payments,EGA,04/09/2020,06-10520,897.44,Recycling Ollerton & Boughton
Nottinghamshire County Council,1111/1001,Adult Social Care and Health,ASCH,Third Party Payments,EGA,04/09/2020,06-10521,"1,839.00",Clipstone Hall & Lodge Care Home (B
Nottinghamshire County Council,1111/1001,Adult Social Care and Health,ASCH,Third Party Payments,EGA,04/09/2020,06-10522,"4,904.00",Clipstone Hall & Lodge Care Home (B
Nottinghamshire County Council,1111/1001,Adult Social Care and Health,ASCH,Third Party Payments,EGA,04/09/2020,06-10523,"4,904.00",Clipstone Hall & Lodge Care Home (B
Nottinghamshire County Council,1111/1001,Adult Social Care and Health,ASCH,Third Party Payments,EGA,04/09/2020,06-10524,"1,539.10",Autism East Midlands
Nottinghamshire County Council,1111/1001,Adult Social Care and Health,ASCH,Third Party Payments,EGA,04/09/2020,06-10525,"4,904.00",Clipstone Hall & Lodge Care Home (B
Nottinghamshire County Council,1111/1001,Adult Social Care and Health,ASCH,Third Party Payments,EGA,04/09/2020,06-10526,"2,452.00",Clipstone Hall & Lodge Care Home (B
Nottinghamshire County Council,1111/1001,Adult Social Care and Health,ASCH,Third Party Payments,EGA,04/09/2020,06-10527,"1,298.79",Carlton Care Home
Nottinghamshire County Council,1111/1001,Adult Social Care and Health,ASCH,Third Party Payments,EGA,04/09/2020,06-10528,"1,226.00",Clipstone Hall & Lodge Care Home (B
Nottinghamshire County Council,1111/1001,Adult Social Care and Health,ASCH,Third Party Payments,EGA,04/09/2020,06-10529,"4,904.00",Clipstone Hall & Lodge Care Home (B
Nottinghamshire County Council,1111/1001,Adult Social Care and Health,ASCH,Third Party Payments,EGA,04/09/2020,06-10530,"4,904.00",Clipstone Hall & Lodge Care Home (B
Nottinghamshire County Council,1111/1001,Adult Social Care and Health,ASCH,Third Party Payments,EGA,04/09/2020,06-10531,"4,904.00",Clipstone Hall & Lodge Care Home (B
Nottinghamshire County Council,1111/1001,Adult Social Care and Health,ASCH,Third Party Payments,EGA,04/09/2020,06-10532,752.60,Portland Residential College
Nottinghamshire County Council,1111/1001,Adult Social Care and Health,ASCH,Third Party Payments,EGA,04/09/2020,06-10533,"4,904.00",Clipstone Hall & Lodge Care Home (B
Nottinghamshire County Council,1111/1001,Adult Social Care and Health,ASCH,Third Party Payments,EGA,04/09/2020,06-10534,"2,390.44",Carlton Care Home
Nottinghamshire County Council,1111/1001,Adult Social Care and Health,ASCH,Third Party Payments,EGA,04/09/2020,06-10535,"4,950.00",Church Farm Nursing Home (Rusticus
Nottinghamshire County Council,1111/1001,Adult Social Care and Health,ASCH,Third Party Payments,EGA,04/09/2020,06-10536,"5,148.00",Chetwynd House Care Home Ltd
Nottinghamshire County Council,1111/1001,Adult Social Care and Health,ASCH,Third Party Payments,EGA,04/09/2020,06-10537,"5,072.00",Clipstone Hall & Lodge Care Home (B
Nottinghamshire County Council,1111/1001,Adult Social Care and Health,ASCH,Third Party Payments,EGA,04/09/2020,06-10538,"4,904.00",Clipstone Hall & Lodge Care Home (B
Nottinghamshire County Council,1111/1001,Adult Social Care and Health,ASCH,Third Party Payments,EGA,04/09/2020,06-10539,"4,904.00",Clipstone Hall & Lodge Care Home (B
Nottinghamshire County Council,1111/1001,Adult Social Care and Health,ASCH,Third Party Payments,EGA,04/09/2020,06-10540,"4,904.00",Clipstone Hall & Lodge Care Home (B
Nottinghamshire County Council,1111/1001,Adult Social Care and Health,ASCH,Third Party Payments,EGA,04/09/2020,06-10541,"4,904.00",Clipstone Hall & Lodge Care Home (B
Nottinghamshire County Council,1111/1001,Adult Social Care and Health,ASCH,Third Party Payments,EGA,04/09/2020,06-10542,"4,904.00",Clipstone Hall & Lodge Care Home (B
Nottinghamshire County Council,1111/1001,Adult Social Care and Health,ASCH,Third Party Payments,EGA,04/09/2020,06-10543,"63,137.20",Clipstone House (Elysium HealthCare
Nottinghamshire County Council,1111/1001,Adult Social Care and Health,ASCH,Third Party Payments,EGA,04/09/2020,06-10544,"2,456.00",Carlton Care Home
Nottinghamshire County Council,1111/1001,Adult Social Care and Health,ASCH,Third Party Payments,EGA,04/09/2020,06-10545,"2,456.00",Carlton Care Home
Nottinghamshire County Council,1111/1001,Adult Social Care and Health,ASCH,Third Party Payments,EGA,04/09/2020,06-10546,"1,235.20",Portland Residential College
Nottinghamshire County Council,1111/1001,Adult Social Care and Health,ASCH,Third Party Payments,EGA,04/09/2020,06-10547,"1,942.80",Clarendon Court Care Home
Nottinghamshire County Council,1111/1001,Adult Social Care and Health,ASCH,Third Party Payments,EGA,04/09/2020,06-10548,"4,904.00",Clipstone Hall & Lodge Care Home (B
Nottinghamshire County Council,1111/1001,Adult Social Care and Health,ASCH,Third Party Payments,EGA,04/09/2020,06-10549,"4,904.00",Clipstone Hall & Lodge Care Home (B
Nottinghamshire County Council,1111/1001,Adult Social Care and Health,ASCH,Third Party Payments,EGA,04/09/2020,06-10550,"4,904.00",Clipstone Hall & Lodge Care Home (B
Nottinghamshire County Council,1111/1001,Adult Social Care and Health,ASCH,Third Party Payments,EGA,04/09/2020,06-10551,"4,904.00",Clipstone Hall & Lodge Care Home (B
Nottinghamshire County Council,1111/1001,Adult Social Care and Health,ASCH,Third Party Payments,EGA,04/09/2020,06-10552,"83,123.44",Clipstone House (Elysium HealthCare
Nottinghamshire County Council,1111/1001,Adult Social Care and Health,ASCH,Third Party Payments,EGA,04/09/2020,06-10553,752.60,Thera East Midlands
Nottinghamshire County Council,1111/1001,Adult Social Care and Health,ASCH,Third Party Payments,EGA,04/09/2020,06-10555,525.43,Clipstone Hall & Lodge Care Home (B
Nottinghamshire County Council,1111/1001,Adult Social Care and Health,ASCH,Third Party Payments,EGA,04/09/2020,06-10556,"1,818.30",Carlton Care Home
Nottinghamshire County Council,1111/1001,Adult Social Care and Health,ASCH,Third Party Payments,EGA,04/09/2020,06-10557,"3,399.72",Clifton Manor Care (Monarch)
Nottinghamshire County Council,1111/1001,Adult Social Care and Health,ASCH,Third Party Payments,EGA,04/09/2020,06-10558,"6,628.57",Church Farm Nursing Home (Rusticus
Nottinghamshire County Council,1111/1001,Adult Social Care and Health,ASCH,Third Party Payments,EGA,04/09/2020,06-10559,"4,904.00",Clipstone Hall & Lodge Care Home (B
Nottinghamshire County Council,1111/1001,Adult Social Care and Health,ASCH,Third Party Payments,EGA,04/09/2020,06-10560,"4,904.00",Clipstone Hall & Lodge Care Home (B
Nottinghamshire County Council,1111/1001,Adult Social Care and Health,ASCH,Third Party Payments,EGA,04/09/2020,06-10561,"4,904.00",Clipstone Hall & Lodge Care Home (B
Nottinghamshire County Council,1111/1001,Adult Social Care and Health,ASCH,Third Party Payments,EGA,04/09/2020,06-10562,"1,226.00",Clipstone Hall & Lodge Care Home (B
Nottinghamshire County Council,1111/1001,Adult Social Care and Health,ASCH,Third Party Payments,EGA,04/09/2020,06-10563,"2,456.00",Carlton Care Home
Nottinghamshire County Council,1111/1001,Adult Social Care and Health,ASCH,Third Party Payments,EGA,04/09/2020,06-10564,"1,226.00",Clipstone Hall & Lodge Care Home (B
Nottinghamshire County Council,1111/1001,Adult Social Care and Health,ASCH,Third Party Payments,EGA,04/09/2020,06-10565,975.00,Coppice Lodge (Ideal)
Nottinghamshire County Council,1111/1001,Adult Social Care and Health,ASCH,Third Party Payments,EGA,04/09/2020,06-10566,"6,685.71",Clarendon Court Care Home
Nottinghamshire County Council,1111/1001,Adult Social Care and Health,ASCH,Third Party Payments,EGA,04/09/2020,06-10567,"1,067.24",Autism East Midlands
Nottinghamshire County Council,1111/1001,Adult Social Care and Health,ASCH,Third Party Payments,EGA,04/09/2020,06-10568,"4,904.00",Clipstone Hall & Lodge Care Home (B
Nottinghamshire County Council,1111/1001,Adult Social Care and Health,ASCH,Third Party Payments,EGA,04/09/2020,06-10569,"4,904.00",Clipstone Hall & Lodge Care Home (B
Nottinghamshire County Council,1111/1001,Adult Social Care and Health,ASCH,Third Party Payments,EGA,04/09/2020,06-10570,"2,456.00",Carlton Care Home
Nottinghamshire County Council,1111/1001,Adult Social Care and Health,ASCH,Third Party Payments,EGA,04/09/2020,06-10571,"2,714.71",Clipstone Hall & Lodge Care Home (B
Nottinghamshire County Council,1111/1001,Adult Social Care and Health,ASCH,Third Party Payments,EGA,04/09/2020,06-10572,"1,226.00",Clipstone Hall & Lodge Care Home (B
Nottinghamshire County Council,1111/1001,Adult Social Care and Health,ASCH,Third Party Payments,EGA,04/09/2020,06-10573,752.60,Thera East Midlands
Nottinghamshire County Council,1111/1001,Adult Social Care and Health,ASCH,Third Party Payments,EGA,04/09/2020,06-10574,"4,200.00",Church Farm Residential (Rusticus L
Nottinghamshire County Council,1111/1001,Adult Social Care and Health,ASCH,Third Party Payments,EGA,04/09/2020,06-10575,"6,960.00",Church Farm Nursing Home (Rusticus
Nottinghamshire County Council,1111/1001,Adult Social Care and Health,ASCH,Third Party Payments,EGA,04/09/2020,06-10576,"5,148.00",Chetwynd House Care Home Ltd
Nottinghamshire County Council,1111/1001,Adult Social Care and Health,ASCH,Third Party Payments,EGA,04/09/2020,06-10577,582.30,Nottingham Mencap
Nottinghamshire County Council,1111/1001,Adult Social Care and Health,ASCH,Third Party Payments,EGA,04/09/2020,06-10578,613.00,Clipstone Hall & Lodge Care Home (B
Nottinghamshire County Council,1111/1001,Adult Social Care and Health,ASCH,Third Party Payments,EGA,04/09/2020,06-10579,752.60,Portland Residential College
Nottinghamshire County Council,1111/1001,Adult Social Care and Health,ASCH,Third Party Payments,EGA,04/09/2020,06-10580,"4,904.00",Clipstone Hall & Lodge Care Home (B
Nottinghamshire County Council,1111/1001,Adult Social Care and Health,ASCH,Third Party Payments,EGA,04/09/2020,06-10581,"4,904.00",Clipstone Hall & Lodge Care Home (B
Nottinghamshire County Council,1111/1001,Adult Social Care and Health,ASCH,Third Party Payments,EGA,04/09/2020,06-10582,"4,904.00",Clipstone Hall & Lodge Care Home (B
Nottinghamshire County Council,1111/1001,Adult Social Care and Health,ASCH,Third Party Payments,EGA,04/09/2020,06-10583,"4,904.00",Clipstone Hall & Lodge Care Home (B
Nottinghamshire County Council,1111/1001,Adult Social Care and Health,ASCH,Third Party Payments,EGA,04/09/2020,06-10584,"6,794.29",Church Farm Residential (Rusticus L
Nottinghamshire County Council,1111/1001,Adult Social Care and Health,ASCH,Third Party Payments,EGA,04/09/2020,06-10585,"1,358.00",Drovers Call Care Home (Knights Car
Nottinghamshire County Council,1111/1001,Adult Social Care and Health,ASCH,Third Party Payments,EGA,04/09/2020,06-10587,752.60,Portland Residential College
Nottinghamshire County Council,1111/1001,Adult Social Care and Health,ASCH,Third Party Payments,EGA,04/09/2020,06-10588,673.08,Recycling Ollerton & Boughton
Nottinghamshire County Council,1111/1001,Adult Social Care and Health,ASCH,Third Party Payments,EGA,04/09/2020,06-10589,"13,848.51",Enablement Care (CCT Community)
Nottinghamshire County Council,1111/1001,Adult Social Care and Health,ASCH,Third Party Payments,EGA,04/09/2020,06-10590,"4,671.36",Ernehale Lodge Care Home Ltd
Nottinghamshire County Council,1111/1001,Adult Social Care and Health,ASCH,Third Party Payments,EGA,04/09/2020,06-10591,"6,276.68",Devonshire Manor
Nottinghamshire County Council,1111/1001,Adult Social Care and Health,ASCH,Third Party Payments,EGA,04/09/2020,06-10592,"2,285.71",Dovecote Lane Rehabilitation Unit(A
Nottinghamshire County Council,1111/1001,Adult Social Care and Health,ASCH,Third Party Payments,EGA,04/09/2020,06-10593,"4,445.96",Devonshire Manor
Nottinghamshire County Council,1111/1001,Adult Social Care and Health,ASCH,Third Party Payments,EGA,04/09/2020,06-10594,752.60,Autism East Midlands
Nottinghamshire County Council,1111/1001,Adult Social Care and Health,ASCH,Third Party Payments,EGA,04/09/2020,06-10595,"2,328.00",Enablement Care (CCT Community)
Nottinghamshire County Council,1111/1001,Adult Social Care and Health,ASCH,Third Party Payments,EGA,04/09/2020,06-10596,"3,120.00",Drovers Call Care Home (Knights Car
Nottinghamshire County Council,1111/1001,Adult Social Care and Health,ASCH,Third Party Payments,EGA,04/09/2020,06-10597,"2,588.00",Forest Hill Nursing Home
Nottinghamshire County Council,1111/1001,Adult Social Care and Health,ASCH,Third Party Payments,EGA,04/09/2020,06-10598,602.08,Portland Residential College
Nottinghamshire County Council,1111/1001,Adult Social Care and Health,ASCH,Third Party Payments,EGA,04/09/2020,06-10599,"13,800.84",Forest Hill Nursing Home
Nottinghamshire County Council,1111/1001,Adult Social Care and Health,ASCH,Third Party Payments,EGA,04/09/2020,06-10600,952.85,Forest Manor Care Home (ASHA)
Nottinghamshire County Council,1111/1001,Adult Social Care and Health,ASCH,Third Party Payments,EGA,04/09/2020,06-10601,"2,380.00",Gedling Village Care Home
Nottinghamshire County Council,1111/1001,Adult Social Care and Health,ASCH,Third Party Payments,EGA,04/09/2020,06-10602,"2,380.00",Gedling Village Care Home
Nottinghamshire County Council,1111/1001,Adult Social Care and Health,ASCH,Third Party Payments,EGA,04/09/2020,06-10603,"2,380.00",Gedling Village Care Home
Nottinghamshire County Council,1111/1001,Adult Social Care and Health,ASCH,Third Party Payments,EGA,04/09/2020,06-10604,"1,539.20",Autism East Midlands
Nottinghamshire County Council,1111/1001,Adult Social Care and Health,ASCH,Third Party Payments,EGA,04/09/2020,06-10605,"2,460.00",Gedling Village Care Home
Nottinghamshire County Council,1111/1001,Adult Social Care and Health,ASCH,Third Party Payments,EGA,04/09/2020,06-10606,"2,380.00",Gedling Village Care Home
Nottinghamshire County Council,1111/1001,Adult Social Care and Health,ASCH,Third Party Payments,EGA,04/09/2020,06-10608,752.60,Autism East Midlands
Nottinghamshire County Council,1111/1001,Adult Social Care and Health,ASCH,Third Party Payments,EGA,04/09/2020,06-10610,"2,173.04",Foxby Court Residential Home(order
Nottinghamshire County Council,1111/1001,Adult Social Care and Health,ASCH,Third Party Payments,EGA,04/09/2020,06-10611,"2,380.00",Gedling Village Care Home
Nottinghamshire County Council,1111/1001,Adult Social Care and Health,ASCH,Third Party Payments,EGA,04/09/2020,06-10612,"2,380.00",Gedling Village Care Home
Nottinghamshire County Council,1111/1001,Adult Social Care and Health,ASCH,Third Party Payments,EGA,04/09/2020,06-10613,"1,539.20",Autism East Midlands
Nottinghamshire County Council,1111/1001,Adult Social Care and Health,ASCH,Third Party Payments,EGA,04/09/2020,06-10614,591.44,Autism East Midlands
Nottinghamshire County Council,1111/1001,Adult Social Care and Health,ASCH,Third Party Payments,EGA,04/09/2020,06-10615,752.60,Thera East Midlands
Nottinghamshire County Council,1111/1001,Adult Social Care and Health,ASCH,Third Party Payments,EGA,04/09/2020,06-10616,"2,436.00",Fernleaf Care Home
Nottinghamshire County Council,1111/1001,Adult Social Care and Health,ASCH,Third Party Payments,EGA,04/09/2020,06-10618,"3,630.00",Forest Manor Care Home (ASHA)
Nottinghamshire County Council,1111/1001,Adult Social Care and Health,ASCH,Third Party Payments,EGA,04/09/2020,06-10619,"1,539.10",Autism East Midlands
Nottinghamshire County Council,1111/1001,Adult Social Care and Health,ASCH,Third Party Payments,EGA,04/09/2020,06-10621,"2,512.00",Gedling Village Care Home
Nottinghamshire County Council,1111/1001,Adult Social Care and Health,ASCH,Third Party Payments,EGA,04/09/2020,06-10622,"4,392.28",Gregory Court
Nottinghamshire County Council,1111/1001,Adult Social Care and Health,ASCH,Third Party Payments,EGA,04/09/2020,06-10623,"1,235.20",Portland Residential College
Nottinghamshire County Council,1111/1001,Adult Social Care and Health,ASCH,Third Party Payments,EGA,04/09/2020,06-10624,"2,540.00",Fernleaf Care Home
Nottinghamshire County Council,1111/1001,Adult Social Care and Health,ASCH,Third Party Payments,EGA,04/09/2020,06-10625,"6,960.00",Field House Nursing Home
Nottinghamshire County Council,1111/1001,Adult Social Care and Health,ASCH,Third Party Payments,EGA,04/09/2020,06-10626,800.64,Royal Mencap Society
Nottinghamshire County Council,1111/1001,Adult Social Care and Health,ASCH,Third Party Payments,EGA,04/09/2020,06-10627,"2,380.00",Gedling Village Care Home
Nottinghamshire County Council,1111/1001,Adult Social Care and Health,ASCH,Third Party Payments,EGA,04/09/2020,06-10628,"2,380.00",Gedling Village Care Home
Nottinghamshire County Council,1111/1001,Adult Social Care and Health,ASCH,Third Party Payments,EGA,04/09/2020,06-10629,"2,380.00",Gedling Village Care Home
Nottinghamshire County Council,1111/1001,Adult Social Care and Health,ASCH,Third Party Payments,EGA,04/09/2020,06-10630,"14,413.00",Gregory Court
Nottinghamshire County Council,1111/1001,Adult Social Care and Health,ASCH,Third Party Payments,EGA,04/09/2020,06-10631,"2,244.86",Fernleaf Care Home
Nottinghamshire County Council,1111/1001,Adult Social Care and Health,ASCH,Third Party Payments,EGA,04/09/2020,06-10633,"4,063.43",Giltbrook House Care Home
Nottinghamshire County Council,1111/1001,Adult Social Care and Health,ASCH,Third Party Payments,EGA,04/09/2020,06-10634,"7,225.00",Gedling Village Care Home
Nottinghamshire County Council,1111/1001,Adult Social Care and Health,ASCH,Third Party Payments,EGA,04/09/2020,06-10635,"6,108.60",Glasallt Fawr
Nottinghamshire County Council,1111/1001,Adult Social Care and Health,ASCH,Third Party Payments,EGA,04/09/2020,06-10636,"3,571.68",Forest Hill Nursing Home
Nottinghamshire County Council,1111/1001,Adult Social Care and Health,ASCH,Third Party Payments,EGA,04/09/2020,06-10637,752.60,Recycling Ollerton & Boughton
Nottinghamshire County Council,1111/1001,Adult Social Care and Health,ASCH,Third Party Payments,EGA,04/09/2020,06-10639,"2,380.00",Gedling Village Care Home
Nottinghamshire County Council,1111/1001,Adult Social Care and Health,ASCH,Third Party Payments,EGA,04/09/2020,06-10640,"2,380.00",Gedling Village Care Home
Nottinghamshire County Council,1111/1001,Adult Social Care and Health,ASCH,Third Party Payments,EGA,04/09/2020,06-10641,"1,539.20",Autism East Midlands
Nottinghamshire County Council,1111/1001,Adult Social Care and Health,ASCH,Third Party Payments,EGA,04/09/2020,06-10642,"2,580.00",Gedling Village Care Home
Nottinghamshire County Council,1111/1001,Adult Social Care and Health,ASCH,Third Party Payments,EGA,04/09/2020,06-10643,615.72,Autism East Midlands
Nottinghamshire County Council,1111/1001,Adult Social Care and Health,ASCH,Third Party Payments,EGA,04/09/2020,06-10644,"2,920.00",The Firs
Nottinghamshire County Council,1111/1001,Adult Social Care and Health,ASCH,Third Party Payments,EGA,04/09/2020,06-10645,"1,158.72",Autism East Midlands
Nottinghamshire County Council,1111/1001,Adult Social Care and Health,ASCH,Third Party Payments,EGA,04/09/2020,06-10646,667.00,Forest Manor Care Home (ASHA)
Nottinghamshire County Council,1111/1001,Adult Social Care and Health,ASCH,Third Party Payments,EGA,04/09/2020,06-10647,"2,181.12",Foxby Court Residential Home(order
Nottinghamshire County Council,1111/1001,Adult Social Care and Health,ASCH,Third Party Payments,EGA,04/09/2020,06-10648,"3,492.00",Glenesk
Nottinghamshire County Council,1111/1001,Adult Social Care and Health,ASCH,Third Party Payments,EGA,04/09/2020,06-10649,994.60,Autism East Midlands
Nottinghamshire County Council,1111/1001,Adult Social Care and Health,ASCH,Third Party Payments,EGA,04/09/2020,06-10650,"1,235.20",Portland Residential College
Nottinghamshire County Council,1111/1001,Adult Social Care and Health,ASCH,Third Party Payments,EGA,04/09/2020,06-10651,"4,500.00",Forest Manor Care Home (ASHA)
Nottinghamshire County Council,1111/1001,Adult Social Care and Health,ASCH,Third Party Payments,EGA,04/09/2020,06-10652,"2,380.00",Gedling Village Care Home
Nottinghamshire County Council,1111/1001,Adult Social Care and Health,ASCH,Third Party Payments,EGA,04/09/2020,06-10653,"4,656.00",Haywood Oaks Care Home
Nottinghamshire County Council,1111/1001,Adult Social Care and Health,ASCH,Third Party Payments,EGA,04/09/2020,06-10654,"5,921.72",Homes Together Ltd
Nottinghamshire County Council,1111/1001,Adult Social Care and Health,ASCH,Third Party Payments,EGA,04/09/2020,06-10655,"2,626.04",Hope Lea Project
Nottinghamshire County Council,1111/1001,Adult Social Care and Health,ASCH,Third Party Payments,EGA,04/09/2020,06-10656,"6,171.43",Hatzfeld House Care Home
Nottinghamshire County Council,1111/1001,Adult Social Care and Health,ASCH,Third Party Payments,EGA,04/09/2020,06-10657,"3,200.32",Hatzfeld House Care Home
Nottinghamshire County Council,1111/1001,Adult Social Care and Health,ASCH,Third Party Payments,EGA,04/09/2020,06-10658,"5,337.68",Hatzfeld House Care Home
Nottinghamshire County Council,1111/1001,Adult Social Care and Health,ASCH,Third Party Payments,EGA,04/09/2020,06-10659,900.00,Hatzfeld House Care Home
Nottinghamshire County Council,1111/1001,Adult Social Care and Health,ASCH,Third Party Payments,EGA,04/09/2020,06-10660,"4,656.00",Haywood Oaks Care Home
Nottinghamshire County Council,1111/1001,Adult Social Care and Health,ASCH,Third Party Payments,EGA,04/09/2020,06-10661,"4,656.00",Haywood Oaks Care Home
Nottinghamshire County Council,1111/1001,Adult Social Care and Health,ASCH,Third Party Payments,EGA,04/09/2020,06-10662,"12,921.60",The Hollies
Nottinghamshire County Council,1111/1001,Adult Social Care and Health,ASCH,Third Party Payments,EGA,04/09/2020,06-10663,752.60,Autism East Midlands
Nottinghamshire County Council,1111/1001,Adult Social Care and Health,ASCH,Third Party Payments,EGA,04/09/2020,06-10664,"6,556.00",Hawthorne Nursing Home
Nottinghamshire County Council,1111/1001,Adult Social Care and Health,ASCH,Third Party Payments,EGA,04/09/2020,06-10666,"3,150.00",Hazelford Residential Home
Nottinghamshire County Council,1111/1001,Adult Social Care and Health,ASCH,Third Party Payments,EGA,04/09/2020,06-10667,986.00,The Hollies
Nottinghamshire County Council,1111/1001,Adult Social Care and Health,ASCH,Third Party Payments,EGA,04/09/2020,06-10668,"8,466.44",Hillside House (United Health)
Nottinghamshire County Council,1111/1001,Adult Social Care and Health,ASCH,Third Party Payments,EGA,04/09/2020,06-10669,"2,668.00",Hatzfeld House Care Home
Nottinghamshire County Council,1111/1001,Adult Social Care and Health,ASCH,Third Party Payments,EGA,04/09/2020,06-10670,"4,240.28",Haywood Oaks Care Home
Nottinghamshire County Council,1111/1001,Adult Social Care and Health,ASCH,Third Party Payments,EGA,04/09/2020,06-10671,"4,376.00",Hawthorne Nursing Home
Nottinghamshire County Council,1111/1001,Adult Social Care and Health,ASCH,Third Party Payments,EGA,04/09/2020,06-10672,"1,231.28",Autism East Midlands
Nottinghamshire County Council,1111/1001,Adult Social Care and Health,ASCH,Third Party Payments,EGA,04/09/2020,06-10673,"14,277.44",The Hollies
Nottinghamshire County Council,1111/1001,Adult Social Care and Health,ASCH,Third Party Payments,EGA,04/09/2020,06-10674,752.60,Portland Residential College
Nottinghamshire County Council,1111/1001,Adult Social Care and Health,ASCH,Third Party Payments,EGA,04/09/2020,06-10675,"11,970.32",Heathfield Gardens (Potensial)
Nottinghamshire County Council,1111/1001,Adult Social Care and Health,ASCH,Third Party Payments,EGA,04/09/2020,06-10676,"5,304.00",Hatzfeld House Care Home
Nottinghamshire County Council,1111/1001,Adult Social Care and Health,ASCH,Third Party Payments,EGA,04/09/2020,06-10677,"2,668.00",Hatzfeld House Care Home
Nottinghamshire County Council,1111/1001,Adult Social Care and Health,ASCH,Third Party Payments,EGA,04/09/2020,06-10678,"2,668.00",Hatzfeld House Care Home
Nottinghamshire County Council,1111/1001,Adult Social Care and Health,ASCH,Third Party Payments,EGA,04/09/2020,06-10679,"3,366.36",Hatzfeld House Care Home
Nottinghamshire County Council,1111/1001,Adult Social Care and Health,ASCH,Third Party Payments,EGA,04/09/2020,06-10680,"7,456.00",Hillside Farm Care Home
Nottinghamshire County Council,1111/1001,Adult Social Care and Health,ASCH,Third Party Payments,EGA,04/09/2020,06-10681,"4,656.00",Haywood Oaks Care Home
Nottinghamshire County Council,1111/1001,Adult Social Care and Health,ASCH,Third Party Payments,EGA,04/09/2020,06-10682,"5,331.12",Heanor Park Care Home(Ashmere Derby
Nottinghamshire County Council,1111/1001,Adult Social Care and Health,ASCH,Third Party Payments,EGA,04/09/2020,06-10683,"2,430.64",Hope Lea Project
Nottinghamshire County Council,1111/1001,Adult Social Care and Health,ASCH,Third Party Payments,EGA,04/09/2020,06-10684,"2,430.64",Hope Lea Project
Nottinghamshire County Council,1111/1001,Adult Social Care and Health,ASCH,Third Party Payments,EGA,04/09/2020,06-10685,"3,300.00",Hatzfeld House Care Home
Nottinghamshire County Council,1111/1001,Adult Social Care and Health,ASCH,Third Party Payments,EGA,04/09/2020,06-10686,"3,200.00",Hatzfeld House Care Home
Nottinghamshire County Council,1111/1001,Adult Social Care and Health,ASCH,Third Party Payments,EGA,04/09/2020,06-10687,752.60,Portland Residential College
Nottinghamshire County Council,1111/1001,Adult Social Care and Health,ASCH,Third Party Payments,EGA,04/09/2020,06-10688,"4,376.00",Hawthorne Nursing Home
Nottinghamshire County Council,1111/1001,Adult Social Care and Health,ASCH,Third Party Payments,EGA,04/09/2020,06-10689,"4,656.00",Haywood Oaks Care Home
Nottinghamshire County Council,1111/1001,Adult Social Care and Health,ASCH,Third Party Payments,EGA,04/09/2020,06-10690,"4,532.96",Hawthorne Lodge (Regal)
Nottinghamshire County Council,1111/1001,Adult Social Care and Health,ASCH,Third Party Payments,EGA,04/09/2020,06-10691,"3,092.00",Hatzfeld House Care Home
Nottinghamshire County Council,1111/1001,Adult Social Care and Health,ASCH,Third Party Payments,EGA,04/09/2020,06-10692,"3,196.00",Hatzfeld House Care Home
Nottinghamshire County Council,1111/1001,Adult Social Care and Health,ASCH,Third Party Payments,EGA,04/09/2020,06-10693,602.08,Recycling Ollerton & Boughton
Nottinghamshire County Council,1111/1001,Adult Social Care and Health,ASCH,Third Party Payments,EGA,04/09/2020,06-10694,"4,904.00",Hillside Farm Care Home
Nottinghamshire County Council,1111/1001,Adult Social Care and Health,ASCH,Third Party Payments,EGA,04/09/2020,06-10695,"1,121.80",Recycling Ollerton & Boughton
Nottinghamshire County Council,1111/1001,Adult Social Care and Health,ASCH,Third Party Payments,EGA,04/09/2020,06-10696,"2,430.64",Hope Lea Project
Nottinghamshire County Council,1111/1001,Adult Social Care and Health,ASCH,Third Party Payments,EGA,04/09/2020,06-10697,"3,100.00",Hatzfeld House Care Home
Nottinghamshire County Council,1111/1001,Adult Social Care and Health,ASCH,Third Party Payments,EGA,04/09/2020,06-10698,"2,328.00",Haywood Oaks Care Home
Nottinghamshire County Council,1111/1001,Adult Social Care and Health,ASCH,Third Party Payments,EGA,04/09/2020,06-10699,"15,364.08",The Hollies
Nottinghamshire County Council,1111/1001,Adult Social Care and Health,ASCH,Third Party Payments,EGA,04/09/2020,06-10700,"4,532.96",Hawthorne Lodge (Regal)
Nottinghamshire County Council,1111/1001,Adult Social Care and Health,ASCH,Third Party Payments,EGA,04/09/2020,06-10701,"2,208.00",Hillside Farm Care Home
Nottinghamshire County Council,1111/1001,Adult Social Care and Health,ASCH,Third Party Payments,EGA,04/09/2020,06-10702,752.60,Autism East Midlands
Nottinghamshire County Council,1111/1001,Adult Social Care and Health,ASCH,Third Party Payments,EGA,04/09/2020,06-10703,"6,028.48",Heathfield Gardens (Potensial)
Nottinghamshire County Council,1111/1001,Adult Social Care and Health,ASCH,Third Party Payments,EGA,04/09/2020,06-10704,"3,525.00",Hazelford Residential Home
Nottinghamshire County Council,1111/1001,Adult Social Care and Health,ASCH,Third Party Payments,EGA,04/09/2020,06-10705,752.60,Autism East Midlands
Nottinghamshire County Council,1111/1001,Adult Social Care and Health,ASCH,Third Party Payments,EGA,04/09/2020,06-10706,"3,349.60",Hill House Care Home
Nottinghamshire County Council,1111/1001,Adult Social Care and Health,ASCH,Third Party Payments,EGA,04/09/2020,06-10707,"2,668.00",Hatzfeld House Care Home
Nottinghamshire County Council,1111/1001,Adult Social Care and Health,ASCH,Third Party Payments,EGA,04/09/2020,06-10708,"6,556.00",Hawthorne Nursing Home
Nottinghamshire County Council,1111/1001,Adult Social Care and Health,ASCH,Third Party Payments,EGA,04/09/2020,06-10709,"4,912.00",Hawthorne Nursing Home
Nottinghamshire County Council,1111/1001,Adult Social Care and Health,ASCH,Third Party Payments,EGA,04/09/2020,06-10710,"4,912.00",Hawthorne Nursing Home
Nottinghamshire County Council,1111/1001,Adult Social Care and Health,ASCH,Third Party Payments,EGA,04/09/2020,06-10711,"4,532.96",Hawthorne Lodge (Regal)
Nottinghamshire County Council,1111/1001,Adult Social Care and Health,ASCH,Third Party Payments,EGA,04/09/2020,06-10712,"3,386.64",Hollybank Nursing Home
Nottinghamshire County Council,1111/1001,Adult Social Care and Health,ASCH,Third Party Payments,EGA,04/09/2020,06-10713,"11,117.23",Heathcotes Enright (Head Office)
Nottinghamshire County Council,1111/1001,Adult Social Care and Health,ASCH,Third Party Payments,EGA,04/09/2020,06-10714,"4,008.00",Hatzfeld House Care Home
Nottinghamshire County Council,1111/1001,Adult Social Care and Health,ASCH,Third Party Payments,EGA,04/09/2020,06-10715,"12,385.71",Hatzfeld House Care Home
Nottinghamshire County Council,1111/1001,Adult Social Care and Health,ASCH,Third Party Payments,EGA,04/09/2020,06-10716,"3,349.12",Hatzfeld House Care Home
Nottinghamshire County Council,1111/1001,Adult Social Care and Health,ASCH,Third Party Payments,EGA,04/09/2020,06-10719,"4,684.42",Lawn Park (Four Seasons)
Nottinghamshire County Council,1111/1001,Adult Social Care and Health,ASCH,Third Party Payments,EGA,04/09/2020,06-10720,"2,494.29",Loxley Lodge Care Home Ltd
Nottinghamshire County Council,1111/1001,Adult Social Care and Health,ASCH,Third Party Payments,EGA,04/09/2020,06-10722,"6,206.13",Landermeads Nursing Home
Nottinghamshire County Council,1111/1001,Adult Social Care and Health,ASCH,Third Party Payments,EGA,04/09/2020,06-10723,"4,201.43",Jubilee Court (Runwood)
Nottinghamshire County Council,1111/1001,Adult Social Care and Health,ASCH,Third Party Payments,EGA,04/09/2020,06-10724,"14,062.40",Jubilee Court (Sun Health)
Nottinghamshire County Council,1111/1001,Adult Social Care and Health,ASCH,Third Party Payments,EGA,04/09/2020,06-10725,"16,513.00",Landermeads Nursing Home
Nottinghamshire County Council,1111/1001,Adult Social Care and Health,ASCH,Third Party Payments,EGA,04/09/2020,06-10726,"2,266.48",Kingsbury House Ltd
Nottinghamshire County Council,1111/1001,Adult Social Care and Health,ASCH,Third Party Payments,EGA,04/09/2020,06-10727,"1,301.24",Kingsbury House Ltd
Nottinghamshire County Council,1111/1001,Adult Social Care and Health,ASCH,Third Party Payments,EGA,04/09/2020,06-10729,"1,164.00",Loxley Lodge Care Home Ltd
Nottinghamshire County Council,1111/1001,Adult Social Care and Health,ASCH,Third Party Payments,EGA,04/09/2020,06-10730,"2,904.00",Landermeads Nursing Home
Nottinghamshire County Council,1111/1001,Adult Social Care and Health,ASCH,Third Party Payments,EGA,04/09/2020,06-10731,"3,712.00",Landermeads Nursing Home
Nottinghamshire County Council,1111/1001,Adult Social Care and Health,ASCH,Third Party Payments,EGA,04/09/2020,06-10732,"4,460.88",Landermeads Nursing Home
Nottinghamshire County Council,1111/1001,Adult Social Care and Health,ASCH,Third Party Payments,EGA,04/09/2020,06-10733,"2,266.48",Kingsbury House Ltd
Nottinghamshire County Council,1111/1001,Adult Social Care and Health,ASCH,Third Party Payments,EGA,04/09/2020,06-10734,"2,392.08",Kingsbury House Ltd
Nottinghamshire County Council,1111/1001,Adult Social Care and Health,ASCH,Third Party Payments,EGA,04/09/2020,06-10735,"23,928.32",Levitt Mill (Craegmoor)
Nottinghamshire County Council,1111/1001,Adult Social Care and Health,ASCH,Third Party Payments,EGA,04/09/2020,06-10736,986.00,Limes Nursing & Residential Home
Nottinghamshire County Council,1111/1001,Adult Social Care and Health,ASCH,Third Party Payments,EGA,04/09/2020,06-10737,"11,400.50",Innova House Care Home
Nottinghamshire County Council,1111/1001,Adult Social Care and Health,ASCH,Third Party Payments,EGA,04/09/2020,06-10738,"2,904.00",Landermeads Nursing Home
Nottinghamshire County Council,1111/1001,Adult Social Care and Health,ASCH,Third Party Payments,EGA,04/09/2020,06-10739,"3,136.00",Landermeads Nursing Home
Nottinghamshire County Council,1111/1001,Adult Social Care and Health,ASCH,Third Party Payments,EGA,04/09/2020,06-10740,"2,266.48",Kingsbury House Ltd
Nottinghamshire County Council,1111/1001,Adult Social Care and Health,ASCH,Third Party Payments,EGA,04/09/2020,06-10741,"20,490.32",Larwood House T/A Potens
Nottinghamshire County Council,1111/1001,Adult Social Care and Health,ASCH,Third Party Payments,EGA,04/09/2020,06-10742,"4,356.00",Landermeads Nursing Home
Nottinghamshire County Council,1111/1001,Adult Social Care and Health,ASCH,Third Party Payments,EGA,04/09/2020,06-10744,"2,977.43",Jubilee Court (Runwood)
Nottinghamshire County Council,1111/1001,Adult Social Care and Health,ASCH,Third Party Payments,EGA,04/09/2020,06-10745,"2,904.00",Landermeads Nursing Home
Nottinghamshire County Council,1111/1001,Adult Social Care and Health,ASCH,Third Party Payments,EGA,04/09/2020,06-10746,"2,904.00",Landermeads Nursing Home
Nottinghamshire County Council,1111/1001,Adult Social Care and Health,ASCH,Third Party Payments,EGA,04/09/2020,06-10747,"2,904.00",Landermeads Nursing Home
Nottinghamshire County Council,1111/1001,Adult Social Care and Health,ASCH,Third Party Payments,EGA,04/09/2020,06-10749,"2,688.00",Kingsthorpe View Nursing Home (Beec
Nottinghamshire County Council,1111/1001,Adult Social Care and Health,ASCH,Third Party Payments,EGA,04/09/2020,06-10750,"2,494.29",Loxley Lodge Care Home Ltd
Nottinghamshire County Council,1111/1001,Adult Social Care and Health,ASCH,Third Party Payments,EGA,04/09/2020,06-10751,"4,437.87",Jubilee Court (Runwood)
Nottinghamshire County Council,1111/1001,Adult Social Care and Health,ASCH,Third Party Payments,EGA,04/09/2020,06-10752,"3,451.00",Limes Nursing & Residential Home
Nottinghamshire County Council,1111/1001,Adult Social Care and Health,ASCH,Third Party Payments,EGA,04/09/2020,06-10753,"2,904.00",Landermeads Nursing Home
Nottinghamshire County Council,1111/1001,Adult Social Care and Health,ASCH,Third Party Payments,EGA,04/09/2020,06-10754,"2,904.00",Landermeads Nursing Home
Nottinghamshire County Council,1111/1001,Adult Social Care and Health,ASCH,Third Party Payments,EGA,04/09/2020,06-10755,"2,904.00",Landermeads Nursing Home
Nottinghamshire County Council,1111/1001,Adult Social Care and Health,ASCH,Third Party Payments,EGA,04/09/2020,06-10756,"2,266.48",Kingsbury House Ltd
Nottinghamshire County Council,1111/1001,Adult Social Care and Health,ASCH,Third Party Payments,EGA,04/09/2020,06-10757,"2,188.00",Leen Valley Care Home (1st Care)
Nottinghamshire County Council,1111/1001,Adult Social Care and Health,ASCH,Third Party Payments,EGA,04/09/2020,06-10758,"1,457.90",Landermeads Nursing Home
Nottinghamshire County Council,1111/1001,Adult Social Care and Health,ASCH,Third Party Payments,EGA,04/09/2020,06-10760,"1,247.14",Loxley Lodge Care Home Ltd
Nottinghamshire County Council,1111/1001,Adult Social Care and Health,ASCH,Third Party Payments,EGA,04/09/2020,06-10761,"3,857.14",Leawood Manor (Runwood)
Nottinghamshire County Council,1111/1001,Adult Social Care and Health,ASCH,Third Party Payments,EGA,04/09/2020,06-10762,"10,060.29",Landermeads Nursing Home
Nottinghamshire County Council,1111/1001,Adult Social Care and Health,ASCH,Third Party Payments,EGA,04/09/2020,06-10763,"2,904.00",Landermeads Nursing Home
Nottinghamshire County Council,1111/1001,Adult Social Care and Health,ASCH,Third Party Payments,EGA,04/09/2020,06-10764,"1,916.00",Ladyfield Care Home
Nottinghamshire County Council,1111/1001,Adult Social Care and Health,ASCH,Third Party Payments,EGA,04/09/2020,06-10765,556.00,Landermeads Nursing Home
Nottinghamshire County Council,1111/1001,Adult Social Care and Health,ASCH,Third Party Payments,EGA,04/09/2020,06-10766,"3,318.78",Kingfisher Court
Nottinghamshire County Council,1111/1001,Adult Social Care and Health,ASCH,Third Party Payments,EGA,04/09/2020,06-10767,"2,660.57",Loxley Lodge Care Home Ltd
Nottinghamshire County Council,1111/1001,Adult Social Care and Health,ASCH,Third Party Payments,EGA,04/09/2020,06-10768,"3,589.00",Jubilee Court (Runwood)
Nottinghamshire County Council,1111/1001,Adult Social Care and Health,ASCH,Third Party Payments,EGA,04/09/2020,06-10771,"3,504.00",Landermeads Nursing Home
Nottinghamshire County Council,1111/1001,Adult Social Care and Health,ASCH,Third Party Payments,EGA,04/09/2020,06-10772,"2,904.00",Landermeads Nursing Home
Nottinghamshire County Council,1111/1001,Adult Social Care and Health,ASCH,Third Party Payments,EGA,04/09/2020,06-10773,"3,241.76",Landermeads Nursing Home
Nottinghamshire County Council,1111/1001,Adult Social Care and Health,ASCH,Third Party Payments,EGA,04/09/2020,06-10774,"2,716.00",Landermeads Nursing Home
Nottinghamshire County Council,1111/1001,Adult Social Care and Health,ASCH,Third Party Payments,EGA,04/09/2020,06-10775,"2,904.00",Landermeads Nursing Home
Nottinghamshire County Council,1111/1001,Adult Social Care and Health,ASCH,Third Party Payments,EGA,04/09/2020,06-10776,"2,904.00",Landermeads Nursing Home
Nottinghamshire County Council,1111/1001,Adult Social Care and Health,ASCH,Third Party Payments,EGA,04/09/2020,06-10777,"4,626.68",Landermeads Nursing Home
Nottinghamshire County Council,1111/1001,Adult Social Care and Health,ASCH,Third Party Payments,EGA,04/09/2020,06-10778,"2,752.30",Kingfisher Court
Nottinghamshire County Council,1111/1001,Adult Social Care and Health,ASCH,Third Party Payments,EGA,04/09/2020,06-10779,"1,746.00",Loxley Lodge Care Home Ltd
Nottinghamshire County Council,1111/1001,Adult Social Care and Health,ASCH,Third Party Payments,EGA,04/09/2020,06-10783,"3,065.00",Jubilee Court (Runwood)
Nottinghamshire County Council,1111/1001,Adult Social Care and Health,ASCH,Third Party Payments,EGA,04/09/2020,06-10784,799.50,Loreto Cottage
Nottinghamshire County Council,1111/1001,Adult Social Care and Health,ASCH,Third Party Payments,EGA,04/09/2020,06-10785,"2,904.00",Landermeads Nursing Home
Nottinghamshire County Council,1111/1001,Adult Social Care and Health,ASCH,Third Party Payments,EGA,04/09/2020,06-10786,"4,114.68",Landermeads Nursing Home
Nottinghamshire County Council,1111/1001,Adult Social Care and Health,ASCH,Third Party Payments,EGA,04/09/2020,06-10787,"2,230.44",Landermeads Nursing Home
Nottinghamshire County Council,1111/1001,Adult Social Care and Health,ASCH,Third Party Payments,EGA,04/09/2020,06-10788,"2,266.48",Kingsbury House Ltd
Nottinghamshire County Council,1111/1001,Adult Social Care and Health,ASCH,Third Party Payments,EGA,04/09/2020,06-10789,"2,188.00",Leen Valley Care Home (1st Care)
Nottinghamshire County Council,1111/1001,Adult Social Care and Health,ASCH,Third Party Payments,EGA,04/09/2020,06-10790,"4,376.00",Millington Spring Care Centre Ltd
Nottinghamshire County Council,1111/1001,Adult Social Care and Health,ASCH,Third Party Payments,EGA,04/09/2020,06-10791,633.86,The Moorlands (Regal Care)
Nottinghamshire County Council,1111/1001,Adult Social Care and Health,ASCH,Third Party Payments,EGA,04/09/2020,06-10793,"4,376.00",Millington Spring Care Centre Ltd
Nottinghamshire County Council,1111/1001,Adult Social Care and Health,ASCH,Third Party Payments,EGA,04/09/2020,06-10794,"1,179.16",Ashlands Road (NCHA)
Nottinghamshire County Council,1111/1001,Adult Social Care and Health,ASCH,Third Party Payments,EGA,04/09/2020,06-10795,"6,296.00",Nottingham Care Village Ltd
Nottinghamshire County Council,1111/1001,Adult Social Care and Health,ASCH,Third Party Payments,EGA,04/09/2020,06-10796,"4,288.00",The Moorlands (Regal Care)
Nottinghamshire County Council,1111/1001,Adult Social Care and Health,ASCH,Third Party Payments,EGA,04/09/2020,06-10797,"1,839.00",Magnolia House Care Home & Haigh He
Nottinghamshire County Council,1111/1001,Adult Social Care and Health,ASCH,Third Party Payments,EGA,04/09/2020,06-10798,"1,190.00",Magnolia House Care Home & Haigh He
Nottinghamshire County Council,1111/1001,Adult Social Care and Health,ASCH,Third Party Payments,EGA,04/09/2020,06-10799,"5,008.00",Nottingham Care Village Ltd
Nottinghamshire County Council,1111/1001,Adult Social Care and Health,ASCH,Third Party Payments,EGA,04/09/2020,06-10800,765.00,Nottingham Care Village Ltd
Nottinghamshire County Council,1111/1001,Adult Social Care and Health,ASCH,Third Party Payments,EGA,04/09/2020,06-10801,"7,436.00",Nottingham Care Village Ltd
Nottinghamshire County Council,1111/1001,Adult Social Care and Health,ASCH,Third Party Payments,EGA,04/09/2020,06-10802,"3,944.00",The Moorlands (Regal Care)
Nottinghamshire County Council,1111/1001,Adult Social Care and Health,ASCH,Third Party Payments,EGA,04/09/2020,06-10803,"3,944.00",The Moorlands (Regal Care)
Nottinghamshire County Council,1111/1001,Adult Social Care and Health,ASCH,Third Party Payments,EGA,04/09/2020,06-10804,"2,380.00",Moriah House
Nottinghamshire County Council,1111/1001,Adult Social Care and Health,ASCH,Third Party Payments,EGA,04/09/2020,06-10805,"6,360.00",Nottingham Care Village Ltd
Nottinghamshire County Council,1111/1001,Adult Social Care and Health,ASCH,Third Party Payments,EGA,04/09/2020,06-10806,"3,944.00",The Moorlands (Regal Care)
Nottinghamshire County Council,1111/1001,Adult Social Care and Health,ASCH,Third Party Payments,EGA,04/09/2020,06-10807,"4,288.00",The Moorlands (Regal Care)
Nottinghamshire County Council,1111/1001,Adult Social Care and Health,ASCH,Third Party Payments,EGA,04/09/2020,06-10808,"4,288.00",The Moorlands (Regal Care)
Nottinghamshire County Council,1111/1001,Adult Social Care and Health,ASCH,Third Party Payments,EGA,04/09/2020,06-10809,"3,944.00",The Moorlands (Regal Care)
Nottinghamshire County Council,1111/1001,Adult Social Care and Health,ASCH,Third Party Payments,EGA,04/09/2020,06-10810,"3,887.20",Moorgate Hollow Care Home
Nottinghamshire County Council,1111/1001,Adult Social Care and Health,ASCH,Third Party Payments,EGA,04/09/2020,06-10811,"4,288.00",The Moorlands (Regal Care)
Nottinghamshire County Council,1111/1001,Adult Social Care and Health,ASCH,Third Party Payments,EGA,04/09/2020,06-10812,"5,695.00",Nottingham Care Village Ltd
Nottinghamshire County Council,1111/1001,Adult Social Care and Health,ASCH,Third Party Payments,EGA,04/09/2020,06-10815,"2,452.00",Orchard House
Nottinghamshire County Council,1111/1001,Adult Social Care and Health,ASCH,Third Party Payments,EGA,04/09/2020,06-10816,"3,341.32",The Park Residential Care Home (Hat
Nottinghamshire County Council,1111/1001,Adult Social Care and Health,ASCH,Third Party Payments,EGA,04/09/2020,06-10817,"2,248.84",The Park Residential Care Home (Hat
Nottinghamshire County Council,1111/1001,Adult Social Care and Health,ASCH,Third Party Payments,EGA,04/09/2020,06-10818,"1,147.14",Park House Nursing Home (Eastgate)
Nottinghamshire County Council,1111/1001,Adult Social Care and Health,ASCH,Third Party Payments,EGA,04/09/2020,06-10819,"7,799.99",Orchard House
Nottinghamshire County Council,1111/1001,Adult Social Care and Health,ASCH,Third Party Payments,EGA,04/09/2020,06-10820,"3,090.72",Oaks Care H (Nottm City)
Nottinghamshire County Council,1111/1001,Adult Social Care and Health,ASCH,Third Party Payments,EGA,04/09/2020,06-10821,"2,640.00",Red Rose N H (Red Homes)
Nottinghamshire County Council,1111/1001,Adult Social Care and Health,ASCH,Third Party Payments,EGA,04/09/2020,06-10822,"2,588.00",Rylands Residential Care Home
Nottinghamshire County Council,1111/1001,Adult Social Care and Health,ASCH,Third Party Payments,EGA,04/09/2020,06-10823,"2,307.08",Rosemount Care Home
Nottinghamshire County Council,1111/1001,Adult Social Care and Health,ASCH,Third Party Payments,EGA,04/09/2020,06-10824,"1,164.00",Red Oaks Care Community (Red Homes)
Nottinghamshire County Council,1111/1001,Adult Social Care and Health,ASCH,Third Party Payments,EGA,04/09/2020,06-10825,"2,560.00",Radcliffe Manor House
Nottinghamshire County Council,1111/1001,Adult Social Care and Health,ASCH,Third Party Payments,EGA,04/09/2020,06-10826,"2,380.00",Rylands Residential Care Home
Nottinghamshire County Council,1111/1001,Adult Social Care and Health,ASCH,Third Party Payments,EGA,04/09/2020,06-10827,"5,000.00",Ruddington Manor Care Centre
Nottinghamshire County Council,1111/1001,Adult Social Care and Health,ASCH,Third Party Payments,EGA,04/09/2020,06-10828,"1,190.00",Red Rose N H (Red Homes)
Nottinghamshire County Council,1111/1001,Adult Social Care and Health,ASCH,Third Party Payments,EGA,04/09/2020,06-10829,"24,759.20",Roxby House (Options Autism (2) Ltd
Nottinghamshire County Council,1111/1001,Adult Social Care and Health,ASCH,Third Party Payments,EGA,04/09/2020,06-10830,"2,640.00",Red Rose N H (Red Homes)
Nottinghamshire County Council,1111/1001,Adult Social Care and Health,ASCH,Third Party Payments,EGA,04/09/2020,06-10832,765.00,Red Rose N H (Red Homes)
Nottinghamshire County Council,1111/1001,Adult Social Care and Health,ASCH,Third Party Payments,EGA,04/09/2020,06-10833,"1,164.00",Red Oaks Care Community (Red Homes)
Nottinghamshire County Council,1111/1001,Adult Social Care and Health,ASCH,Third Party Payments,EGA,04/09/2020,06-10834,"2,588.00",Rylands Residential Care Home
Nottinghamshire County Council,1111/1001,Adult Social Care and Health,ASCH,Third Party Payments,EGA,04/09/2020,06-10835,"2,380.00",Rylands Residential Care Home
Nottinghamshire County Council,1111/1001,Adult Social Care and Health,ASCH,Third Party Payments,EGA,04/09/2020,06-10836,"2,014.14",Red Oaks Care Community (Red Homes)
Nottinghamshire County Council,1111/1001,Adult Social Care and Health,ASCH,Third Party Payments,EGA,04/09/2020,06-10837,"2,380.00",Rylands Residential Care Home
Nottinghamshire County Council,1111/1001,Adult Social Care and Health,ASCH,Third Party Payments,EGA,04/09/2020,06-10838,"2,588.00",Rylands Residential Care Home
Nottinghamshire County Council,1111/1001,Adult Social Care and Health,ASCH,Third Party Payments,EGA,04/09/2020,06-10840,"2,380.00",Shortwood House Rest Home
Nottinghamshire County Council,1111/1001,Adult Social Care and Health,ASCH,Third Party Payments,EGA,04/09/2020,06-10841,"3,569.08",Sandbourne House
Nottinghamshire County Council,1111/1001,Adult Social Care and Health,ASCH,Third Party Payments,EGA,04/09/2020,06-10843,"2,380.00",Shortwood House Rest Home
Nottinghamshire County Council,1111/1001,Adult Social Care and Health,ASCH,Third Party Payments,EGA,04/09/2020,06-10845,"2,380.00",Shortwood House Rest Home
Nottinghamshire County Council,1111/1001,Adult Social Care and Health,ASCH,Third Party Payments,EGA,04/09/2020,06-10846,"2,380.00",Shortwood House Rest Home
Nottinghamshire County Council,1111/1001,Adult Social Care and Health,ASCH,Third Party Payments,EGA,04/09/2020,06-10847,"2,452.00",St Saviours Care Home
Nottinghamshire County Council,1111/1001,Adult Social Care and Health,ASCH,Third Party Payments,EGA,04/09/2020,06-10848,"2,452.00",St Saviours Care Home
Nottinghamshire County Council,1111/1001,Adult Social Care and Health,ASCH,Third Party Payments,EGA,04/09/2020,06-10849,"2,139.60",St Catherines
Nottinghamshire County Council,1111/1001,Adult Social Care and Health,ASCH,Third Party Payments,EGA,04/09/2020,06-10850,613.00,St Saviours Care Home
Nottinghamshire County Council,1111/1001,Adult Social Care and Health,ASCH,Third Party Payments,EGA,04/09/2020,06-10851,"2,452.00",St Saviours Care Home
Nottinghamshire County Council,1111/1001,Adult Social Care and Health,ASCH,Third Party Payments,EGA,04/09/2020,06-10852,"3,856.00",St Peters Residential Home
Nottinghamshire County Council,1111/1001,Adult Social Care and Health,ASCH,Third Party Payments,EGA,04/09/2020,06-10853,"7,200.00",Chengun Care Homes Ltd
Nottinghamshire County Council,1111/1001,Adult Social Care and Health,ASCH,Third Party Payments,EGA,04/09/2020,06-10854,"2,492.00",St Saviours Care Home
Nottinghamshire County Council,1111/1001,Adult Social Care and Health,ASCH,Third Party Payments,EGA,04/09/2020,06-10855,"2,668.00",St Saviours Care Home
Nottinghamshire County Council,1111/1001,Adult Social Care and Health,ASCH,Third Party Payments,EGA,04/09/2020,06-10856,"2,452.00",St Saviours Care Home
Nottinghamshire County Council,1111/1001,Adult Social Care and Health,ASCH,Third Party Payments,EGA,04/09/2020,06-10857,"3,936.00",St Peters Residential Home
Nottinghamshire County Council,1111/1001,Adult Social Care and Health,ASCH,Third Party Payments,EGA,04/09/2020,06-10858,"2,452.00",St Saviours Care Home
Nottinghamshire County Council,1111/1001,Adult Social Care and Health,ASCH,Third Party Payments,EGA,04/09/2020,06-10859,"2,452.00",St Saviours Care Home
Nottinghamshire County Council,1111/1001,Adult Social Care and Health,ASCH,Third Party Payments,EGA,04/09/2020,06-10860,"2,748.00",St Saviours Care Home
Nottinghamshire County Council,1111/1001,Adult Social Care and Health,ASCH,Third Party Payments,EGA,04/09/2020,06-10861,"2,452.00",St Saviours Care Home
Nottinghamshire County Council,1111/1001,Adult Social Care and Health,ASCH,Third Party Payments,EGA,04/09/2020,06-10862,"1,396.00",St Saviours Care Home
Nottinghamshire County Council,1111/1001,Adult Social Care and Health,ASCH,Third Party Payments,EGA,04/09/2020,06-10863,"2,281.60",Stoneswood Residential Home
Nottinghamshire County Council,1111/1001,Adult Social Care and Health,ASCH,Third Party Payments,EGA,04/09/2020,06-10864,"2,452.00",St Saviours Care Home
Nottinghamshire County Council,1111/1001,Adult Social Care and Health,ASCH,Third Party Payments,EGA,04/09/2020,06-10865,"2,452.00",St Saviours Care Home
Nottinghamshire County Council,1111/1001,Adult Social Care and Health,ASCH,Third Party Payments,EGA,04/09/2020,06-10866,"2,452.00",St Saviours Care Home
Nottinghamshire County Council,1111/1001,Adult Social Care and Health,ASCH,Third Party Payments,EGA,04/09/2020,06-10867,"2,452.00",St Saviours Care Home
Nottinghamshire County Council,1111/1001,Adult Social Care and Health,ASCH,Third Party Payments,EGA,04/09/2020,06-10868,"3,065.00",St Saviours Care Home
Nottinghamshire County Council,1111/1001,Adult Social Care and Health,ASCH,Third Party Payments,EGA,04/09/2020,06-10869,"3,190.86",St Saviours Care Home
Nottinghamshire County Council,1111/1001,Adult Social Care and Health,ASCH,Third Party Payments,EGA,04/09/2020,06-10870,700.57,St Saviours Care Home
Nottinghamshire County Council,1111/1001,Adult Social Care and Health,ASCH,Third Party Payments,EGA,04/09/2020,06-10871,"2,452.00",St Saviours Care Home
Nottinghamshire County Council,1111/1001,Adult Social Care and Health,ASCH,Third Party Payments,EGA,04/09/2020,06-10872,"2,668.00",St Saviours Care Home
Nottinghamshire County Council,1111/1001,Adult Social Care and Health,ASCH,Third Party Payments,EGA,04/09/2020,06-10873,"2,780.00",St Saviours Care Home
Nottinghamshire County Council,1111/1001,Adult Social Care and Health,ASCH,Third Party Payments,EGA,04/09/2020,06-10874,"2,380.00",St Peters Residential Home
Nottinghamshire County Council,1111/1001,Adult Social Care and Health,ASCH,Third Party Payments,EGA,04/09/2020,06-10875,"3,948.00",St Peters Residential Home
Nottinghamshire County Council,1111/1001,Adult Social Care and Health,ASCH,Third Party Payments,EGA,04/09/2020,06-10876,"8,892.92",Sutton House
Nottinghamshire County Council,1111/1001,Adult Social Care and Health,ASCH,Third Party Payments,EGA,04/09/2020,06-10877,"1,020.00",Red Firs Care Home T/A Strawberry F
Nottinghamshire County Council,1111/1001,Adult Social Care and Health,ASCH,Third Party Payments,EGA,04/09/2020,06-10878,"12,485.71",St Peters Residential Home
Nottinghamshire County Council,1111/1001,Adult Social Care and Health,ASCH,Third Party Payments,EGA,04/09/2020,06-10879,952.86,St Saviours Care Home
Nottinghamshire County Council,1111/1001,Adult Social Care and Health,ASCH,Third Party Payments,EGA,04/09/2020,06-10880,"2,492.00",St Saviours Care Home
Nottinghamshire County Council,1111/1001,Adult Social Care and Health,ASCH,Third Party Payments,EGA,04/09/2020,06-10881,"2,461.60",St Saviours Care Home
Nottinghamshire County Council,1111/1001,Adult Social Care and Health,ASCH,Third Party Payments,EGA,04/09/2020,06-10882,"5,798.57",Chengun Care Homes Ltd
Nottinghamshire County Council,1111/1001,Adult Social Care and Health,ASCH,Third Party Payments,EGA,04/09/2020,06-10883,"1,785.00",Red Firs Care Home T/A Strawberry F
Nottinghamshire County Council,1111/1001,Adult Social Care and Health,ASCH,Third Party Payments,EGA,04/09/2020,06-10884,"2,800.00",St Saviours Care Home
Nottinghamshire County Council,1111/1001,Adult Social Care and Health,ASCH,Third Party Payments,EGA,04/09/2020,06-10885,"2,652.00",St Saviours Care Home
Nottinghamshire County Council,1111/1001,Adult Social Care and Health,ASCH,Third Party Payments,EGA,04/09/2020,06-10886,"2,452.00",St Saviours Care Home
Nottinghamshire County Council,1111/1001,Adult Social Care and Health,ASCH,Third Party Payments,EGA,04/09/2020,06-10887,"2,452.00",St Saviours Care Home
Nottinghamshire County Council,1111/1001,Adult Social Care and Health,ASCH,Third Party Payments,EGA,04/09/2020,06-10888,"2,380.00",St Peters Residential Home
Nottinghamshire County Council,1111/1001,Adult Social Care and Health,ASCH,Third Party Payments,EGA,04/09/2020,06-10889,"2,328.00",Willow Tree House (My Care)
Nottinghamshire County Council,1111/1001,Adult Social Care and Health,ASCH,Third Party Payments,EGA,04/09/2020,06-10890,"2,328.00",Willow Tree House (My Care)
Nottinghamshire County Council,1111/1001,Adult Social Care and Health,ASCH,Third Party Payments,EGA,04/09/2020,06-10891,"2,328.00",Willow Tree House (My Care)
Nottinghamshire County Council,1111/1001,Adult Social Care and Health,ASCH,Third Party Payments,EGA,04/09/2020,06-10892,"3,349.12",Willis Lodge Care Home (Hatzfeld)
Nottinghamshire County Council,1111/1001,Adult Social Care and Health,ASCH,Third Party Payments,EGA,04/09/2020,06-10893,"4,187.76",Willis Lodge Care Home (Hatzfeld)
Nottinghamshire County Council,1111/1001,Adult Social Care and Health,ASCH,Third Party Payments,EGA,04/09/2020,06-10894,"3,349.12",Willis Lodge Care Home (Hatzfeld)
Nottinghamshire County Council,1111/1001,Adult Social Care and Health,ASCH,Third Party Payments,EGA,04/09/2020,06-10895,"7,529.72",Thistle Hill Hall
Nottinghamshire County Council,1111/1001,Adult Social Care and Health,ASCH,Third Party Payments,EGA,04/09/2020,06-10896,"7,954.16",Thistle Hill Hall
Nottinghamshire County Council,1111/1001,Adult Social Care and Health,ASCH,Third Party Payments,EGA,04/09/2020,06-10897,"7,933.24",Thistle Hill Hall
Nottinghamshire County Council,1111/1001,Adult Social Care and Health,ASCH,Third Party Payments,EGA,04/09/2020,06-10898,"1,164.00",Willow Tree House (My Care)
Nottinghamshire County Council,1111/1001,Adult Social Care and Health,ASCH,Third Party Payments,EGA,04/09/2020,06-10899,"2,328.00",Willow Tree House (My Care)
Nottinghamshire County Council,1111/1001,Adult Social Care and Health,ASCH,Third Party Payments,EGA,04/09/2020,06-10900,"2,328.00",Willow Tree House (My Care)
Nottinghamshire County Council,1111/1001,Adult Social Care and Health,ASCH,Third Party Payments,EGA,04/09/2020,06-10901,"2,328.00",Willow Tree House (My Care)
Nottinghamshire County Council,1111/1001,Adult Social Care and Health,ASCH,Third Party Payments,EGA,04/09/2020,06-10902,"2,328.00",Willow Tree House (My Care)
Nottinghamshire County Council,1111/1001,Adult Social Care and Health,ASCH,Third Party Payments,EGA,04/09/2020,06-10903,"3,246.56",Willis Lodge Care Home (Hatzfeld)
Nottinghamshire County Council,1111/1001,Adult Social Care and Health,ASCH,Third Party Payments,EGA,04/09/2020,06-10904,"3,246.56",Willis Lodge Care Home (Hatzfeld)
Nottinghamshire County Council,1111/1001,Adult Social Care and Health,ASCH,Third Party Payments,EGA,04/09/2020,06-10905,"5,913.28",Willis Lodge Care Home (Hatzfeld)
Nottinghamshire County Council,1111/1001,Adult Social Care and Health,ASCH,Third Party Payments,EGA,04/09/2020,06-10906,"4,907.12",West Hallam Residential Home
Nottinghamshire County Council,1111/1001,Adult Social Care and Health,ASCH,Third Party Payments,EGA,04/09/2020,06-10907,"5,400.00",Willis Lodge Care Home (Hatzfeld)
Nottinghamshire County Council,1111/1001,Adult Social Care and Health,ASCH,Third Party Payments,EGA,04/09/2020,06-10908,"2,328.00",Willow Tree House (My Care)
Nottinghamshire County Council,1111/1001,Adult Social Care and Health,ASCH,Third Party Payments,EGA,04/09/2020,06-10909,"2,328.00",Willow Tree House (My Care)
Nottinghamshire County Council,1111/1001,Adult Social Care and Health,ASCH,Third Party Payments,EGA,04/09/2020,06-10910,"2,370.28",Willow Tree House (My Care)
Nottinghamshire County Council,1111/1001,Adult Social Care and Health,ASCH,Third Party Payments,EGA,04/09/2020,06-10911,"2,315.88",Willow Tree House (My Care)
Nottinghamshire County Council,1111/1001,Adult Social Care and Health,ASCH,Third Party Payments,EGA,04/09/2020,06-10912,"2,400.00",Willis Lodge Care Home (Hatzfeld)
Nottinghamshire County Council,1111/1001,Adult Social Care and Health,ASCH,Third Party Payments,EGA,04/09/2020,06-10913,"8,051.44",Thistle Hill Hall
Nottinghamshire County Council,1111/1001,Adult Social Care and Health,ASCH,Third Party Payments,EGA,04/09/2020,06-10914,"4,891.12",West Hallam Residential Home
Nottinghamshire County Council,1111/1001,Adult Social Care and Health,ASCH,Third Party Payments,EGA,04/09/2020,06-10915,"6,492.96",John Thornhill Memorial Trust
Nottinghamshire County Council,1111/1001,Adult Social Care and Health,ASCH,Third Party Payments,EGA,04/09/2020,06-10916,"20,366.84",Winslow Hospital (St Andrews Health
Nottinghamshire County Council,1111/1001,Adult Social Care and Health,ASCH,Third Party Payments,EGA,04/09/2020,06-10917,"2,328.00",Willow Tree House (My Care)
Nottinghamshire County Council,1111/1001,Adult Social Care and Health,ASCH,Third Party Payments,EGA,04/09/2020,06-10918,"2,328.00",Willow Tree House (My Care)
Nottinghamshire County Council,1111/1001,Adult Social Care and Health,ASCH,Third Party Payments,EGA,04/09/2020,06-10919,"2,328.00",Willow Tree House (My Care)
Nottinghamshire County Council,1111/1001,Adult Social Care and Health,ASCH,Third Party Payments,EGA,04/09/2020,06-10920,"2,328.00",Willow Tree House (My Care)
Nottinghamshire County Council,1111/1001,Adult Social Care and Health,ASCH,Third Party Payments,EGA,04/09/2020,06-10921,"2,328.00",Willow Tree House (My Care)
Nottinghamshire County Council,1111/1001,Adult Social Care and Health,ASCH,Third Party Payments,EGA,04/09/2020,06-10922,"7,451.80",Willis Lodge Care Home (Hatzfeld)
Nottinghamshire County Council,1111/1001,Adult Social Care and Health,ASCH,Third Party Payments,EGA,04/09/2020,06-10923,"3,492.00",Willow Tree House (My Care)
Nottinghamshire County Council,1111/1001,Adult Social Care and Health,ASCH,Third Party Payments,EGA,04/09/2020,06-10924,"9,994.00",Yarningdale Health Care
Nottinghamshire County Council,1111/1001,Adult Social Care and Health,ASCH,Third Party Payments,EGA,04/09/2020,06-10925,"8,695.12",Yarningdale Health Care
Nottinghamshire County Council,1111/1001,Adult Social Care and Health,ASCH,Third Party Payments,EGA,04/09/2020,06-10926,"2,328.00",Willow Tree House (My Care)
Nottinghamshire County Council,1111/1001,Adult Social Care and Health,ASCH,Third Party Payments,EGA,04/09/2020,06-10927,"2,328.00",Willow Tree House (My Care)
Nottinghamshire County Council,1111/1001,Adult Social Care and Health,ASCH,Third Party Payments,EGA,04/09/2020,06-10928,"2,374.56",Willow Tree House (My Care)
Nottinghamshire County Council,1111/1001,Adult Social Care and Health,ASCH,Third Party Payments,EGA,04/09/2020,06-10929,"3,349.12",Willis Lodge Care Home (Hatzfeld)
Nottinghamshire County Council,1111/1001,Adult Social Care and Health,ASCH,Third Party Payments,EGA,04/09/2020,06-10930,"8,942.28",Thistle Hill Hall
Nottinghamshire County Council,1111/1001,Adult Social Care and Health,ASCH,Third Party Payments,EGA,04/09/2020,06-10931,"8,051.44",Thistle Hill Hall
Nottinghamshire County Council,1111/1001,Adult Social Care and Health,ASCH,Third Party Payments,EGA,04/09/2020,06-10932,"20,925.00",Westcliffe Nursing Home
Nottinghamshire County Council,1111/1001,Adult Social Care and Health,ASCH,Third Party Payments,EGA,04/09/2020,06-10933,"2,328.00",Willow Tree House (My Care)
Nottinghamshire County Council,1111/1001,Adult Social Care and Health,ASCH,Third Party Payments,EGA,04/09/2020,06-10934,"2,459.24",Willow Tree House (My Care)
Nottinghamshire County Council,1111/1001,Adult Social Care and Health,ASCH,Third Party Payments,EGA,04/09/2020,06-10935,"40,059.60",Winslow Hospital (St Andrews Health
Nottinghamshire County Council,1111/1001,Adult Social Care and Health,ASCH,Third Party Payments,EGA,04/09/2020,06-10936,"3,208.00",Westcliffe Nursing Home
Nottinghamshire County Council,1111/1001,Adult Social Care and Health,ASCH,Third Party Payments,EGA,04/09/2020,06-10937,"1,196.11",Willis Lodge Care Home (Hatzfeld)
Nottinghamshire County Council,1111/1001,Adult Social Care and Health,ASCH,Third Party Payments,EGA,04/09/2020,06-10938,"3,767.76",Willis Lodge Care Home (Hatzfeld)
Nottinghamshire County Council,1111/1001,Adult Social Care and Health,ASCH,Third Party Payments,EGA,04/09/2020,06-10939,"3,767.76",Willis Lodge Care Home (Hatzfeld)
Nottinghamshire County Council,1111/1001,Adult Social Care and Health,ASCH,Third Party Payments,EGA,04/09/2020,06-10940,"4,931.12",West Hallam Residential Home
Nottinghamshire County Council,1111/1001,Adult Social Care and Health,ASCH,Third Party Payments,EGA,04/09/2020,06-10941,"2,328.00",Willow Tree House (My Care)
Nottinghamshire County Council,1111/1001,Adult Social Care and Health,ASCH,Third Party Payments,EGA,04/09/2020,06-10942,"2,328.00",Willow Tree House (My Care)
Nottinghamshire County Council,1111/1001,Adult Social Care and Health,ASCH,Third Party Payments,EGA,04/09/2020,06-10943,"3,600.00",Willis Lodge Care Home (Hatzfeld)
Nottinghamshire County Council,1111/1001,Adult Social Care and Health,ASCH,Third Party Payments,EGA,04/09/2020,06-10944,"3,016.00",Westcliffe Nursing Home
Nottinghamshire County Council,1111/1001,Adult Social Care and Health,ASCH,Third Party Payments,EGA,04/09/2020,06-10945,"7,791.72",Thistle Hill Hall
Nottinghamshire County Council,1111/1001,Adult Social Care and Health,ASCH,Third Party Payments,EGA,04/09/2020,06-10946,"8,116.40",Thistle Hill Hall
Nottinghamshire County Council,1111/1001,Adult Social Care and Health,ASCH,Third Party Payments,EGA,04/09/2020,06-10947,"1,909.00",Woodlands Care Home
Nottinghamshire County Council,1111/1001,Adult Social Care and Health,ASCH,Third Party Payments,EGA,04/09/2020,06-10948,"4,885.71",Willis Lodge Care Home (Hatzfeld)
Nottinghamshire County Council,1111/1001,Adult Social Care and Health,ASCH,Third Party Payments,EGA,04/09/2020,06-10949,"9,859.04",Yarningdale Health Care
Nottinghamshire County Council,1111/1001,Adult Social Care and Health,ASCH,Third Party Payments,EGA,04/09/2020,06-10950,"2,328.00",Willow Tree House (My Care)
Nottinghamshire County Council,1111/1001,Adult Social Care and Health,ASCH,Third Party Payments,EGA,04/09/2020,06-10951,"2,345.56",Woodlands Care Home (Midland Heathc
Nottinghamshire County Council,1111/1001,Adult Social Care and Health,ASCH,Third Party Payments,EGA,04/09/2020,06-10952,"3,463.00",Willis Lodge Care Home (Hatzfeld)
Nottinghamshire County Council,1111/1001,Adult Social Care and Health,ASCH,Third Party Payments,EGA,04/09/2020,06-10953,"7,694.44",Thistle Hill Hall
Nottinghamshire County Council,1111/1001,Adult Social Care and Health,ASCH,Third Party Payments,EGA,04/09/2020,06-16204,"4,301.70",British Red Cross Society
Nottinghamshire County Council,1111/1001,Adult Social Care and Health,ASCH,Third Party Payments,EGA,07/09/2020,06-10970,515.76,Direct Health (uk) Ltd
Nottinghamshire County Council,1111/1001,Adult Social Care and Health,ASCH,Third Party Payments,EGA,07/09/2020,06-10971,580.23,Direct Health (uk) Ltd
Nottinghamshire County Council,1111/1001,Adult Social Care and Health,ASCH,Third Party Payments,EGA,07/09/2020,06-10972,515.76,Direct Health (uk) Ltd
Nottinghamshire County Council,1111/1001,Adult Social Care and Health,ASCH,Third Party Payments,EGA,07/09/2020,06-10973,663.12,Direct Health (uk) Ltd
Nottinghamshire County Council,1111/1001,Adult Social Care and Health,ASCH,Third Party Payments,EGA,07/09/2020,06-10974,515.76,Direct Health (uk) Ltd
Nottinghamshire County Council,1111/1001,Adult Social Care and Health,ASCH,Third Party Payments,EGA,07/09/2020,06-10975,"3,672.16",Mi Casa Care Ltd
Nottinghamshire County Council,1111/1001,Adult Social Care and Health,ASCH,Third Party Payments,EGA,07/09/2020,06-10976,758.99,Mi Casa Care Ltd
Nottinghamshire County Council,1111/1001,Adult Social Care and Health,ASCH,Third Party Payments,EGA,07/09/2020,06-10977,580.23,Direct Health (uk) Ltd
Nottinghamshire County Council,1111/1001,Adult Social Care and Health,ASCH,Third Party Payments,EGA,07/09/2020,06-10978,"1,242.52",Mi Casa Care Ltd
Nottinghamshire County Council,1111/1001,Adult Social Care and Health,ASCH,Third Party Payments,EGA,07/09/2020,06-10979,504.00,Mi Casa Care Ltd
Nottinghamshire County Council,1111/1001,Adult Social Care and Health,ASCH,Third Party Payments,EGA,07/09/2020,06-10980,580.23,Direct Health (uk) Ltd
Nottinghamshire County Council,1111/1001,Adult Social Care and Health,ASCH,Third Party Payments,EGA,07/09/2020,06-10981,730.98,Mi Casa Care Ltd
Nottinghamshire County Council,1111/1001,Adult Social Care and Health,ASCH,Third Party Payments,EGA,07/09/2020,06-10982,955.51,Mi Casa Care Ltd
Nottinghamshire County Council,1111/1001,Adult Social Care and Health,ASCH,Third Party Payments,EGA,07/09/2020,06-10983,611.00,Cera Care Limited t/a Radcliffe Hom
Nottinghamshire County Council,1111/1001,Adult Social Care and Health,ASCH,Third Party Payments,EGA,07/09/2020,06-10984,580.00,Cera Care Limited t/a Radcliffe Hom
Nottinghamshire County Council,1111/1001,Adult Social Care and Health,ASCH,Third Party Payments,EGA,07/09/2020,06-10985,706.66,Cera Care Limited t/a Radcliffe Hom
Nottinghamshire County Council,1111/1001,Adult Social Care and Health,ASCH,Third Party Payments,EGA,07/09/2020,06-10986,616.54,Cera Care Limited t/a Radcliffe Hom
Nottinghamshire County Council,1111/1001,Adult Social Care and Health,ASCH,Third Party Payments,EGA,07/09/2020,06-10987,580.23,Direct Health (uk) Ltd
Nottinghamshire County Council,1111/1001,Adult Social Care and Health,ASCH,Third Party Payments,EGA,07/09/2020,06-10988,520.66,Cera Care Limited t/a Radcliffe Hom
Nottinghamshire County Council,1111/1001,Adult Social Care and Health,ASCH,Third Party Payments,EGA,07/09/2020,06-10989,523.66,Cera Care Limited t/a Radcliffe Hom
Nottinghamshire County Council,1111/1001,Adult Social Care and Health,ASCH,Third Party Payments,EGA,07/09/2020,06-10990,515.76,Direct Health (uk) Ltd
Nottinghamshire County Council,1111/1001,Adult Social Care and Health,ASCH,Third Party Payments,EGA,07/09/2020,06-10991,"1,172.82",Joy2Care Ltd
Nottinghamshire County Council,1111/1001,Adult Social Care and Health,ASCH,Third Party Payments,EGA,07/09/2020,06-10992,723.56,Joy2Care Ltd
Nottinghamshire County Council,1111/1001,Adult Social Care and Health,ASCH,Third Party Payments,EGA,07/09/2020,06-10993,"2,832.72",AMG Consultancy Services Ltd
Nottinghamshire County Council,1111/1001,Adult Social Care and Health,ASCH,Third Party Payments,EGA,07/09/2020,06-10994,593.85,Carers Trust East Midlands (TuVida)
Nottinghamshire County Council,1111/1001,Adult Social Care and Health,ASCH,Third Party Payments,EGA,07/09/2020,06-10995,682.65,Fosse Healthcare Ltd
Nottinghamshire County Council,1111/1001,Adult Social Care and Health,ASCH,Third Party Payments,EGA,07/09/2020,06-10996,590.40,Fosse Healthcare Ltd
Nottinghamshire County Council,1111/1001,Adult Social Care and Health,ASCH,Third Party Payments,EGA,07/09/2020,06-10997,"1,607.76",AMG Consultancy Services Ltd
Nottinghamshire County Council,1111/1001,Adult Social Care and Health,ASCH,Third Party Payments,EGA,07/09/2020,06-10998,523.52,Bhandal Care Group (BSB Care) Ltd
Nottinghamshire County Council,1111/1001,Adult Social Care and Health,ASCH,Third Party Payments,EGA,07/09/2020,06-10999,"1,378.08",AMG Consultancy Services Ltd
Nottinghamshire County Council,1111/1001,Adult Social Care and Health,ASCH,Third Party Payments,EGA,07/09/2020,06-11000,574.84,Bhandal Care Group (BSB Care) Ltd
Nottinghamshire County Council,1111/1001,Adult Social Care and Health,ASCH,Third Party Payments,EGA,07/09/2020,06-11001,"1,263.24",AMG Consultancy Services Ltd
Nottinghamshire County Council,1111/1001,Adult Social Care and Health,ASCH,Third Party Payments,EGA,07/09/2020,06-11002,502.99,Bhandal Care Group (BSB Care) Ltd
Nottinghamshire County Council,1111/1001,Adult Social Care and Health,ASCH,Third Party Payments,EGA,07/09/2020,06-11003,"2,871.00",AMG Consultancy Services Ltd
Nottinghamshire County Council,1111/1001,Adult Social Care and Health,ASCH,Third Party Payments,EGA,07/09/2020,06-11004,957.00,AMG Consultancy Services Ltd
Nottinghamshire County Council,1111/1001,Adult Social Care and Health,ASCH,Third Party Payments,EGA,07/09/2020,06-11005,"1,492.92",AMG Consultancy Services Ltd
Nottinghamshire County Council,1111/1001,Adult Social Care and Health,ASCH,Third Party Payments,EGA,07/09/2020,06-11006,765.60,AMG Consultancy Services Ltd
Nottinghamshire County Council,1111/1001,Adult Social Care and Health,ASCH,Third Party Payments,EGA,07/09/2020,06-11007,"3,445.20",AMG Consultancy Services Ltd
Nottinghamshire County Council,1111/1001,Adult Social Care and Health,ASCH,Third Party Payments,EGA,07/09/2020,06-11008,"1,186.68",AMG Consultancy Services Ltd
Nottinghamshire County Council,1111/1001,Adult Social Care and Health,ASCH,Third Party Payments,EGA,07/09/2020,06-11009,"1,607.76",AMG Consultancy Services Ltd
Nottinghamshire County Council,1111/1001,Adult Social Care and Health,ASCH,Third Party Payments,EGA,07/09/2020,06-11010,"1,339.80",AMG Consultancy Services Ltd
Nottinghamshire County Council,1111/1001,Adult Social Care and Health,ASCH,Third Party Payments,EGA,07/09/2020,06-11011,"1,531.20",AMG Consultancy Services Ltd
Nottinghamshire County Council,1111/1001,Adult Social Care and Health,ASCH,Third Party Payments,EGA,07/09/2020,06-11012,"1,894.63",Direct Health (uk) Ltd
Nottinghamshire County Council,1111/1001,Adult Social Care and Health,ASCH,Third Party Payments,EGA,07/09/2020,06-11013,631.62,AMG Consultancy Services Ltd
Nottinghamshire County Council,1111/1001,Adult Social Care and Health,ASCH,Third Party Payments,EGA,07/09/2020,06-11014,861.30,AMG Consultancy Services Ltd
Nottinghamshire County Council,1111/1001,Adult Social Care and Health,ASCH,Third Party Payments,EGA,07/09/2020,06-11015,581.18,Fosse Healthcare Ltd
Nottinghamshire County Council,1111/1001,Adult Social Care and Health,ASCH,Third Party Payments,EGA,07/09/2020,06-11016,"3,215.52",AMG Consultancy Services Ltd
Nottinghamshire County Council,1111/1001,Adult Social Care and Health,ASCH,Third Party Payments,EGA,07/09/2020,06-11017,709.17,Direct Health (uk) Ltd
Nottinghamshire County Council,1111/1001,Adult Social Care and Health,ASCH,Third Party Payments,EGA,07/09/2020,06-11018,"2,057.37",First Care DCA Ltd
Nottinghamshire County Council,1111/1001,Adult Social Care and Health,ASCH,Third Party Payments,EGA,07/09/2020,06-11019,"2,304.72",First Care DCA Ltd
Nottinghamshire County Council,1111/1001,Adult Social Care and Health,ASCH,Third Party Payments,EGA,07/09/2020,06-11020,703.05,Leda Homecare Ltd
Nottinghamshire County Council,1111/1001,Adult Social Care and Health,ASCH,Third Party Payments,EGA,07/09/2020,06-11021,931.79,Leda Homecare Ltd
Nottinghamshire County Council,1111/1001,Adult Social Care and Health,ASCH,Third Party Payments,EGA,07/09/2020,06-11022,"1,049.05",Leda Homecare Ltd
Nottinghamshire County Council,1111/1001,Adult Social Care and Health,ASCH,Third Party Payments,EGA,07/09/2020,06-11023,"1,188.16",Leda Homecare Ltd
Nottinghamshire County Council,1111/1001,Adult Social Care and Health,ASCH,Third Party Payments,EGA,07/09/2020,06-11024,515.76,Direct Health (uk) Ltd
Nottinghamshire County Council,1111/1001,Adult Social Care and Health,ASCH,Third Party Payments,EGA,07/09/2020,06-11025,540.68,Leda Homecare Ltd
Nottinghamshire County Council,1111/1001,Adult Social Care and Health,ASCH,Third Party Payments,EGA,07/09/2020,06-11026,"1,909.60",Leda Homecare Ltd
Nottinghamshire County Council,1111/1001,Adult Social Care and Health,ASCH,Third Party Payments,EGA,07/09/2020,06-11027,512.51,Art Support Limited T/A Kare Plus N
Nottinghamshire County Council,1111/1001,Adult Social Care and Health,ASCH,Third Party Payments,EGA,07/09/2020,06-11028,580.23,Direct Health (uk) Ltd
Nottinghamshire County Council,1111/1001,Adult Social Care and Health,ASCH,Third Party Payments,EGA,07/09/2020,06-11029,515.76,Direct Health (uk) Ltd
Nottinghamshire County Council,1111/1001,Adult Social Care and Health,ASCH,Third Party Payments,EGA,07/09/2020,06-11030,"2,128.00",Docmar Ltd T/A Respectful Care Mans
Nottinghamshire County Council,1111/1001,Adult Social Care and Health,ASCH,Third Party Payments,EGA,07/09/2020,06-11031,"1,334.64",Docmar Ltd T/A Respectful Care Mans
Nottinghamshire County Council,1111/1001,Adult Social Care and Health,ASCH,Third Party Payments,EGA,07/09/2020,06-11032,836.64,Docmar Ltd T/A Respectful Care Mans
Nottinghamshire County Council,1111/1001,Adult Social Care and Health,ASCH,Third Party Payments,EGA,07/09/2020,06-11033,"1,064.00",Docmar Ltd T/A Respectful Care Mans
Nottinghamshire County Council,1111/1001,Adult Social Care and Health,ASCH,Third Party Payments,EGA,07/09/2020,06-11034,"2,310.72",Docmar Ltd T/A Respectful Care Mans
Nottinghamshire County Council,1111/1001,Adult Social Care and Health,ASCH,Third Party Payments,EGA,07/09/2020,06-11035,697.20,Docmar Ltd T/A Respectful Care Mans
Nottinghamshire County Council,1111/1001,Adult Social Care and Health,ASCH,Third Party Payments,EGA,07/09/2020,06-11036,996.00,Docmar Ltd T/A Respectful Care Mans
Nottinghamshire County Council,1111/1001,Adult Social Care and Health,ASCH,Third Party Payments,EGA,07/09/2020,06-11037,"1,007.00",Docmar Ltd T/A Respectful Care Mans
Nottinghamshire County Council,1111/1001,Adult Social Care and Health,ASCH,Third Party Payments,EGA,07/09/2020,06-11038,697.20,Docmar Ltd T/A Respectful Care Mans
Nottinghamshire County Council,1111/1001,Adult Social Care and Health,ASCH,Third Party Payments,EGA,07/09/2020,06-11039,732.06,Docmar Ltd T/A Respectful Care Mans
Nottinghamshire County Council,1111/1001,Adult Social Care and Health,ASCH,Third Party Payments,EGA,07/09/2020,06-11040,627.48,Docmar Ltd T/A Respectful Care Mans
Nottinghamshire County Council,1111/1001,Adult Social Care and Health,ASCH,Third Party Payments,EGA,07/09/2020,06-11041,"1,331.13",Westminster Homecare Ltd
Nottinghamshire County Council,1111/1001,Adult Social Care and Health,ASCH,Third Party Payments,EGA,07/09/2020,06-11042,708.40,Westminster Homecare Ltd
Nottinghamshire County Council,1111/1001,Adult Social Care and Health,ASCH,Third Party Payments,EGA,07/09/2020,06-11043,"2,228.49",Westminster Homecare Ltd
Nottinghamshire County Council,1111/1001,Adult Social Care and Health,ASCH,Third Party Payments,EGA,07/09/2020,06-11044,560.00,Respectful Care(Peach Peach & Peach
Nottinghamshire County Council,1111/1001,Adult Social Care and Health,ASCH,Third Party Payments,EGA,07/09/2020,06-11045,"1,091.26",June Home Care Ltd
Nottinghamshire County Council,1111/1001,Adult Social Care and Health,ASCH,Third Party Payments,EGA,07/09/2020,06-11046,581.18,Fosse Healthcare Ltd
Nottinghamshire County Council,1111/1001,Adult Social Care and Health,ASCH,Third Party Payments,EGA,07/09/2020,06-11047,633.49,Notts Homecare Ltd
Nottinghamshire County Council,1111/1001,Adult Social Care and Health,ASCH,Third Party Payments,EGA,07/09/2020,06-11048,720.72,Notts Homecare Ltd
Nottinghamshire County Council,1111/1001,Adult Social Care and Health,ASCH,Third Party Payments,EGA,07/09/2020,06-11049,"1,029.60",Notts Homecare Ltd
Nottinghamshire County Council,1111/1001,Adult Social Care and Health,ASCH,Third Party Payments,EGA,07/09/2020,06-11050,909.48,Notts Homecare Ltd
Nottinghamshire County Council,1111/1001,Adult Social Care and Health,ASCH,Third Party Payments,EGA,07/09/2020,06-11051,960.96,Notts Homecare Ltd
Nottinghamshire County Council,1111/1001,Adult Social Care and Health,ASCH,Third Party Payments,EGA,07/09/2020,06-11052,"1,115.40",Notts Homecare Ltd
Nottinghamshire County Council,1111/1001,Adult Social Care and Health,ASCH,Third Party Payments,EGA,07/09/2020,06-11053,"1,115.40",Notts Homecare Ltd
Nottinghamshire County Council,1111/1001,Adult Social Care and Health,ASCH,Third Party Payments,EGA,07/09/2020,06-11054,"1,950.35",Bhandal Care Group (BSB Care) Ltd
Nottinghamshire County Council,1111/1001,Adult Social Care and Health,ASCH,Third Party Payments,EGA,07/09/2020,06-11055,646.70,Bhandal Care Group (BSB Care) Ltd
Nottinghamshire County Council,1111/1001,Adult Social Care and Health,ASCH,Third Party Payments,EGA,07/09/2020,06-11056,544.05,Bhandal Care Group (BSB Care) Ltd
Nottinghamshire County Council,1111/1001,Adult Social Care and Health,ASCH,Third Party Payments,EGA,07/09/2020,06-11057,515.76,Direct Health (uk) Ltd
Nottinghamshire County Council,1111/1001,Adult Social Care and Health,ASCH,Third Party Payments,EGA,07/09/2020,06-11058,581.18,Fosse Healthcare Ltd
Nottinghamshire County Council,1111/1001,Adult Social Care and Health,ASCH,Third Party Payments,EGA,07/09/2020,06-11059,580.23,Direct Health (uk) Ltd
Nottinghamshire County Council,1111/1001,Adult Social Care and Health,ASCH,Third Party Payments,EGA,07/09/2020,06-11060,515.76,Direct Health (uk) Ltd
Nottinghamshire County Council,1111/1001,Adult Social Care and Health,ASCH,Third Party Payments,EGA,07/09/2020,06-11061,718.38,Direct Health (uk) Ltd
Nottinghamshire County Council,1111/1001,Adult Social Care and Health,ASCH,Third Party Payments,EGA,07/09/2020,06-11062,"1,182.83",Direct Health (uk) Ltd
Nottinghamshire County Council,1111/1001,Adult Social Care and Health,ASCH,Third Party Payments,EGA,07/09/2020,06-11063,580.23,Direct Health (uk) Ltd
Nottinghamshire County Council,1111/1001,Adult Social Care and Health,ASCH,Third Party Payments,EGA,07/09/2020,06-11064,580.23,Direct Health (uk) Ltd
Nottinghamshire County Council,1111/1001,Adult Social Care and Health,ASCH,Third Party Payments,EGA,07/09/2020,06-11065,581.18,Fosse Healthcare Ltd
Nottinghamshire County Council,1111/1001,Adult Social Care and Health,ASCH,Third Party Payments,EGA,07/09/2020,06-11066,580.23,Direct Health (uk) Ltd
Nottinghamshire County Council,1111/1001,Adult Social Care and Health,ASCH,Third Party Payments,EGA,07/09/2020,06-11067,828.90,Direct Health (uk) Ltd
Nottinghamshire County Council,1111/1001,Adult Social Care and Health,ASCH,Third Party Payments,EGA,07/09/2020,06-11068,580.23,Direct Health (uk) Ltd
Nottinghamshire County Council,1111/1001,Adult Social Care and Health,ASCH,Third Party Payments,EGA,07/09/2020,06-11069,575.63,Direct Health (uk) Ltd
Nottinghamshire County Council,1111/1001,Adult Social Care and Health,ASCH,Third Party Payments,EGA,07/09/2020,06-11070,574.84,Bhandal Care Group (BSB Care) Ltd
Nottinghamshire County Council,1111/1001,Adult Social Care and Health,ASCH,Third Party Payments,EGA,07/09/2020,06-11071,580.23,Direct Health (uk) Ltd
Nottinghamshire County Council,1111/1001,Adult Social Care and Health,ASCH,Third Party Payments,EGA,07/09/2020,06-11072,580.23,Direct Health (uk) Ltd
Nottinghamshire County Council,1111/1001,Adult Social Care and Health,ASCH,Third Party Payments,EGA,07/09/2020,06-11073,515.76,Direct Health (uk) Ltd
Nottinghamshire County Council,1111/1001,Adult Social Care and Health,ASCH,Third Party Payments,EGA,07/09/2020,06-11074,644.70,Direct Health (uk) Ltd
Nottinghamshire County Council,1111/1001,Adult Social Care and Health,ASCH,Third Party Payments,EGA,07/09/2020,06-11075,828.90,Direct Health (uk) Ltd
Nottinghamshire County Council,1111/1001,Adult Social Care and Health,ASCH,Third Party Payments,EGA,07/09/2020,06-11076,607.86,Direct Health (uk) Ltd
Nottinghamshire County Council,1111/1001,Adult Social Care and Health,ASCH,Third Party Payments,EGA,07/09/2020,06-11077,515.76,Direct Health (uk) Ltd
Nottinghamshire County Council,1111/1001,Adult Social Care and Health,ASCH,Third Party Payments,EGA,07/09/2020,06-11078,552.60,Direct Health (uk) Ltd
Nottinghamshire County Council,1111/1001,Adult Social Care and Health,ASCH,Third Party Payments,EGA,07/09/2020,06-11079,581.18,Fosse Healthcare Ltd
Nottinghamshire County Council,1111/1001,Adult Social Care and Health,ASCH,Third Party Payments,EGA,07/09/2020,06-11080,802.58,Fosse Healthcare Ltd
Nottinghamshire County Council,1111/1001,Adult Social Care and Health,ASCH,Third Party Payments,EGA,07/09/2020,06-11081,759.61,Bhandal Care Group (BSB Care) Ltd
Nottinghamshire County Council,1111/1001,Adult Social Care and Health,ASCH,Third Party Payments,EGA,07/09/2020,06-11082,687.76,Bhandal Care Group (BSB Care) Ltd
Nottinghamshire County Council,1111/1001,Adult Social Care and Health,ASCH,Third Party Payments,EGA,07/09/2020,06-11083,580.23,Direct Health (uk) Ltd
Nottinghamshire County Council,1111/1001,Adult Social Care and Health,ASCH,Third Party Payments,EGA,07/09/2020,06-11084,867.15,Fosse Healthcare Ltd
Nottinghamshire County Council,1111/1001,Adult Social Care and Health,ASCH,Third Party Payments,EGA,07/09/2020,06-11085,502.99,Bhandal Care Group (BSB Care) Ltd
Nottinghamshire County Council,1111/1001,Adult Social Care and Health,ASCH,Third Party Payments,EGA,07/09/2020,06-11086,534.18,Direct Health (uk) Ltd
Nottinghamshire County Council,1111/1001,Adult Social Care and Health,ASCH,Third Party Payments,EGA,07/09/2020,06-11087,602.91,Direct Health (uk) Ltd
Nottinghamshire County Council,1111/1001,Adult Social Care and Health,ASCH,Third Party Payments,EGA,07/09/2020,06-11088,580.23,Direct Health (uk) Ltd
Nottinghamshire County Council,1111/1001,Adult Social Care and Health,ASCH,Third Party Payments,EGA,07/09/2020,06-11089,580.23,Direct Health (uk) Ltd
Nottinghamshire County Council,1111/1001,Adult Social Care and Health,ASCH,Third Party Payments,EGA,07/09/2020,06-11090,839.48,Fosse Healthcare Ltd
Nottinghamshire County Council,1111/1001,Adult Social Care and Health,ASCH,Third Party Payments,EGA,07/09/2020,06-11091,645.75,Fosse Healthcare Ltd
Nottinghamshire County Council,1111/1001,Adult Social Care and Health,ASCH,Third Party Payments,EGA,07/09/2020,06-11092,581.18,Fosse Healthcare Ltd
Nottinghamshire County Council,1111/1001,Adult Social Care and Health,ASCH,Third Party Payments,EGA,07/09/2020,06-11093,784.13,Fosse Healthcare Ltd
Nottinghamshire County Council,1111/1001,Adult Social Care and Health,ASCH,Third Party Payments,EGA,07/09/2020,06-11094,515.76,Direct Health (uk) Ltd
Nottinghamshire County Council,1111/1001,Adult Social Care and Health,ASCH,Third Party Payments,EGA,07/09/2020,06-11095,535.63,Comfort Call Ltd
Nottinghamshire County Council,1111/1001,Adult Social Care and Health,ASCH,Third Party Payments,EGA,07/09/2020,06-11096,"1,441.56",Fosse Healthcare Ltd
Nottinghamshire County Council,1111/1001,Adult Social Care and Health,ASCH,Third Party Payments,EGA,07/09/2020,06-11097,606.51,Fosse Healthcare Ltd
Nottinghamshire County Council,1111/1001,Adult Social Care and Health,ASCH,Third Party Payments,EGA,07/09/2020,06-11098,580.14,Fosse Healthcare Ltd
Nottinghamshire County Council,1111/1001,Adult Social Care and Health,ASCH,Third Party Payments,EGA,07/09/2020,06-11099,581.81,Comfort Call Ltd
Nottinghamshire County Council,1111/1001,Adult Social Care and Health,ASCH,Third Party Payments,EGA,07/09/2020,06-11100,553.77,Fosse Healthcare Ltd
Nottinghamshire County Council,1111/1001,Adult Social Care and Health,ASCH,Third Party Payments,EGA,07/09/2020,06-11101,580.14,Fosse Healthcare Ltd
Nottinghamshire County Council,1111/1001,Adult Social Care and Health,ASCH,Third Party Payments,EGA,07/09/2020,06-11102,553.77,Fosse Healthcare Ltd
Nottinghamshire County Council,1111/1001,Adult Social Care and Health,ASCH,Third Party Payments,EGA,07/09/2020,06-11103,553.77,Fosse Healthcare Ltd
Nottinghamshire County Council,1111/1001,Adult Social Care and Health,ASCH,Third Party Payments,EGA,07/09/2020,06-11104,738.36,Fosse Healthcare Ltd
Nottinghamshire County Council,1111/1001,Adult Social Care and Health,ASCH,Third Party Payments,EGA,07/09/2020,06-11105,553.77,Fosse Healthcare Ltd
Nottinghamshire County Council,1111/1001,Adult Social Care and Health,ASCH,Third Party Payments,EGA,07/09/2020,06-11106,553.77,Fosse Healthcare Ltd
Nottinghamshire County Council,1111/1001,Adult Social Care and Health,ASCH,Third Party Payments,EGA,07/09/2020,06-11107,584.54,Fosse Healthcare Ltd
Nottinghamshire County Council,1111/1001,Adult Social Care and Health,ASCH,Third Party Payments,EGA,07/09/2020,06-11108,509.82,Fosse Healthcare Ltd
Nottinghamshire County Council,1111/1001,Adult Social Care and Health,ASCH,Third Party Payments,EGA,07/09/2020,06-11109,517.16,Comfort Call Ltd
Nottinghamshire County Council,1111/1001,Adult Social Care and Health,ASCH,Third Party Payments,EGA,07/09/2020,06-11110,632.88,Fosse Healthcare Ltd
Nottinghamshire County Council,1111/1001,Adult Social Care and Health,ASCH,Third Party Payments,EGA,07/09/2020,06-11111,544.98,Fosse Healthcare Ltd
Nottinghamshire County Council,1111/1001,Adult Social Care and Health,ASCH,Third Party Payments,EGA,07/09/2020,06-11112,571.35,Fosse Healthcare Ltd
Nottinghamshire County Council,1111/1001,Adult Social Care and Health,ASCH,Third Party Payments,EGA,07/09/2020,06-11113,571.35,Fosse Healthcare Ltd
Nottinghamshire County Council,1111/1001,Adult Social Care and Health,ASCH,Third Party Payments,EGA,07/09/2020,06-11114,553.77,Fosse Healthcare Ltd
Nottinghamshire County Council,1111/1001,Adult Social Care and Health,ASCH,Third Party Payments,EGA,07/09/2020,06-11115,632.88,Fosse Healthcare Ltd
Nottinghamshire County Council,1111/1001,Adult Social Care and Health,ASCH,Third Party Payments,EGA,07/09/2020,06-11116,553.77,Fosse Healthcare Ltd
Nottinghamshire County Council,1111/1001,Adult Social Care and Health,ASCH,Third Party Payments,EGA,07/09/2020,06-11117,597.72,Fosse Healthcare Ltd
Nottinghamshire County Council,1111/1001,Adult Social Care and Health,ASCH,Third Party Payments,EGA,07/09/2020,06-11118,782.31,Fosse Healthcare Ltd
Nottinghamshire County Council,1111/1001,Adult Social Care and Health,ASCH,Third Party Payments,EGA,07/09/2020,06-11119,553.77,Fosse Healthcare Ltd
Nottinghamshire County Council,1111/1001,Adult Social Care and Health,ASCH,Third Party Payments,EGA,07/09/2020,06-11120,632.88,Fosse Healthcare Ltd
Nottinghamshire County Council,1111/1001,Adult Social Care and Health,ASCH,Third Party Payments,EGA,07/09/2020,06-11121,949.32,Fosse Healthcare Ltd
Nottinghamshire County Council,1111/1001,Adult Social Care and Health,ASCH,Third Party Payments,EGA,07/09/2020,06-11122,573.86,Fosse Healthcare Ltd
Nottinghamshire County Council,1111/1001,Adult Social Care and Health,ASCH,Third Party Payments,EGA,07/09/2020,06-11123,588.93,Fosse Healthcare Ltd
Nottinghamshire County Council,1111/1001,Adult Social Care and Health,ASCH,Third Party Payments,EGA,07/09/2020,06-11124,535.63,Comfort Call Ltd
Nottinghamshire County Council,1111/1001,Adult Social Care and Health,ASCH,Third Party Payments,EGA,07/09/2020,06-11125,553.77,Fosse Healthcare Ltd
Nottinghamshire County Council,1111/1001,Adult Social Care and Health,ASCH,Third Party Payments,EGA,07/09/2020,06-11126,738.36,Fosse Healthcare Ltd
Nottinghamshire County Council,1111/1001,Adult Social Care and Health,ASCH,Third Party Payments,EGA,07/09/2020,06-11127,527.40,Fosse Healthcare Ltd
Nottinghamshire County Council,1111/1001,Adult Social Care and Health,ASCH,Third Party Payments,EGA,07/09/2020,06-11133,918.88,Comfort Call Ltd
Nottinghamshire County Council,1111/1001,Adult Social Care and Health,ASCH,Third Party Payments,EGA,07/09/2020,06-11134,553.77,Fosse Healthcare Ltd
Nottinghamshire County Council,1111/1001,Adult Social Care and Health,ASCH,Third Party Payments,EGA,07/09/2020,06-11135,527.40,Fosse Healthcare Ltd
Nottinghamshire County Council,1111/1001,Adult Social Care and Health,ASCH,Third Party Payments,EGA,07/09/2020,06-11136,777.92,Fosse Healthcare Ltd
Nottinghamshire County Council,1111/1001,Adult Social Care and Health,ASCH,Third Party Payments,EGA,07/09/2020,06-11137,544.98,Fosse Healthcare Ltd
Nottinghamshire County Council,1111/1001,Adult Social Care and Health,ASCH,Third Party Payments,EGA,07/09/2020,06-11138,581.81,Comfort Call Ltd
Nottinghamshire County Council,1111/1001,Adult Social Care and Health,ASCH,Third Party Payments,EGA,07/09/2020,06-11139,624.09,Fosse Healthcare Ltd
Nottinghamshire County Council,1111/1001,Adult Social Care and Health,ASCH,Third Party Payments,EGA,07/09/2020,06-11140,578.97,Caremark (Broxtowe & Erewash)
Nottinghamshire County Council,1111/1001,Adult Social Care and Health,ASCH,Third Party Payments,EGA,07/09/2020,06-11141,514.64,Caremark (Broxtowe & Erewash)
Nottinghamshire County Council,1111/1001,Adult Social Care and Health,ASCH,Third Party Payments,EGA,07/09/2020,06-11142,533.02,Caremark (Broxtowe & Erewash)
Nottinghamshire County Council,1111/1001,Adult Social Care and Health,ASCH,Third Party Payments,EGA,07/09/2020,06-11143,581.81,Agincare UK Ltd
Nottinghamshire County Council,1111/1001,Adult Social Care and Health,ASCH,Third Party Payments,EGA,07/09/2020,06-11144,"1,661.40",Mercie Grace Care Ltd
Nottinghamshire County Council,1111/1001,Adult Social Care and Health,ASCH,Third Party Payments,EGA,07/09/2020,06-11145,682.99,Paradise Hope Ltd
Nottinghamshire County Council,1111/1001,Adult Social Care and Health,ASCH,Third Party Payments,EGA,07/09/2020,06-11146,599.63,Comfort Call Ltd
Nottinghamshire County Council,1111/1001,Adult Social Care and Health,ASCH,Third Party Payments,EGA,07/09/2020,06-11147,678.77,Agincare UK Ltd
Nottinghamshire County Council,1111/1001,Adult Social Care and Health,ASCH,Third Party Payments,EGA,07/09/2020,06-11148,513.52,SPM Quality Care Ltd T/A Caremark(
Nottinghamshire County Council,1111/1001,Adult Social Care and Health,ASCH,Third Party Payments,EGA,07/09/2020,06-11149,516.88,Mercie Grace Care Ltd
Nottinghamshire County Council,1111/1001,Adult Social Care and Health,ASCH,Third Party Payments,EGA,07/09/2020,06-11150,708.02,Leda Homecare Ltd
Nottinghamshire County Council,1111/1001,Adult Social Care and Health,ASCH,Third Party Payments,EGA,07/09/2020,06-11151,531.86,SPM Quality Care Ltd T/A Caremark(
Nottinghamshire County Council,1111/1001,Adult Social Care and Health,ASCH,Third Party Payments,EGA,07/09/2020,06-11152,646.45,Westminster Homecare Ltd
Nottinghamshire County Council,1111/1001,Adult Social Care and Health,ASCH,Third Party Payments,EGA,07/09/2020,06-11153,516.60,Comfort Call Ltd
Nottinghamshire County Council,1111/1001,Adult Social Care and Health,ASCH,Third Party Payments,EGA,07/09/2020,06-11154,548.89,Comfort Call Ltd
Nottinghamshire County Council,1111/1001,Adult Social Care and Health,ASCH,Third Party Payments,EGA,07/09/2020,06-11155,770.28,SPM Quality Care Ltd T/A Caremark(
Nottinghamshire County Council,1111/1001,Adult Social Care and Health,ASCH,Third Party Payments,EGA,07/09/2020,06-11156,581.81,Gemini Exclusive Care
Nottinghamshire County Council,1111/1001,Adult Social Care and Health,ASCH,Third Party Payments,EGA,07/09/2020,06-11157,558.32,Premier Nursing Agency Ltd
Nottinghamshire County Council,1111/1001,Adult Social Care and Health,ASCH,Third Party Payments,EGA,07/09/2020,06-11158,609.51,Gemini Exclusive Care
Nottinghamshire County Council,1111/1001,Adult Social Care and Health,ASCH,Third Party Payments,EGA,07/09/2020,06-11159,517.16,Comfort Call Ltd
Nottinghamshire County Council,1111/1001,Adult Social Care and Health,ASCH,Third Party Payments,EGA,07/09/2020,06-11160,517.16,Westminster Homecare Ltd
Nottinghamshire County Council,1111/1001,Adult Social Care and Health,ASCH,Third Party Payments,EGA,07/09/2020,06-11161,542.08,Bhandal Care Group (BSB Care) Ltd
Nottinghamshire County Council,1111/1001,Adult Social Care and Health,ASCH,Third Party Payments,EGA,07/09/2020,06-11162,558.32,Premier Nursing Agency Ltd
Nottinghamshire County Council,1111/1001,Adult Social Care and Health,ASCH,Third Party Payments,EGA,07/09/2020,06-11163,551.40,Caremark (Broxtowe & Erewash)
Nottinghamshire County Council,1111/1001,Adult Social Care and Health,ASCH,Third Party Payments,EGA,07/09/2020,06-11164,517.16,Comfort Call Ltd
Nottinghamshire County Council,1111/1001,Adult Social Care and Health,ASCH,Third Party Payments,EGA,07/09/2020,06-11165,513.52,SPM Quality Care Ltd T/A Caremark(
Nottinghamshire County Council,1111/1001,Adult Social Care and Health,ASCH,Third Party Payments,EGA,07/09/2020,06-11166,614.39,SPM Quality Care Ltd T/A Caremark(
Nottinghamshire County Council,1111/1001,Adult Social Care and Health,ASCH,Third Party Payments,EGA,07/09/2020,06-11167,609.81,SPM Quality Care Ltd T/A Caremark(
Nottinghamshire County Council,1111/1001,Adult Social Care and Health,ASCH,Third Party Payments,EGA,07/09/2020,06-11168,590.72,Mercie Grace Care Ltd
Nottinghamshire County Council,1111/1001,Adult Social Care and Health,ASCH,Third Party Payments,EGA,07/09/2020,06-11169,775.74,Gemini Exclusive Care
Nottinghamshire County Council,1111/1001,Adult Social Care and Health,ASCH,Third Party Payments,EGA,07/09/2020,06-11170,525.83,Comfort Call Ltd
Nottinghamshire County Council,1111/1001,Adult Social Care and Health,ASCH,Third Party Payments,EGA,07/09/2020,06-11171,517.16,Agincare UK Ltd
Nottinghamshire County Council,1111/1001,Adult Social Care and Health,ASCH,Third Party Payments,EGA,07/09/2020,06-11172,643.30,Caremark (Broxtowe & Erewash)
